Workbook

Sheet Map (hidden)
A1: Please fill in the Sun GL Account code for thetable below
C2: Local | J2: Foreign
C3: Local Corporate Bonds | D3: Local MGS | E3: Local Deposit | F3: Money Market | G3: Unquoted Shares | H3: Local Listed Shares | I3: REITS | J3: Foreign Corporate Bonds | K3: Foreign MGS | L3: Foreign Deposit | M3: Foreign Listed Shares | N3: NID | O3: UNIT TRUST (Hwang Enhanced Cash Fund) | P3: UNIT TRUST (Amcash Plus) | Q3: UNIT TRUST (CIMB P.- Bond Fund) | R3: UNIT TRUST (Nomura i-cash fund)
B4: Cost | C4: 53202 | D4: 53101 | E4: 52001 | F4: 52003 | G4: 53302 | H4: 53301 | I4: 53501 | J4: 53202 | K4: 53101 | L4: 52001 | M4: 53301 | N4: 52002 | O4: 53401 | P4: 53403 | Q4: 53404 | R4: 53405
A5: DivTaxed | B5: Pre Acq Coupon | C5: 21260 | J5: 21260
A6: ProvUnGnL | B6: Unrealised Gain (p/l) | H6: 25210 | M6: 25210
A7: IncomeVal | B7: Accrued Income | C7: 57130 | D7: 57130 | E7: 57110 | F7: 57120 | J7: 57130 | K7: 57130 | L7: 57110
A8: AmortPL | B8: Amort | C8: 21650 | D8: 21612 | J8: 21650 | K8: 21612 | N8: 21630
A9: AccrePL | B9: Accreation | C9: 21660 | J9: 21660
A10: AmortBSVal | B10: Prov for Amortisation (B/S) | C10: 53252 | D10: 53151 | J10: 53252 | K10: 53151 | N10: 52052
A11: AccreBSVal | B11: Prov for Accreation (B/S) | C11: 53252 | D11: 53151 | J11: 53252 | K11: 53151 | N11: 52052
A12: 160000 | B12: Prov for Dimunition in Value (B/S) | C12: 53253 | D12: 53253 | I12: 53551 | J12: 53253 | K12: 53253 | O12: 53453 | P12: 53453 | Q12: 53453 | R12: 53453
A13: Gains | B13: Realised Income | C13: 25430 | H13: 25410 | J13: 25430 | M13: 25410
A14: Income | B14: Interest Income | C14: 21260 | D14: 21210 | E14: 21110 | F14: 21120 | J14: 21260 | K14: 21210 | L14: 21110 | N14: 21140
A15: DivGrossProceed | B15: Dividend Income | H15: 21310 | M15: 21310 | O15: 21340 | P15: 21340 | Q15: 21340 | R15: 21340
A16: DivTaxed | B16: Tax on Dividend Income
A17: Debtor | B17: Debtor | C17: 58780 | D17: 58780 | E17: 58780 | F17: 58780 | G17: 58780 | H17: 58780 | I17: 58780 | J17: 58780 | K17: 58780 | L17: 58780 | M17: 58780 | N17: 58780 | O17: 58780 | P17: 58780 | Q17: 58780 | R17: 58780
A18: Creditor | B18: Creditor | C18: 58780 | D18: 58780 | E18: 58780 | F18: 58780 | G18: 58780 | H18: 58780 | I18: 58780 | J18: 58780 | K18: 58780 | L18: 58780 | M18: 58780 | N18: 58780
A19: 830000 | B19: Retain Profit | C19: 999 | J19: 999
A20: 810000 | B20: Unrealised Reserve | C20: 94100 | J20: 94100 | O20: 94100 | P20: 94100 | Q20: 94100 | R20: 94100
B21: Capital
B23: Expenses | D23: Bank Account
B24: 25420 | C24: Investment Brokerage fee | D24: 51284 | E24: BK KL RHB A/C1 21401701031333
B25: 12340 | C25: Bank charges | D25: 51503 | E25: P/Folio Mgt - HwangDBs Investment
E27: Pre Acq Coupon | F27: Unrealised Gain (p/l) | G27: Accrued Income | H27: Amort | I27: Accreation | J27: Prov for Amortisation (B/S) | K27: Prov for Accreation (B/S) | L27: Realised Income | M27: Interest Income | N27: Dividend Income | O27: Tax on Dividend Income | P27: Debtor | Q27: Creditor
B28: qAccType | C28: Description | D28: Cost | E28: DivTaxed | F28: ProvUnGnL | G28: IncomeVal | H28: AmortPL | I28: AccrePL | J28: AmortBSVal | K28: AccreBSVal | L28: Gains | M28: Income | N28: DivGrossProceed | O28: DivTaxed | P28: Debtor | Q28: Creditor | R28: Expenses
B29: BDCO | C29: Commercial Bond | D29: 100110 | E29: 130110 | F29: 689110 | G29: 639110 | H29: 610110 | I29: 620110 | J29: 110110 | K29: 120110 | L29: 600110 | M29: 630110 | O29: 130110 | P29: 200100 | Q29: 300100 | R29: 799110
B30: BDMG | C30: Malaysia Government Securities | D30: 100140 | E30: 130140 | F30: 689140 | G30: 639140 | H30: 610140 | I30: 620140 | J30: 110140 | K30: 120140 | L30: 600140 | M30: 630140 | O30: 130140 | P30: 200100 | Q30: 300100 | R30: 799140
B31: BNID | C31: NID | D31: 100190 | F31: 689190 | I31: 620190 | K31: 120190 | L31: 600190 | P31: 200100 | Q31: 300100 | R31: 799190
B32: BXCO | C32: Foreign Commercial Bond | D32: 100115 | E32: 130115 | F32: 689115 | G32: 639115 | H32: 610115 | I32: 620115 | J32: 110115 | K32: 120115 | L32: 600115 | M32: 630115 | O32: 130115 | P32: 200100 | Q32: 300100 | R32: 799115
B33: CSFD | C33: Local Fixed Deposit Placement | D33: 100220 | F33: 689220 | G33: 639220 | L33: 600220 | M33: 630220 | P33: 200100 | Q33: 300100 | R33: 799220
B34: CSMM | C34: Local Money Market Placement | D34: 100210 | G34: 639210 | M34: 630210 | P34: 200100 | Q34: 300100 | R34: 799210
B35: REIT | C35: Real Estate Investment Trust | D35: 100460 | E35: 799130 | F35: 689460 | L35: 600460 | M35: 630460 | N35: 635460 | O35: 799130 | P35: 200200 | Q35: 300200 | R35: 799460
B36: SHLI | C36: Local Listed Share | D36: 100010 | E36: 299999 | F36: 689010 | L36: 600010 | M36: 630010 | N36: 635010 | O36: 299999 | P36: 200200 | Q36: 300200 | R36: 799010
B37: SHUL | C37: Local UnListed Share | D37: 100030 | E37: 299999 | F37: 689030 | L37: 600030 | M37: 630030 | N37: 635030 | O37: 299999 | P37: 200200 | Q37: 300200 | R37: 799030
B38: UTCX | C38: Local Cash Unit Trust | D38: 100430 | E38: 299999 | F38: 689430 | L38: 600430 | M38: 630430 | N38: 635430 | O38: 299999 | P38: 200200 | Q38: 300200 | R38: 799430
B39: UTBX | C39: Local Bond Unit Trust | D39: 100440 | E39: 299999 | F39: 689440 | L39: 600440 | M39: 630440 | N39: 635440 | O39: 299999 | P39: 200200 | Q39: 300200 | R39: 799440
B40: UTFX | C40: Foreign Bond Unit Trust | D40: 100415 | E40: 799129 | F40: 689415 | L40: 600415 | M40: 630415 | N40: 635415 | O40: 799129 | P40: 200300 | Q40: 300300 | R40: 799415
C41: Local | J41: Foreign
C42: Local Corporate Bonds | D42: Local MGS | E42: Local Deposit | F42: Money Market | G42: Unquoted Shares | H42: Local Listed Shares | I42: REITS | J42: Foreign Corporate Bonds | K42: Foreign MGS | L42: Foreign Deposit | M42: Foreign Listed Shares | N42: NID | O42: UNIT TRUST (Hwang Enhanced Cash Fund) | P42: UNIT TRUST (Amcash Plus) | Q42: UNIT TRUST (CIMB P.- Bond Fund) | R42: UNIT TRUST (Nomura i-cash fund)
B43: Cost | C43: 100110 | D43: 100140 | E43: 100220 | F43: 100210 | G43: 100030 | H43: 100010 | I43: 100460 | J43: 100115 | K43: 100140 | L43: 100220 | M43: 100015 | N43: 100190 | O43: 100430 | P43: 100430 | Q43: 100440 | R43: 100430
B44: Pre Acq Coupon | C44: 130110 | J44: 130115
B45: Unrealised Gain (p/l) | H45: 689010 | M45: 689015
B46: Accrued Income | C46: 639110 | D46: 639140 | E46: 639220 | F46: 639210 | J46: 639115 | K46: 639140 | L46: 639220
B47: Amort | C47: 610110 | D47: 610140 | J47: 610115 | K47: 610140 | N47: 610190
B48: Accreation | C48: 620110 | J48: 620115
B49: Prov for Amortisation (B/S) | C49: 110110 | D49: 110140 | J49: 110115 | K49: 110140 | N49: 110190
B50: Prov for Accreation (B/S) | C50: 120110 | D50: 120140 | J50: 120115 | K50: 120140 | N50: 120190
B51: Prov for Dimunition in Value (B/S) | C51: 160000 | D51: 160000 | I51: 160000 | J51: 160000 | K51: 160000 | O51: 160000 | P51: 160000 | Q51: 160000 | R51: 160000
B52: Realised Income | C52: 600110 | H52: 600010 | J52: 600115 | M52: 600015
B53: Interest Income | C53: 630110 | D53: 630140 | E53: 630220 | F53: 630210 | J53: 630115 | K53: 630140 | L53: 630220 | N53: 630190
B54: Dividend Income | H54: 635010 | M54: 635015 | O54: 635430 | P54: 635430 | Q54: 635440 | R54: 635430
B55: Tax on Dividend Income
B56: Debtor | C56: 200100 | D56: 200100 | E56: 200100 | F56: 200100 | G56: 200200 | H56: 200200 | I56: 200200 | J56: 200100 | K56: 200100 | L56: 200100 | M56: 200200 | N56: 200100 | O56: 200200 | P56: 200200 | Q56: 200200 | R56: 200200
B57: Creditor | C57: 300100 | D57: 300100 | E57: 300100 | F57: 300100 | G57: 300200 | H57: 300200 | I57: 300200 | J57: 300100 | K57: 300100 | L57: 300100 | M57: 300200 | N57: 300100
B58: Retain Profit | C58: 830000 | J58: 830000
B59: Unrealised Reserve | C59: 810000 | J59: 810000 | O59: 810000 | P59: 810000 | Q59: 810000 | R59: 810000
B60: Capital
B62: Expenses | D62: Bank Account
B63: 799010 | C63: Investment Brokerage fee | D63: 500000 | E63: BK KL RHB A/C1 21401701031333
B64: 710102 | C64: Bank charges | D64: 500000 | E64: P/Folio Mgt - HwangDBs Investment
B66: qAccType | C66: Description | D66: Cost | E66: AmortBSVal | F66: AccreBSVal | G66: ProvUnGnL | H66: Gains | I66: Income | J66: IncomeVal | K66: IncomeCon | L66: Expenses | M66: AmortPL | N66: AccrePL | O66: ProvUnGnLRes | P66: DivGrossProceed | Q66: DivTaxed | R66: Debtor | S66: Creditor
B67: BDCG | C67: Cagamas Bond | D67: 100100 | E67: 110100 | F67: 120100 | G67: 689100 | H67: 600100 | I67: 630100 | J67: 639100 | K67: 939100 | L67: 799100 | M67: 610100 | N67: 620100 | O67: 189100 | Q67: 130100 | R67: 200100 | S67: 300100
B68: BDCO | C68: Commercial Bond | D68: 100110 | E68: 110110 | F68: 120110 | G68: 689110 | H68: 600110 | I68: 630110 | J68: 639110 | K68: 939110 | L68: 799110 | M68: 610110 | N68: 620110 | O68: 189110 | Q68: 130110 | R68: 200100 | S68: 300100
B69: BDCP | C69: Commercial Paper | D69: 100120 | F69: 120120 | G69: 689120 | H69: 600120 | L69: 799120 | N69: 620120 | O69: 189120 | R69: 200100 | S69: 300100
B70: BDGG | C70: Government Guaranteed Bond | D70: 100130 | E70: 110130 | F70: 120130 | G70: 689130 | H70: 600130 | I70: 630130 | J70: 639130 | K70: 939130 | L70: 799130 | M70: 610130 | N70: 620130 | O70: 189130 | Q70: 130130 | R70: 200100 | S70: 300100
B71: BDMG | C71: Malaysia Government Securities | D71: 100140 | E71: 110140 | F71: 120140 | G71: 689140 | H71: 600140 | I71: 630140 | J71: 639140 | K71: 939140 | L71: 799140 | M71: 610140 | N71: 620140 | O71: 189140 | Q71: 130140 | R71: 200100 | S71: 300100
B72: BNID | C72: NID | D72: 100190 | F72: 120190 | G72: 689190 | H72: 600190 | L72: 799190 | N72: 620190 | O72: 189190 | R72: 200100 | S72: 300100
B73: BXCO | C73: Foreign Commercial Bond | D73: 100115 | E73: 110115 | F73: 120115 | G73: 689115 | H73: 600115 | I73: 630115 | J73: 639115 | K73: 939115 | L73: 799115 | M73: 610115 | N73: 620115 | O73: 189115 | Q73: 130115 | R73: 200100 | S73: 300100
B74: BXCP | C74: Foreign Commercial Paper | D74: 100125 | F74: 120125 | G74: 689125 | H74: 600125 | L74: 799125 | N74: 620125 | O74: 189125 | R74: 200100 | S74: 300100
B75: CAPT | C75: Unitholder Capital | D75: 800000 | G75: 660000 | I75: 850000 | J75: 830000 | K75: 810000 | O75: 160000 | R75: 200800 | S75: 300800
B76: CSFD | C76: Local Fixed Deposit Placement | D76: 100220 | G76: 689220 | H76: 600220 | I76: 630220 | J76: 639220 | K76: 939220 | L76: 799220 | O76: 189220 | R76: 200100 | S76: 300100
B77: CSMF | C77: Foreign Money Market Placement | D77: 100215 | I77: 630215 | J77: 639215 | K77: 939215 | L77: 799215 | O77: 189215 | R77: 200100 | S77: 300100
B78: CSMM | C78: Local Money Market Placement | D78: 100210 | I78: 630210 | J78: 639210 | K78: 939210 | L78: 799210 | O78: 189210 | R78: 200100 | S78: 300100
B79: DEVCF | C79: Derivative | D79: 100330 | E79: 110330 | F79: 120330 | G79: 689330 | H79: 600330 | I79: 630330 | J79: 639330 | K79: 939330 | L79: 799330 | M79: 610330 | N79: 620330 | O79: 189330 | R79: 200500 | S79: 300500
B80: LNST | C80: Loan Stock | D80: 100150 | G80: 689150 | H80: 600150 | I80: 630150 | J80: 639150 | K80: 939150 | L80: 799150 | O80: 189150 | P80: 635010 | Q80: 299999 | R80: 200200 | S80: 300200
B81: OPFO | C81: Options Foreign | D81: 100325 | G81: 689325 | H81: 600325 | I81: 630325 | L81: 799325 | O81: 189325 | R81: 200500 | S81: 300500
B82: OPLO | C82: Options Local | D82: 100320 | G82: 689320 | H82: 600320 | I82: 630320 | L82: 799320 | O82: 189320 | R82: 200500 | S82: 300500
B83: REIF | C83: Foreign Real Estate Investment Trust | D83: 100465 | G83: 689465 | H83: 600465 | I83: 630465 | L83: 799465 | O83: 189465 | P83: 635465 | Q83: 799130 | R83: 200200 | S83: 300200
B84: REIT | C84: Real Estate Investment Trust | D84: 100460 | G84: 689460 | H84: 600460 | I84: 630460 | L84: 799460 | O84: 189460 | P84: 635460 | Q84: 799130 | R84: 200200 | S84: 300200
B85: SHFL | C85: Foreign Listed Equities | D85: 100015 | G85: 689015 | H85: 600015 | I85: 630015 | L85: 799015 | O85: 189015 | P85: 635015 | Q85: 799129 | R85: 200400 | S85: 300400
B86: SHLI | C86: Local Listed Share | D86: 100010 | G86: 689010 | H86: 600010 | I86: 630010 | L86: 799010 | O86: 189010 | P86: 635010 | Q86: 299999 | R86: 200200 | S86: 300200
B87: SHUL | C87: Local UnListed Share | D87: 100030 | G87: 689030 | H87: 600030 | I87: 630030 | L87: 799030 | O87: 189030 | P87: 635030 | Q87: 299999 | R87: 200200 | S87: 300200
B88: UTCX | C88: Local Cash Unit Trust | D88: 100430 | G88: 689430 | H88: 600430 | I88: 630430 | L88: 799430 | O88: 189430 | P88: 635430 | Q88: 299999 | R88: 200200 | S88: 300200
B89: UTEX | C89: Local Bond Unit Trust | D89: 100410 | G89: 689410 | H89: 600410 | I89: 630410 | L89: 799410 | O89: 189410 | P89: 635410 | Q89: 299999 | R89: 200200 | S89: 300200
B90: UTFX | C90: Foreign Bond Unit Trust | D90: 100415 | G90: 689415 | H90: 600415 | I90: 630415 | L90: 799415 | O90: 189415 | P90: 635415 | Q90: 799129 | R90: 200300 | S90: 300300

Sheet SunAccount Transfer File (hidden)
A1: Accounting Transaction
A3: Item | B3: Start Position | C3: Length | D3: Reply | E3: Comments
A4: Account Code | B4: 1 | C4: 10 | D4: FOLLOW 5 DIGIT AS PER "MAP" SHEET | E4: 10 characters | F4: Note your MAP only give 5 digit, Leave trailing space ?
A5: Filler | B5: 11 | C5: 5 | E5: Spaces | F5: Leave Blank
A6: Accounting Period | B6: 16 | C6: 7 | E6: yyyyppp (year number, period number) | F6: ok
A7: Transaction Date | B7: 23 | C7: 8 | E7: yyyymmdd (year, month, and day number) | F7: ok
A8: Filler | B8: 31 | C8: 2 | E8: Spaces | F8: ok
A9: Record Type | B9: 33 | C9: 1 | E9: =L (Record Types E, T, N and L can still be read in version 4.2. If your records include analysis codes T0, or T6 to T9 you must use Record Type M.) | F9: ok
A10: Journal Number | B10: 34 | C10: 7 | E10: Journal Number (The SunBusiness transfer file divides this item into a SOURCE of 2 chars at Start Position 34, followed by the Journal Number of 5 chars at Start Position 36.) | F10: ok - Riskk generate to manage correction and deletion
A11: Line | B11: 41 | C11: 7 | E11: Line Number | F11: ok
A12: Amount | B12: 48 | C12: 18 | E12: 15 integer and 3 decimal | F12: ok - as per your sample, decimal point not included
A13: Debit/Credit Maker | B13: 66 | C13: 1 | E13: = D or C | F13: ok
A14: Allocation Indicator | B14: 67 | C14: 1 | F14: ok
A15: Journal Type | B15: 68 | C15: 5 | D15: SINV | F15: Leave Blank
A16: Journal Source | B16: 73 | C16: 5 | D16: IMS | F16: Leave Blank
A17: Transaction Reference | B17: 78 | C17: 15 | D17: INVESTMENT TYPE | E17: 15 characters | F17: Leave Blank
A18: Description | B18: 93 | C18: 25 | D18: ACCOUNT CODE IN IMS | F18: Leave Blank
A19: Entry Date | B19: 118 | C19: 8 | D19: TRADE DATE | E19: yyyymmdd (Generated by JI=Journal Import) | F19: Leave Blank
A20: Entry Period | B20: 126 | C20: 7 | D20: ACCOUNTING PERIOD | E20: yyyyppp (Generated by JI=Journal Import) | F20: Leave Blank
A21: Due Date | B21: 133 | C21: 8 | E21: yyyymmdd | F21: Leave Blank
A22: Filler | B22: 141 | C22: 6 | E22: Spaces | F22: Leave Blank
A23: Payment/Allocation Ref | B23: 147 | C23: 9 | E23: 9 integer | F23: Leave Blank
A24: Payment/Allocation Date | B24: 156 | C24: 8 | E24: yyyymmdd | F24: Leave Blank
A25: Payment/Allocation Period | B25: 164 | C25: 7 | E25: yyyyppp | F25: Leave Blank
A26: Asset Indicator | B26: 171 | C26: 1 | E26: =V, D, I, or Space | F26: Leave Blank
A27: Asset Code | B27: 172 | C27: 10 | F27: Leave Blank
A28: Asset Sub-code | B28: 182 | C28: 5 | F28: Leave Blank
A29: Conversion Code | B29: 187 | C29: 5 | F29: Leave Blank
A30: Conversion Rate | B30: 192 | C30: 18 | E30: 9 integer and 9 decimal | F30: Leave Blank
A31: Other Amount | B31: 210 | C31: 18 | E31: 15 integer and 3 decimal | F31: Leave Blank
A32: Other Amount Dec. Places | B32: 228 | C32: 1 | F32: Leave Blank
A33: Operator Id | B33: 229 | C33: 3 | E33: Leave blank | F33: Leave Blank
A34: Operator Id | B34: 232 | C34: 3 | E34: Leave blank | F34: Leave Blank
A35: Operator Id | B35: 235 | C35: 3 | E35: Leave blank | F35: Leave Blank
A36: Next Period Reversal | B36: 238 | C36: 1 | E36: Leave blank | F36: Leave Blank
A37: Text Linked | B37: 239 | C37: 1 | E37: Leave blank | F37: Leave Blank
A38: Rough Book Flag | B38: 240 | C38: 1 | E38: Leave blank | F38: Leave Blank
A39: In Use Flag | B39: 241 | C39: 1 | E39: Leave blank | F39: Leave Blank
A40: Analysis Code 0 | B40: 242 | C40: 15 | F40: Leave Blank
A41: Analysis Code 1 | B41: 257 | C41: 15 | D41: COT (the SBB) | F41: Leave Blank
A42: Analysis Code 2 | B42: 272 | C42: 15 | D42: KLZZZ | F42: Leave Blank
A43: Analysis Code 3 | B43: 287 | C43: 15 | D43: CN | F43: Leave Blank
A44: Analysis Code 4 | B44: 302 | C44: 15 | D44: OT | F44: Leave Blank
A45: Analysis Code 5 | B45: 317 | C45: 15 | F45: Leave Blank
A46: Analysis Code 6 | B46: 332 | C46: 15 | F46: Leave Blank
A47: Analysis Code 7 | B47: 347 | C47: 15 | F47: Leave Blank
A48: Analysis Code 8 | B48: 362 | C48: 15 | F48: Leave Blank
A49: Analysis Code 9 | B49: 377 | C49: 15 | F49: Leave Blank
A50: Posting date | B50: 392 | C50: 8 | E50: For rough journals: date when un-roughed (Generated by JI=Journal Import) | F50: Leave Blank
A51: Update Order Bal. Ind. | B51: 400 | C51: 1 | E51: Leave blank | F51: Leave Blank
A52: Filler | B52: 401 | C52: 112 | E52: Leave blank | F52: Leave Blank
A55: 31110 201401120141130 L 000000000011235000D PPE 00004T922 G/Asia 30/11/2014 SBB DDKBH EC 04 HGFWGX EN
A56: 31110 201401120141130 L 000000000004935000C PPL 00007T903 G/Asia 30/11/2014 SBB DDKBH EC 04 HGFWGX PL
A57: 31110 201401120141130 L 000000000000420000C PPL 00008T903 G/Asia 30/11/2014 SBB DDKBH EC 04 HGFWGX PL
A58: 31110 201401120141130 L 000000000011235000D
A60: =LEN(A59) -> 179
B61: =LEN(A55) -> 512
B62: =LEN(A56) -> 512
B63: 512
B64: 67

Sheet MapPage (hidden)
B1: =E1&": "&F1 -> : | C1: =OFFSET(Map!$B$42,MATCH(MapPage!E1,mapxaxis,0),MATCH(MapPage!F1,mapyaxis,0)) ->  | D1: =OFFSET(Map!$B$3,MATCH(MapPage!E1,mapxaxis,0),MATCH(MapPage!F1,mapyaxis,0)) -> 
A2: Riskk GL Description | B2: Sun GL Description | C2: Riskk GL Code | D2: Sun GL Account Code | E2: X-axis | F2: Y-axis
A3: Cost: Local Listed Share | B3: =E3&": "&F3 -> Cost: Local Listed Shares | C3: =OFFSET(Map!$B$42,MATCH(MapPage!E3,mapxaxis,0),MATCH(MapPage!F3,mapyaxis,0)) -> 100010 | D3: =OFFSET(Map!$B$3,MATCH(MapPage!E3,mapxaxis,0),MATCH(MapPage!F3,mapyaxis,0)) -> 53301 | E3: Cost | F3: Local Listed Shares
A4: Cost: Foreign Listed Share | B4: =E4&": "&F4 -> Cost: Foreign Listed Shares | C4: =OFFSET(Map!$B$42,MATCH(MapPage!E4,mapxaxis,0),MATCH(MapPage!F4,mapyaxis,0)) -> 100015 | D4: =OFFSET(Map!$B$3,MATCH(MapPage!E4,mapxaxis,0),MATCH(MapPage!F4,mapyaxis,0)) -> 53301 | E4: Cost | F4: Foreign Listed Shares
A5: Cost: Local UnListed Share | B5: Cost: Unquoted Shares | C5: =OFFSET(Map!$B$42,MATCH(MapPage!E5,mapxaxis,0),MATCH(MapPage!F5,mapyaxis,0)) -> 100030 | D5: =OFFSET(Map!$B$3,MATCH(MapPage!E5,mapxaxis,0),MATCH(MapPage!F5,mapyaxis,0)) -> 53302 | E5: Cost | F5: Unquoted Shares
A6: Cost: Commercial Bond | B6: Cost: Local Corporate Bonds | C6: =OFFSET(Map!$B$42,MATCH(MapPage!E6,mapxaxis,0),MATCH(MapPage!F6,mapyaxis,0)) -> 100110 | D6: =OFFSET(Map!$B$3,MATCH(MapPage!E6,mapxaxis,0),MATCH(MapPage!F6,mapyaxis,0)) -> 53202 | E6: Cost | F6: Local Corporate Bonds
A7: Cost: Foreign Bonds | B7: Cost: Foreign Corporate Bonds | C7: =OFFSET(Map!$B$42,MATCH(MapPage!E7,mapxaxis,0),MATCH(MapPage!F7,mapyaxis,0)) -> 100115 | D7: =OFFSET(Map!$B$3,MATCH(MapPage!E7,mapxaxis,0),MATCH(MapPage!F7,mapyaxis,0)) -> 53202 | E7: Cost | F7: Foreign Corporate Bonds
A8: Cost: Malaysia Government Securities | B8: Cost: Local MGS | C8: =OFFSET(Map!$B$42,MATCH(MapPage!E8,mapxaxis,0),MATCH(MapPage!F8,mapyaxis,0)) -> 100140 | D8: =OFFSET(Map!$B$3,MATCH(MapPage!E8,mapxaxis,0),MATCH(MapPage!F8,mapyaxis,0)) -> 53101 | E8: Cost | F8: Local MGS
A9: Cost: Malaysia Government Securities | B9: Cost: Foreign MGS | C9: =OFFSET(Map!$B$42,MATCH(MapPage!E9,mapxaxis,0),MATCH(MapPage!F9,mapyaxis,0)) -> 100140 | D9: =OFFSET(Map!$B$3,MATCH(MapPage!E9,mapxaxis,0),MATCH(MapPage!F9,mapyaxis,0)) -> 53101 | E9: Cost | F9: Foreign MGS
A10: Cost: NID | B10: Cost: NID | C10: =OFFSET(Map!$B$42,MATCH(MapPage!E10,mapxaxis,0),MATCH(MapPage!F10,mapyaxis,0)) -> 100190 | D10: =OFFSET(Map!$B$3,MATCH(MapPage!E10,mapxaxis,0),MATCH(MapPage!F10,mapyaxis,0)) -> 52002 | E10: Cost | F10: NID
A11: Cost: Local Money Market Placement | B11: Cost: Money Market | C11: =OFFSET(Map!$B$42,MATCH(MapPage!E11,mapxaxis,0),MATCH(MapPage!F11,mapyaxis,0)) -> 100210 | D11: =OFFSET(Map!$B$3,MATCH(MapPage!E11,mapxaxis,0),MATCH(MapPage!F11,mapyaxis,0)) -> 52003 | E11: Cost | F11: Money Market
A12: Cost: FD Placement | B12: Cost: Foreign Deposit | C12: =OFFSET(Map!$B$42,MATCH(MapPage!E12,mapxaxis,0),MATCH(MapPage!F12,mapyaxis,0)) -> 100220 | D12: =OFFSET(Map!$B$3,MATCH(MapPage!E12,mapxaxis,0),MATCH(MapPage!F12,mapyaxis,0)) -> 52001 | E12: Cost | F12: Foreign Deposit
A13: Cost: FD Placement | B13: Cost: Local Deposit | C13: =OFFSET(Map!$B$42,MATCH(MapPage!E13,mapxaxis,0),MATCH(MapPage!F13,mapyaxis,0)) -> 100220 | D13: =OFFSET(Map!$B$3,MATCH(MapPage!E13,mapxaxis,0),MATCH(MapPage!F13,mapyaxis,0)) -> 52001 | E13: Cost | F13: Local Deposit
A14: Cost: Unit Trust (Amcash Plus) | B14: Cost: Unit trust (Amcash Plus) | C14: =OFFSET(Map!$B$42,MATCH(MapPage!E14,mapxaxis,0),MATCH(MapPage!F14,mapyaxis,0)) -> 100430 | D14: =OFFSET(Map!$B$3,MATCH(MapPage!E14,mapxaxis,0),MATCH(MapPage!F14,mapyaxis,0)) -> 53403 | E14: Cost | F14: Unit trust (Amcash Plus)
A15: Cost: Unit Trust (Hwang Enhanced Cash Fund) | B15: Cost: Unit trust (Hwang Enhanced Cash Fund) | C15: =OFFSET(Map!$B$42,MATCH(MapPage!E15,mapxaxis,0),MATCH(MapPage!F15,mapyaxis,0)) -> 100430 | D15: =OFFSET(Map!$B$3,MATCH(MapPage!E15,mapxaxis,0),MATCH(MapPage!F15,mapyaxis,0)) -> 53401 | E15: Cost | F15: Unit trust (Hwang Enhanced Cash Fund)
A16: Cost: Unit Trust (Nomura i-cash fund) | B16: Cost: Unit trust (Nomura i-cash fund) | C16: =OFFSET(Map!$B$42,MATCH(MapPage!E16,mapxaxis,0),MATCH(MapPage!F16,mapyaxis,0)) -> 100430 | D16: =OFFSET(Map!$B$3,MATCH(MapPage!E16,mapxaxis,0),MATCH(MapPage!F16,mapyaxis,0)) -> 53405 | E16: Cost | F16: Unit trust (Nomura i-cash fund)
A17: Cost: Unit Trust (CIMB P.- Bond Fund) | B17: Cost: Unit trust (CIMB P.- Bond Fund) | C17: =OFFSET(Map!$B$42,MATCH(MapPage!E17,mapxaxis,0),MATCH(MapPage!F17,mapyaxis,0)) -> 100440 | D17: =OFFSET(Map!$B$3,MATCH(MapPage!E17,mapxaxis,0),MATCH(MapPage!F17,mapyaxis,0)) -> 53404 | E17: Cost | F17: Unit trust (CIMB P.- Bond Fund)
A18: Cost: Real Estate Investment Trust | B18: Cost: REITS | C18: =OFFSET(Map!$B$42,MATCH(MapPage!E18,mapxaxis,0),MATCH(MapPage!F18,mapyaxis,0)) -> 100460 | D18: =OFFSET(Map!$B$3,MATCH(MapPage!E18,mapxaxis,0),MATCH(MapPage!F18,mapyaxis,0)) -> 53501 | E18: Cost | F18: REITS
A19: AmortBSVal: Commercial Bond (Valuation) | B19: Prov for Amortisation (B/S): Local Corporate Bonds | C19: =OFFSET(Map!$B$42,MATCH(MapPage!E19,mapxaxis,0),MATCH(MapPage!F19,mapyaxis,0)) -> 110110 | D19: =OFFSET(Map!$B$3,MATCH(MapPage!E19,mapxaxis,0),MATCH(MapPage!F19,mapyaxis,0)) -> 53252 | E19: Prov for Amortisation (B/S) | F19: Local Corporate Bonds
A20: AmortBSVal: Foreign Bonds | B20: Prov for Amortisation (B/S): Foreign Corporate Bonds | C20: =OFFSET(Map!$B$42,MATCH(MapPage!E20,mapxaxis,0),MATCH(MapPage!F20,mapyaxis,0)) -> 110115 | D20: =OFFSET(Map!$B$3,MATCH(MapPage!E20,mapxaxis,0),MATCH(MapPage!F20,mapyaxis,0)) -> 53252 | E20: Prov for Amortisation (B/S) | F20: Foreign Corporate Bonds
A21: AmortBSVal: Malaysia Government Securities | B21: Prov for Amortisation (B/S): Local MGS | C21: =OFFSET(Map!$B$42,MATCH(MapPage!E21,mapxaxis,0),MATCH(MapPage!F21,mapyaxis,0)) -> 110140 | D21: =OFFSET(Map!$B$3,MATCH(MapPage!E21,mapxaxis,0),MATCH(MapPage!F21,mapyaxis,0)) -> 53151 | E21: Prov for Amortisation (B/S) | F21: Local MGS
A22: AmortBSVal: Malaysia Government Securities | B22: Prov for Amortisation (B/S): Foreign MGS | C22: =OFFSET(Map!$B$42,MATCH(MapPage!E22,mapxaxis,0),MATCH(MapPage!F22,mapyaxis,0)) -> 110140 | D22: =OFFSET(Map!$B$3,MATCH(MapPage!E22,mapxaxis,0),MATCH(MapPage!F22,mapyaxis,0)) -> 53151 | E22: Prov for Amortisation (B/S) | F22: Foreign MGS
A23: AmortBSVal: NID | B23: Prov for Amortisation (B/S): NID | C23: =OFFSET(Map!$B$42,MATCH(MapPage!E23,mapxaxis,0),MATCH(MapPage!F23,mapyaxis,0)) -> 110190 | D23: =OFFSET(Map!$B$3,MATCH(MapPage!E23,mapxaxis,0),MATCH(MapPage!F23,mapyaxis,0)) -> 52052 | E23: Prov for Amortisation (B/S) | F23: NID
A24: AccreBSVal: Commercial Bond (Valuation) | B24: Prov for Accreation (B/S): Local Corporate Bonds | C24: =OFFSET(Map!$B$42,MATCH(MapPage!E24,mapxaxis,0),MATCH(MapPage!F24,mapyaxis,0)) -> 120110 | D24: =OFFSET(Map!$B$3,MATCH(MapPage!E24,mapxaxis,0),MATCH(MapPage!F24,mapyaxis,0)) -> 53252 | E24: Prov for Accreation (B/S) | F24: Local Corporate Bonds
A25: AccreBSVal: Foreign Bonds | B25: Prov for Accreation (B/S): Foreign Corporate Bonds | C25: =OFFSET(Map!$B$42,MATCH(MapPage!E25,mapxaxis,0),MATCH(MapPage!F25,mapyaxis,0)) -> 120115 | D25: =OFFSET(Map!$B$3,MATCH(MapPage!E25,mapxaxis,0),MATCH(MapPage!F25,mapyaxis,0)) -> 53252 | E25: Prov for Accreation (B/S) | F25: Foreign Corporate Bonds
A26: AccreBSVal: Malaysia Government Securities | B26: Prov for Accreation (B/S): Local MGS | C26: =OFFSET(Map!$B$42,MATCH(MapPage!E26,mapxaxis,0),MATCH(MapPage!F26,mapyaxis,0)) -> 120140 | D26: =OFFSET(Map!$B$3,MATCH(MapPage!E26,mapxaxis,0),MATCH(MapPage!F26,mapyaxis,0)) -> 53151 | E26: Prov for Accreation (B/S) | F26: Local MGS
A27: AccreBSVal: Malaysia Government Securities | B27: Prov for Accreation (B/S): Foreign MGS | C27: =OFFSET(Map!$B$42,MATCH(MapPage!E27,mapxaxis,0),MATCH(MapPage!F27,mapyaxis,0)) -> 120140 | D27: =OFFSET(Map!$B$3,MATCH(MapPage!E27,mapxaxis,0),MATCH(MapPage!F27,mapyaxis,0)) -> 53151 | E27: Prov for Accreation (B/S) | F27: Foreign MGS
A28: AccreBSVal: NID | B28: Prov for Accreation (B/S): NID | C28: =OFFSET(Map!$B$42,MATCH(MapPage!E28,mapxaxis,0),MATCH(MapPage!F28,mapyaxis,0)) -> 120190 | D28: =OFFSET(Map!$B$3,MATCH(MapPage!E28,mapxaxis,0),MATCH(MapPage!F28,mapyaxis,0)) -> 52052 | E28: Prov for Accreation (B/S) | F28: NID
A29: Cost: Commercial Bond (Pre Acq Interest) | B29: Pre Acq Coupon: Foreign Corporate Bonds | C29: =OFFSET(Map!$B$42,MATCH(MapPage!E29,mapxaxis,0),MATCH(MapPage!F29,mapyaxis,0)) -> 130115 | D29: =OFFSET(Map!$B$3,MATCH(MapPage!E29,mapxaxis,0),MATCH(MapPage!F29,mapyaxis,0)) -> 21260 | E29: Pre Acq Coupon | F29: Foreign Corporate Bonds
A30: Cost: Commercial Bond (Pre Acq Interest) | B30: Pre Acq Coupon: Local Corporate Bonds | C30: =OFFSET(Map!$B$42,MATCH(MapPage!E30,mapxaxis,0),MATCH(MapPage!F30,mapyaxis,0)) -> 130110 | D30: =OFFSET(Map!$B$3,MATCH(MapPage!E30,mapxaxis,0),MATCH(MapPage!F30,mapyaxis,0)) -> 21260 | E30: Pre Acq Coupon | F30: Local Corporate Bonds
A31: ProvUnGnLRes: Bond Impairment | B31: Prov for Dimunition in Value (B/S): Foreign Corporate Bonds | C31: =OFFSET(Map!$B$42,MATCH(MapPage!E31,mapxaxis,0),MATCH(MapPage!F31,mapyaxis,0)) -> 160000 | D31: =OFFSET(Map!$B$3,MATCH(MapPage!E31,mapxaxis,0),MATCH(MapPage!F31,mapyaxis,0)) -> 53253 | E31: Prov for Dimunition in Value (B/S) | F31: Foreign Corporate Bonds
A32: ProvUnGnLRes: Bond Impairment | B32: =E32&": "&F32 -> Prov for Dimunition in Value (B/S): Local Corporate Bonds | C32: =OFFSET(Map!$B$42,MATCH(MapPage!E32,mapxaxis,0),MATCH(MapPage!F32,mapyaxis,0)) -> 160000 | D32: =OFFSET(Map!$B$3,MATCH(MapPage!E32,mapxaxis,0),MATCH(MapPage!F32,mapyaxis,0)) -> 53253 | E32: Prov for Dimunition in Value (B/S) | F32: Local Corporate Bonds
A33: ProvUnGnLRes: Bond Impairment | B33: =E33&": "&F33 -> Prov for Dimunition in Value (B/S): Local MGS | C33: =OFFSET(Map!$B$42,MATCH(MapPage!E33,mapxaxis,0),MATCH(MapPage!F33,mapyaxis,0)) -> 160000 | D33: =OFFSET(Map!$B$3,MATCH(MapPage!E33,mapxaxis,0),MATCH(MapPage!F33,mapyaxis,0)) -> 53253 | E33: Prov for Dimunition in Value (B/S) | F33: Local MGS
A34: ProvUnGnLRes: Bond Impairment | B34: Prov for Dimunition in Value (B/S): REITS | C34: =OFFSET(Map!$B$42,MATCH(MapPage!E34,mapxaxis,0),MATCH(MapPage!F34,mapyaxis,0)) -> 160000 | D34: =OFFSET(Map!$B$3,MATCH(MapPage!E34,mapxaxis,0),MATCH(MapPage!F34,mapyaxis,0)) -> 53551 | E34: Prov for Dimunition in Value (B/S) | F34: REITS
A35: ProvUnGnLRes: Bond Impairment | B35: Prov for Dimunition in Value (B/S): Unit Trust (Amcash Plus) | C35: =OFFSET(Map!$B$42,MATCH(MapPage!E35,mapxaxis,0),MATCH(MapPage!F35,mapyaxis,0)) -> 160000 | D35: =OFFSET(Map!$B$3,MATCH(MapPage!E35,mapxaxis,0),MATCH(MapPage!F35,mapyaxis,0)) -> 53453 | E35: Prov for Dimunition in Value (B/S) | F35: Unit Trust (Amcash Plus)
A36: ProvUnGnLRes: Bond Impairment | B36: Prov for Dimunition in Value (B/S): Unit Trust (CIMB P.- Bond Fund) | C36: =OFFSET(Map!$B$42,MATCH(MapPage!E36,mapxaxis,0),MATCH(MapPage!F36,mapyaxis,0)) -> 160000 | D36: =OFFSET(Map!$B$3,MATCH(MapPage!E36,mapxaxis,0),MATCH(MapPage!F36,mapyaxis,0)) -> 53453 | E36: Prov for Dimunition in Value (B/S) | F36: Unit Trust (CIMB P.- Bond Fund)
A37: ProvUnGnLRes: Bond Impairment | B37: Prov for Dimunition in Value (B/S): Unit Trust (Hwang Enhanced Cash Fund) | C37: =OFFSET(Map!$B$42,MATCH(MapPage!E37,mapxaxis,0),MATCH(MapPage!F37,mapyaxis,0)) -> 160000 | D37: =OFFSET(Map!$B$3,MATCH(MapPage!E37,mapxaxis,0),MATCH(MapPage!F37,mapyaxis,0)) -> 53453 | E37: Prov for Dimunition in Value (B/S) | F37: Unit Trust (Hwang Enhanced Cash Fund)
A38: ProvUnGnLRes: Bond Impairment | B38: Prov for Dimunition in Value (B/S): Unit Trust (Nomura i-cash fund) | C38: =OFFSET(Map!$B$42,MATCH(MapPage!E38,mapxaxis,0),MATCH(MapPage!F38,mapyaxis,0)) -> 160000 | D38: =OFFSET(Map!$B$3,MATCH(MapPage!E38,mapxaxis,0),MATCH(MapPage!F38,mapyaxis,0)) -> 53453 | E38: Prov for Dimunition in Value (B/S) | F38: Unit Trust (Nomura i-cash fund)
A39: ProvUnGnLRes: Bond Impairment | B39: Prov for Dimunition in Value (B/S): Foreign MGS | C39: =OFFSET(Map!$B$42,MATCH(MapPage!E39,mapxaxis,0),MATCH(MapPage!F39,mapyaxis,0)) -> 160000 | D39: =OFFSET(Map!$B$3,MATCH(MapPage!E39,mapxaxis,0),MATCH(MapPage!F39,mapyaxis,0)) -> 53253 | E39: Prov for Dimunition in Value (B/S) | F39: Foreign MGS
A40: Debtor: Others Investment Debtors | B40: Debtor: Foreign Corporate Bonds | C40: =OFFSET(Map!$B$42,MATCH(MapPage!E40,mapxaxis,0),MATCH(MapPage!F40,mapyaxis,0)) -> 200100 | D40: =OFFSET(Map!$B$3,MATCH(MapPage!E40,mapxaxis,0),MATCH(MapPage!F40,mapyaxis,0)) -> 58780 | E40: Debtor | F40: Foreign Corporate Bonds
A41: Debtor: Others Investment Debtors | B41: Debtor: Foreign Deposit | C41: =OFFSET(Map!$B$42,MATCH(MapPage!E41,mapxaxis,0),MATCH(MapPage!F41,mapyaxis,0)) -> 200100 | D41: =OFFSET(Map!$B$3,MATCH(MapPage!E41,mapxaxis,0),MATCH(MapPage!F41,mapyaxis,0)) -> 58780 | E41: Debtor | F41: Foreign Deposit
A42: Debtor: Others Investment Debtors | B42: Debtor: Local Corporate Bonds | C42: =OFFSET(Map!$B$42,MATCH(MapPage!E42,mapxaxis,0),MATCH(MapPage!F42,mapyaxis,0)) -> 200100 | D42: =OFFSET(Map!$B$3,MATCH(MapPage!E42,mapxaxis,0),MATCH(MapPage!F42,mapyaxis,0)) -> 58780 | E42: Debtor | F42: Local Corporate Bonds
A43: Debtor: Others Investment Debtors | B43: Debtor: Local Deposit | C43: =OFFSET(Map!$B$42,MATCH(MapPage!E43,mapxaxis,0),MATCH(MapPage!F43,mapyaxis,0)) -> 200100 | D43: =OFFSET(Map!$B$3,MATCH(MapPage!E43,mapxaxis,0),MATCH(MapPage!F43,mapyaxis,0)) -> 58780 | E43: Debtor | F43: Local Deposit
A44: Debtor: Others Investment Debtors | B44: Debtor: Local MGS | C44: =OFFSET(Map!$B$42,MATCH(MapPage!E44,mapxaxis,0),MATCH(MapPage!F44,mapyaxis,0)) -> 200100 | D44: =OFFSET(Map!$B$3,MATCH(MapPage!E44,mapxaxis,0),MATCH(MapPage!F44,mapyaxis,0)) -> 58780 | E44: Debtor | F44: Local MGS
A45: Debtor: Others Investment Debtors | B45: Debtor: Money Market | C45: =OFFSET(Map!$B$42,MATCH(MapPage!E45,mapxaxis,0),MATCH(MapPage!F45,mapyaxis,0)) -> 200100 | D45: =OFFSET(Map!$B$3,MATCH(MapPage!E45,mapxaxis,0),MATCH(MapPage!F45,mapyaxis,0)) -> 58780 | E45: Debtor | F45: Money Market
A46: Debtor: Others Investment Debtors | B46: Debtor: NID | C46: =OFFSET(Map!$B$42,MATCH(MapPage!E46,mapxaxis,0),MATCH(MapPage!F46,mapyaxis,0)) -> 200100 | D46: =OFFSET(Map!$B$3,MATCH(MapPage!E46,mapxaxis,0),MATCH(MapPage!F46,mapyaxis,0)) -> 58780 | E46: Debtor | F46: NID
A47: Debtor: Others Investment Debtors | B47: Debtor: Foreign MGS | C47: =OFFSET(Map!$B$42,MATCH(MapPage!E47,mapxaxis,0),MATCH(MapPage!F47,mapyaxis,0)) -> 200100 | D47: =OFFSET(Map!$B$3,MATCH(MapPage!E47,mapxaxis,0),MATCH(MapPage!F47,mapyaxis,0)) -> 58780 | E47: Debtor | F47: Foreign MGS
A48: Debtor: Amount Due From Local Broker | B48: Debtor: Foreign Listed Shares | C48: =OFFSET(Map!$B$42,MATCH(MapPage!E48,mapxaxis,0),MATCH(MapPage!F48,mapyaxis,0)) -> 200200 | D48: =OFFSET(Map!$B$3,MATCH(MapPage!E48,mapxaxis,0),MATCH(MapPage!F48,mapyaxis,0)) -> 58780 | E48: Debtor | F48: Foreign Listed Shares
A49: Debtor: Amount Due From Local Broker | B49: =E49&": "&F49 -> Debtor: Local Listed Shares | C49: =OFFSET(Map!$B$42,MATCH(MapPage!E49,mapxaxis,0),MATCH(MapPage!F49,mapyaxis,0)) -> 200200 | D49: =OFFSET(Map!$B$3,MATCH(MapPage!E49,mapxaxis,0),MATCH(MapPage!F49,mapyaxis,0)) -> 58780 | E49: Debtor | F49: Local Listed Shares
A50: Debtor: Amount Due From Local Broker | B50: =E50&": "&F50 -> Debtor: REITS | C50: =OFFSET(Map!$B$42,MATCH(MapPage!E50,mapxaxis,0),MATCH(MapPage!F50,mapyaxis,0)) -> 200200 | D50: =OFFSET(Map!$B$3,MATCH(MapPage!E50,mapxaxis,0),MATCH(MapPage!F50,mapyaxis,0)) -> 58780 | E50: Debtor | F50: REITS
A51: Debtor: Amount Due From Local Broker | B51: =E51&": "&F51 -> Debtor: Unit Trust (Amcash Plus) | C51: =OFFSET(Map!$B$42,MATCH(MapPage!E51,mapxaxis,0),MATCH(MapPage!F51,mapyaxis,0)) -> 200200 | D51: =OFFSET(Map!$B$3,MATCH(MapPage!E51,mapxaxis,0),MATCH(MapPage!F51,mapyaxis,0)) -> 58780 | E51: Debtor | F51: Unit Trust (Amcash Plus)
A52: Debtor: Amount Due From Local Broker | B52: Debtor: Unit Trust (CIMB P.- Bond Fund) | C52: =OFFSET(Map!$B$42,MATCH(MapPage!E52,mapxaxis,0),MATCH(MapPage!F52,mapyaxis,0)) -> 200200 | D52: =OFFSET(Map!$B$3,MATCH(MapPage!E52,mapxaxis,0),MATCH(MapPage!F52,mapyaxis,0)) -> 58780 | E52: Debtor | F52: Unit Trust (CIMB P.- Bond Fund)
A53: Debtor: Amount Due From Local Broker | B53: Debtor: Unit Trust (Hwang Enhanced Cash Fund) | C53: =OFFSET(Map!$B$42,MATCH(MapPage!E53,mapxaxis,0),MATCH(MapPage!F53,mapyaxis,0)) -> 200200 | D53: =OFFSET(Map!$B$3,MATCH(MapPage!E53,mapxaxis,0),MATCH(MapPage!F53,mapyaxis,0)) -> 58780 | E53: Debtor | F53: Unit Trust (Hwang Enhanced Cash Fund)
A54: Debtor: Amount Due From Local Broker | B54: Debtor: Unit Trust (Nomura i-cash fund) | C54: =OFFSET(Map!$B$42,MATCH(MapPage!E54,mapxaxis,0),MATCH(MapPage!F54,mapyaxis,0)) -> 200200 | D54: =OFFSET(Map!$B$3,MATCH(MapPage!E54,mapxaxis,0),MATCH(MapPage!F54,mapyaxis,0)) -> 58780 | E54: Debtor | F54: Unit Trust (Nomura i-cash fund)
A55: Debtor: Amount Due From Local Broker | B55: Debtor: Unquoted Shares | C55: =OFFSET(Map!$B$42,MATCH(MapPage!E55,mapxaxis,0),MATCH(MapPage!F55,mapyaxis,0)) -> 200200 | D55: =OFFSET(Map!$B$3,MATCH(MapPage!E55,mapxaxis,0),MATCH(MapPage!F55,mapyaxis,0)) -> 58780 | E55: Debtor | F55: Unquoted Shares
A56: Creditor: Others Invesment Creditor | B56: Creditor: Foreign Corporate Bonds | C56: =OFFSET(Map!$B$42,MATCH(MapPage!E56,mapxaxis,0),MATCH(MapPage!F56,mapyaxis,0)) -> 300100 | D56: =OFFSET(Map!$B$3,MATCH(MapPage!E56,mapxaxis,0),MATCH(MapPage!F56,mapyaxis,0)) -> 58780 | E56: Creditor | F56: Foreign Corporate Bonds
A57: Creditor: Others Invesment Creditor | B57: Creditor: Foreign Deposit | C57: =OFFSET(Map!$B$42,MATCH(MapPage!E57,mapxaxis,0),MATCH(MapPage!F57,mapyaxis,0)) -> 300100 | D57: =OFFSET(Map!$B$3,MATCH(MapPage!E57,mapxaxis,0),MATCH(MapPage!F57,mapyaxis,0)) -> 58780 | E57: Creditor | F57: Foreign Deposit
A58: Creditor: Others Invesment Creditor | B58: Creditor: Local Corporate Bonds | C58: =OFFSET(Map!$B$42,MATCH(MapPage!E58,mapxaxis,0),MATCH(MapPage!F58,mapyaxis,0)) -> 300100 | D58: =OFFSET(Map!$B$3,MATCH(MapPage!E58,mapxaxis,0),MATCH(MapPage!F58,mapyaxis,0)) -> 58780 | E58: Creditor | F58: Local Corporate Bonds
A59: Creditor: Others Invesment Creditor | B59: Creditor: Local Deposit | C59: =OFFSET(Map!$B$42,MATCH(MapPage!E59,mapxaxis,0),MATCH(MapPage!F59,mapyaxis,0)) -> 300100 | D59: =OFFSET(Map!$B$3,MATCH(MapPage!E59,mapxaxis,0),MATCH(MapPage!F59,mapyaxis,0)) -> 58780 | E59: Creditor | F59: Local Deposit
A60: Creditor: Others Invesment Creditor | B60: Creditor: Local MGS | C60: =OFFSET(Map!$B$42,MATCH(MapPage!E60,mapxaxis,0),MATCH(MapPage!F60,mapyaxis,0)) -> 300100 | D60: =OFFSET(Map!$B$3,MATCH(MapPage!E60,mapxaxis,0),MATCH(MapPage!F60,mapyaxis,0)) -> 58780 | E60: Creditor | F60: Local MGS
A61: Creditor: Others Invesment Creditor | B61: Creditor: Money Market | C61: =OFFSET(Map!$B$42,MATCH(MapPage!E61,mapxaxis,0),MATCH(MapPage!F61,mapyaxis,0)) -> 300100 | D61: =OFFSET(Map!$B$3,MATCH(MapPage!E61,mapxaxis,0),MATCH(MapPage!F61,mapyaxis,0)) -> 58780 | E61: Creditor | F61: Money Market
A62: Creditor: Others Invesment Creditor | B62: Creditor: NID | C62: =OFFSET(Map!$B$42,MATCH(MapPage!E62,mapxaxis,0),MATCH(MapPage!F62,mapyaxis,0)) -> 300100 | D62: =OFFSET(Map!$B$3,MATCH(MapPage!E62,mapxaxis,0),MATCH(MapPage!F62,mapyaxis,0)) -> 58780 | E62: Creditor | F62: NID
A63: Creditor: Others Invesment Creditor | B63: Creditor: Foreign MGS | C63: =OFFSET(Map!$B$42,MATCH(MapPage!E63,mapxaxis,0),MATCH(MapPage!F63,mapyaxis,0)) -> 300100 | D63: =OFFSET(Map!$B$3,MATCH(MapPage!E63,mapxaxis,0),MATCH(MapPage!F63,mapyaxis,0)) -> 58780 | E63: Creditor | F63: Foreign MGS
A64: Creditor: Amount Due To Local Stock Broker | B64: Creditor: Foreign Listed Shares | C64: =OFFSET(Map!$B$42,MATCH(MapPage!E64,mapxaxis,0),MATCH(MapPage!F64,mapyaxis,0)) -> 300200 | D64: =OFFSET(Map!$B$3,MATCH(MapPage!E64,mapxaxis,0),MATCH(MapPage!F64,mapyaxis,0)) -> 58780 | E64: Creditor | F64: Foreign Listed Shares
A65: Creditor: Amount Due To Local Stock Broker | B65: =E65&": "&F65 -> Creditor: Local Listed Shares | C65: =OFFSET(Map!$B$42,MATCH(MapPage!E65,mapxaxis,0),MATCH(MapPage!F65,mapyaxis,0)) -> 300200 | D65: =OFFSET(Map!$B$3,MATCH(MapPage!E65,mapxaxis,0),MATCH(MapPage!F65,mapyaxis,0)) -> 58780 | E65: Creditor | F65: Local Listed Shares
A66: Creditor: Amount Due To Local Stock Broker | B66: =E66&": "&F66 -> Creditor: REITS | C66: =OFFSET(Map!$B$42,MATCH(MapPage!E66,mapxaxis,0),MATCH(MapPage!F66,mapyaxis,0)) -> 300200 | D66: =OFFSET(Map!$B$3,MATCH(MapPage!E66,mapxaxis,0),MATCH(MapPage!F66,mapyaxis,0)) -> 58780 | E66: Creditor | F66: REITS
A67: Creditor: Amount Due To Local Stock Broker | B67: =E67&": "&F67 -> Creditor: Unquoted Shares | C67: =OFFSET(Map!$B$42,MATCH(MapPage!E67,mapxaxis,0),MATCH(MapPage!F67,mapyaxis,0)) -> 300200 | D67: =OFFSET(Map!$B$3,MATCH(MapPage!E67,mapxaxis,0),MATCH(MapPage!F67,mapyaxis,0)) -> 58780 | E67: Creditor | F67: Unquoted Shares
A68: Bank: Default Bank | B68: BK KL RHB A/C1 21401701031333 | C68: 500000 | D68: 51284 | E68: X | F68: Y
A69: Bank: Default Bank | B69: P/Folio Mgt - HwangDBs Investment | C69: 500000 | D69: 51503 | E69: X | F69: Y
A70: Realised GnL: Local Listed Share | B70: =E70&": "&F70 -> Realised Income: Local Listed Shares | C70: =OFFSET(Map!$B$42,MATCH(MapPage!E70,mapxaxis,0),MATCH(MapPage!F70,mapyaxis,0)) -> 600010 | D70: =OFFSET(Map!$B$3,MATCH(MapPage!E70,mapxaxis,0),MATCH(MapPage!F70,mapyaxis,0)) -> 25410 | E70: Realised Income | F70: Local Listed Shares
A71: Realised GnL: Foreign Investment | B71: =E71&": "&F71 -> Realised Income: Foreign Listed Shares | C71: =OFFSET(Map!$B$42,MATCH(MapPage!E71,mapxaxis,0),MATCH(MapPage!F71,mapyaxis,0)) -> 600015 | D71: =OFFSET(Map!$B$3,MATCH(MapPage!E71,mapxaxis,0),MATCH(MapPage!F71,mapyaxis,0)) -> 25410 | E71: Realised Income | F71: Foreign Listed Shares
A72: Realised GnL: Commercial Bond | B72: Realised Income: Local Corporate Bonds | C72: =OFFSET(Map!$B$42,MATCH(MapPage!E72,mapxaxis,0),MATCH(MapPage!F72,mapyaxis,0)) -> 600110 | D72: =OFFSET(Map!$B$3,MATCH(MapPage!E72,mapxaxis,0),MATCH(MapPage!F72,mapyaxis,0)) -> 25430 | E72: Realised Income | F72: Local Corporate Bonds
A73: Gains: Foreign Bonds | B73: Realised Income: Foreign Corporate Bonds | C73: =OFFSET(Map!$B$42,MATCH(MapPage!E73,mapxaxis,0),MATCH(MapPage!F73,mapyaxis,0)) -> 600115 | D73: =OFFSET(Map!$B$3,MATCH(MapPage!E73,mapxaxis,0),MATCH(MapPage!F73,mapyaxis,0)) -> 25430 | E73: Realised Income | F73: Foreign Corporate Bonds
A74: AmortPL: Commercial Bond | B74: Amort: Local Corporate Bonds | C74: =OFFSET(Map!$B$42,MATCH(MapPage!E74,mapxaxis,0),MATCH(MapPage!F74,mapyaxis,0)) -> 610110 | D74: =OFFSET(Map!$B$3,MATCH(MapPage!E74,mapxaxis,0),MATCH(MapPage!F74,mapyaxis,0)) -> 21650 | E74: Amort | F74: Local Corporate Bonds
A75: AmortPL: Foreign Bonds | B75: Amort: Foreign Corporate Bonds | C75: =OFFSET(Map!$B$42,MATCH(MapPage!E75,mapxaxis,0),MATCH(MapPage!F75,mapyaxis,0)) -> 610115 | D75: =OFFSET(Map!$B$3,MATCH(MapPage!E75,mapxaxis,0),MATCH(MapPage!F75,mapyaxis,0)) -> 21650 | E75: Amort | F75: Foreign Corporate Bonds
A76: AmortPL: Malaysia Government Securities | B76: Amort: Local MGS | C76: =OFFSET(Map!$B$42,MATCH(MapPage!E76,mapxaxis,0),MATCH(MapPage!F76,mapyaxis,0)) -> 610140 | D76: =OFFSET(Map!$B$3,MATCH(MapPage!E76,mapxaxis,0),MATCH(MapPage!F76,mapyaxis,0)) -> 21612 | E76: Amort | F76: Local MGS
A77: AmortPL: Malaysia Government Securities | B77: Amort: Foreign MGS | C77: =OFFSET(Map!$B$42,MATCH(MapPage!E77,mapxaxis,0),MATCH(MapPage!F77,mapyaxis,0)) -> 610140 | D77: =OFFSET(Map!$B$3,MATCH(MapPage!E77,mapxaxis,0),MATCH(MapPage!F77,mapyaxis,0)) -> 21612 | E77: Amort | F77: Foreign MGS
A78: AmortPL: NID | B78: Amort: NID | C78: =OFFSET(Map!$B$42,MATCH(MapPage!E78,mapxaxis,0),MATCH(MapPage!F78,mapyaxis,0)) -> 610190 | D78: =OFFSET(Map!$B$3,MATCH(MapPage!E78,mapxaxis,0),MATCH(MapPage!F78,mapyaxis,0)) -> 21630 | E78: Amort | F78: NID
A79: AccrePL: Commercial Bond | B79: Accreation: Local Corporate Bonds | C79: =OFFSET(Map!$B$42,MATCH(MapPage!E79,mapxaxis,0),MATCH(MapPage!F79,mapyaxis,0)) -> 620110 | D79: =OFFSET(Map!$B$3,MATCH(MapPage!E79,mapxaxis,0),MATCH(MapPage!F79,mapyaxis,0)) -> 21660 | E79: Accreation | F79: Local Corporate Bonds
A80: AccrePL: Foreign Bonds | B80: Accreation: Foreign Corporate Bonds | C80: =OFFSET(Map!$B$42,MATCH(MapPage!E80,mapxaxis,0),MATCH(MapPage!F80,mapyaxis,0)) -> 620115 | D80: =OFFSET(Map!$B$3,MATCH(MapPage!E80,mapxaxis,0),MATCH(MapPage!F80,mapyaxis,0)) -> 21660 | E80: Accreation | F80: Foreign Corporate Bonds
A81: Income: Commercial Bond | B81: Interest Income: Local Corporate Bonds | C81: =OFFSET(Map!$B$42,MATCH(MapPage!E81,mapxaxis,0),MATCH(MapPage!F81,mapyaxis,0)) -> 630110 | D81: =OFFSET(Map!$B$3,MATCH(MapPage!E81,mapxaxis,0),MATCH(MapPage!F81,mapyaxis,0)) -> 21260 | E81: Interest Income | F81: Local Corporate Bonds
A82: Income: Foreign Bonds | B82: Interest Income: Foreign Corporate Bonds | C82: =OFFSET(Map!$B$42,MATCH(MapPage!E82,mapxaxis,0),MATCH(MapPage!F82,mapyaxis,0)) -> 630115 | D82: =OFFSET(Map!$B$3,MATCH(MapPage!E82,mapxaxis,0),MATCH(MapPage!F82,mapyaxis,0)) -> 21260 | E82: Interest Income | F82: Foreign Corporate Bonds
A83: Income: Malaysia Government Securities | B83: Interest Income: Local MGS | C83: =OFFSET(Map!$B$42,MATCH(MapPage!E83,mapxaxis,0),MATCH(MapPage!F83,mapyaxis,0)) -> 630140 | D83: =OFFSET(Map!$B$3,MATCH(MapPage!E83,mapxaxis,0),MATCH(MapPage!F83,mapyaxis,0)) -> 21210 | E83: Interest Income | F83: Local MGS
A84: Income: Malaysia Government Securities | B84: Interest Income: Foreign MGS | C84: =OFFSET(Map!$B$42,MATCH(MapPage!E84,mapxaxis,0),MATCH(MapPage!F84,mapyaxis,0)) -> 630140 | D84: =OFFSET(Map!$B$3,MATCH(MapPage!E84,mapxaxis,0),MATCH(MapPage!F84,mapyaxis,0)) -> 21210 | E84: Interest Income | F84: Foreign MGS
A85: Income: NID | B85: Interest Income: NID | C85: =OFFSET(Map!$B$42,MATCH(MapPage!E85,mapxaxis,0),MATCH(MapPage!F85,mapyaxis,0)) -> 630190 | D85: =OFFSET(Map!$B$3,MATCH(MapPage!E85,mapxaxis,0),MATCH(MapPage!F85,mapyaxis,0)) -> 21140 | E85: Interest Income | F85: NID
A86: Income: Local Money Market Placement | B86: Interest Income: Money Market | C86: =OFFSET(Map!$B$42,MATCH(MapPage!E86,mapxaxis,0),MATCH(MapPage!F86,mapyaxis,0)) -> 630210 | D86: =OFFSET(Map!$B$3,MATCH(MapPage!E86,mapxaxis,0),MATCH(MapPage!F86,mapyaxis,0)) -> 21120 | E86: Interest Income | F86: Money Market
A87: Income: FD Placement | B87: Interest Income: Foreign Deposit | C87: =OFFSET(Map!$B$42,MATCH(MapPage!E87,mapxaxis,0),MATCH(MapPage!F87,mapyaxis,0)) -> 630220 | D87: =OFFSET(Map!$B$3,MATCH(MapPage!E87,mapxaxis,0),MATCH(MapPage!F87,mapyaxis,0)) -> 21110 | E87: Interest Income | F87: Foreign Deposit
A88: Income: FD Placement | B88: Interest Income: Local Deposit | C88: =OFFSET(Map!$B$42,MATCH(MapPage!E88,mapxaxis,0),MATCH(MapPage!F88,mapyaxis,0)) -> 630220 | D88: =OFFSET(Map!$B$3,MATCH(MapPage!E88,mapxaxis,0),MATCH(MapPage!F88,mapyaxis,0)) -> 21110 | E88: Interest Income | F88: Local Deposit
A89: Dividend: Local Share Gross Dividend | B89: Dividend Income: Local Listed Shares | C89: =OFFSET(Map!$B$42,MATCH(MapPage!E89,mapxaxis,0),MATCH(MapPage!F89,mapyaxis,0)) -> 635010 | D89: =OFFSET(Map!$B$3,MATCH(MapPage!E89,mapxaxis,0),MATCH(MapPage!F89,mapyaxis,0)) -> 21310 | E89: Dividend Income | F89: Local Listed Shares
A90: Dividend: Local Share Gross Dividend | B90: Dividend Income: Foreign Listed Shares | C90: =OFFSET(Map!$B$42,MATCH(MapPage!E90,mapxaxis,0),MATCH(MapPage!F90,mapyaxis,0)) -> 635015 | D90: =OFFSET(Map!$B$3,MATCH(MapPage!E90,mapxaxis,0),MATCH(MapPage!F90,mapyaxis,0)) -> 21310 | E90: Dividend Income | F90: Foreign Listed Shares
A91: Dividend: Local Unit Trust Gross Dividend | B91: Dividend Income: Unit Trust (Amcash Plus) | C91: =OFFSET(Map!$B$42,MATCH(MapPage!E91,mapxaxis,0),MATCH(MapPage!F91,mapyaxis,0)) -> 635430 | D91: =OFFSET(Map!$B$3,MATCH(MapPage!E91,mapxaxis,0),MATCH(MapPage!F91,mapyaxis,0)) -> 21340 | E91: Dividend Income | F91: Unit Trust (Amcash Plus)
A92: Dividend: Local Unit Trust Gross Dividend | B92: Dividend Income: Unit Trust (Hwang Enhanced Cash Fund) | C92: =OFFSET(Map!$B$42,MATCH(MapPage!E92,mapxaxis,0),MATCH(MapPage!F92,mapyaxis,0)) -> 635430 | D92: =OFFSET(Map!$B$3,MATCH(MapPage!E92,mapxaxis,0),MATCH(MapPage!F92,mapyaxis,0)) -> 21340 | E92: Dividend Income | F92: Unit Trust (Hwang Enhanced Cash Fund)
A93: Dividend: Local Unit Trust Gross Dividend | B93: Dividend Income: Unit Trust (Nomura i-cash fund) | C93: =OFFSET(Map!$B$42,MATCH(MapPage!E93,mapxaxis,0),MATCH(MapPage!F93,mapyaxis,0)) -> 635430 | D93: =OFFSET(Map!$B$3,MATCH(MapPage!E93,mapxaxis,0),MATCH(MapPage!F93,mapyaxis,0)) -> 21340 | E93: Dividend Income | F93: Unit Trust (Nomura i-cash fund)
A94: Dividend: Local Unit Trust Gross Dividend | B94: Dividend Income: Unit Trust (CIMB P.- Bond Fund) | C94: =OFFSET(Map!$B$42,MATCH(MapPage!E94,mapxaxis,0),MATCH(MapPage!F94,mapyaxis,0)) -> 635440 | D94: =OFFSET(Map!$B$3,MATCH(MapPage!E94,mapxaxis,0),MATCH(MapPage!F94,mapyaxis,0)) -> 21340 | E94: Dividend Income | F94: Unit Trust (CIMB P.- Bond Fund)
A95: IncomeVal: Commercial Bond (Valuation) | B95: Accrued Income: Local Corporate Bonds | C95: =OFFSET(Map!$B$42,MATCH(MapPage!E95,mapxaxis,0),MATCH(MapPage!F95,mapyaxis,0)) -> 639110 | D95: =OFFSET(Map!$B$3,MATCH(MapPage!E95,mapxaxis,0),MATCH(MapPage!F95,mapyaxis,0)) -> 57130 | E95: Accrued Income | F95: Local Corporate Bonds
A96: IncomeVal: Foreign Bonds | B96: Accrued Income: Foreign Corporate Bonds | C96: =OFFSET(Map!$B$42,MATCH(MapPage!E96,mapxaxis,0),MATCH(MapPage!F96,mapyaxis,0)) -> 639115 | D96: =OFFSET(Map!$B$3,MATCH(MapPage!E96,mapxaxis,0),MATCH(MapPage!F96,mapyaxis,0)) -> 57130 | E96: Accrued Income | F96: Foreign Corporate Bonds
A97: IncomeVal: Malaysia Government Securities | B97: Accrued Income: Local MGS | C97: =OFFSET(Map!$B$42,MATCH(MapPage!E97,mapxaxis,0),MATCH(MapPage!F97,mapyaxis,0)) -> 639140 | D97: =OFFSET(Map!$B$3,MATCH(MapPage!E97,mapxaxis,0),MATCH(MapPage!F97,mapyaxis,0)) -> 57130 | E97: Accrued Income | F97: Local MGS
A98: IncomeVal: Malaysia Government Securities | B98: Accrued Income: Foreign MGS | C98: =OFFSET(Map!$B$42,MATCH(MapPage!E98,mapxaxis,0),MATCH(MapPage!F98,mapyaxis,0)) -> 639140 | D98: =OFFSET(Map!$B$3,MATCH(MapPage!E98,mapxaxis,0),MATCH(MapPage!F98,mapyaxis,0)) -> 57130 | E98: Accrued Income | F98: Foreign MGS
A99: IncomeVal: Local Money Market Placement (Valuation) | B99: Accrued Income: Money Market | C99: =OFFSET(Map!$B$42,MATCH(MapPage!E99,mapxaxis,0),MATCH(MapPage!F99,mapyaxis,0)) -> 639210 | D99: =OFFSET(Map!$B$3,MATCH(MapPage!E99,mapxaxis,0),MATCH(MapPage!F99,mapyaxis,0)) -> 57120 | E99: Accrued Income | F99: Money Market
A100: IncomeVal: FD Placement | B100: Accrued Income: Foreign Deposit | C100: =OFFSET(Map!$B$42,MATCH(MapPage!E100,mapxaxis,0),MATCH(MapPage!F100,mapyaxis,0)) -> 639220 | D100: =OFFSET(Map!$B$3,MATCH(MapPage!E100,mapxaxis,0),MATCH(MapPage!F100,mapyaxis,0)) -> 57110 | E100: Accrued Income | F100: Foreign Deposit
A101: IncomeVal: FD Placement | B101: Accrued Income: Local Deposit | C101: =OFFSET(Map!$B$42,MATCH(MapPage!E101,mapxaxis,0),MATCH(MapPage!F101,mapyaxis,0)) -> 639220 | D101: =OFFSET(Map!$B$3,MATCH(MapPage!E101,mapxaxis,0),MATCH(MapPage!F101,mapyaxis,0)) -> 57110 | E101: Accrued Income | F101: Local Deposit
A102: ProvUnGnL: Local Listed Share | B102: Unrealised Gain (p/l): Local Listed Shares | C102: =OFFSET(Map!$B$42,MATCH(MapPage!E102,mapxaxis,0),MATCH(MapPage!F102,mapyaxis,0)) -> 689010 | D102: =OFFSET(Map!$B$3,MATCH(MapPage!E102,mapxaxis,0),MATCH(MapPage!F102,mapyaxis,0)) -> 25210 | E102: Unrealised Gain (p/l) | F102: Local Listed Shares
A103: ProvUnGnL: Foreign Listed Equities | B103: Unrealised Gain (p/l): Foreign Listed Shares | C103: =OFFSET(Map!$B$42,MATCH(MapPage!E103,mapxaxis,0),MATCH(MapPage!F103,mapyaxis,0)) -> 689015 | D103: =OFFSET(Map!$B$3,MATCH(MapPage!E103,mapxaxis,0),MATCH(MapPage!F103,mapyaxis,0)) -> 25210 | E103: Unrealised Gain (p/l) | F103: Foreign Listed Shares
A104: Expenses: Bank Charges | B104: Expenses: Bank Charges | C104: 710102 | D104: 12340 | E104: X | F104: Y
A105: Expenses: Local Listed Securities Investment Cost | B105: Expenses: Local Brokerage Fee | C105: 799010 | D105: 25420 | E105: X | F105: Y
A106: Profit: Last Year Unrealised Reserved | B106: =E106&": "&F106 -> Unrealised Reserve: Foreign Corporate Bonds | C106: =OFFSET(Map!$B$42,MATCH(MapPage!E106,mapxaxis,0),MATCH(MapPage!F106,mapyaxis,0)) -> 810000 | D106: =OFFSET(Map!$B$3,MATCH(MapPage!E106,mapxaxis,0),MATCH(MapPage!F106,mapyaxis,0)) -> 94100 | E106: Unrealised Reserve | F106: Foreign Corporate Bonds
A107: Profit: Last Year Unrealised Reserved | B107: =E107&": "&F107 -> Unrealised Reserve: Local Corporate Bonds | C107: =OFFSET(Map!$B$42,MATCH(MapPage!E107,mapxaxis,0),MATCH(MapPage!F107,mapyaxis,0)) -> 810000 | D107: =OFFSET(Map!$B$3,MATCH(MapPage!E107,mapxaxis,0),MATCH(MapPage!F107,mapyaxis,0)) -> 94100 | E107: Unrealised Reserve | F107: Local Corporate Bonds
A108: Profit: Last Year Unrealised Reserved | B108: Unrealised Reserve: Unit Trust (Amcash Plus) | C108: =OFFSET(Map!$B$42,MATCH(MapPage!E108,mapxaxis,0),MATCH(MapPage!F108,mapyaxis,0)) -> 810000 | D108: =OFFSET(Map!$B$3,MATCH(MapPage!E108,mapxaxis,0),MATCH(MapPage!F108,mapyaxis,0)) -> 94100 | E108: Unrealised Reserve | F108: Unit Trust (Amcash Plus)
A109: Profit: Last Year Unrealised Reserved | B109: Unrealised Reserve: Unit Trust (CIMB P.- Bond Fund) | C109: =OFFSET(Map!$B$42,MATCH(MapPage!E109,mapxaxis,0),MATCH(MapPage!F109,mapyaxis,0)) -> 810000 | D109: =OFFSET(Map!$B$3,MATCH(MapPage!E109,mapxaxis,0),MATCH(MapPage!F109,mapyaxis,0)) -> 94100 | E109: Unrealised Reserve | F109: Unit Trust (CIMB P.- Bond Fund)
A110: Profit: Last Year Unrealised Reserved | B110: Unrealised Reserve: Unit Trust (Hwang Enhanced Cash Fund) | C110: =OFFSET(Map!$B$42,MATCH(MapPage!E110,mapxaxis,0),MATCH(MapPage!F110,mapyaxis,0)) -> 810000 | D110: =OFFSET(Map!$B$3,MATCH(MapPage!E110,mapxaxis,0),MATCH(MapPage!F110,mapyaxis,0)) -> 94100 | E110: Unrealised Reserve | F110: Unit Trust (Hwang Enhanced Cash Fund)
A111: Profit: Last Year Unrealised Reserved | B111: Unrealised Reserve: Unit Trust (Nomura i-cash fund) | C111: =OFFSET(Map!$B$42,MATCH(MapPage!E111,mapxaxis,0),MATCH(MapPage!F111,mapyaxis,0)) -> 810000 | D111: =OFFSET(Map!$B$3,MATCH(MapPage!E111,mapxaxis,0),MATCH(MapPage!F111,mapyaxis,0)) -> 94100 | E111: Unrealised Reserve | F111: Unit Trust (Nomura i-cash fund)
A112: Profit: Last Year Realised Retained Profit | B112: Retain Profit: Foreign Corporate Bonds | C112: =OFFSET(Map!$B$42,MATCH(MapPage!E112,mapxaxis,0),MATCH(MapPage!F112,mapyaxis,0)) -> 830000 | D112: =OFFSET(Map!$B$3,MATCH(MapPage!E112,mapxaxis,0),MATCH(MapPage!F112,mapyaxis,0)) -> 999 | E112: Retain Profit | F112: Foreign Corporate Bonds
A113: Profit: Last Year Realised Retained Profit | B113: Retain Profit: Local Corporate Bonds | C113: =OFFSET(Map!$B$42,MATCH(MapPage!E113,mapxaxis,0),MATCH(MapPage!F113,mapyaxis,0)) -> 830000 | D113: =OFFSET(Map!$B$3,MATCH(MapPage!E113,mapxaxis,0),MATCH(MapPage!F113,mapyaxis,0)) -> 999 | E113: Retain Profit | F113: Local Corporate Bonds

Sheet Main
G1: =EOMONTH(valuedate,-MONTH(valuedate))+1 -> 2020-01-01 | H1: =EOMONTH(valuedate,-MONTH(valuedate)+3)+1 -> 2020-04-01 | J1: USD
G2: =EOMONTH(valuedate,-MONTH(valuedate)+6)+1 -> 2020-07-01 | H2: =EOMONTH(valuedate,-MONTH(valuedate)+9)+1 -> 2020-10-01
E7: ACCOUNTING UPLOAD SYSTEM
D9: Fund Code: | E9: %% | H9: All funds | I9: Fund(s) Excluded from Import
H10: AFS | I10: HWANG
D11: Value Date: | E11: 2020-12-14 | H11: AISF
H12: AMCF
D13: Reverse Date: | E13: 2020-12-07 | H13: CIMBBF
H14: HFFIII
D15: Last Upload Date: | E15: 2020-12-14 | H15: HFT
H16: HTM
D17: Current Data Date in Excel: | E17: 2020-12-14 | H17: HWAIIMAN
H18: HWANG
H19: HWECF
H20: NOMICF
H21: OIF
H22: OLRAF
H23: OSIF
H24: OSPEC
H25: SHF
H26: TMLAFS
H27: TMLHFT
H28: TMLHTM
H29: TMUT

Sheet Transfertext
A1: ="VERSION"&REPT(" ",25)&"42001" -> VERSION 42001
A2: =IF(InTB!K3=999," 999",InTB!K3)&REPT(" ",10)&YEAR(InTB!A3)&"0"&TEXT(InTB!A3,"mm")&TEXT(InTB!A3,"yyyymmdd")&REPT(" ",2)&"L"&REPT(" ",7)&REPT(" ",7)&TEXT(ABS(InTB!F3)*1000,"000000000000000000")&IF(InTB!F3>=0,"D","C")&REPT(" ",1)&"SINV "&"IMS "&InTB!B3&REPT(" ",15-LEN(InTB!B3))&"IMS: INVESTMENT"&REPT(" ",10)&TEXT(InTB!A3,"yyyymmdd")&YEAR(InTB!A3)&"0"&TEXT(InTB!A3,"mm")&TEXT(InTB!A3,"yyyymmdd")&REPT(" ",6)&REPT(" ",9)&TEXT(InTB!A3,"yyyymmdd")&YEAR(InTB!A3)&"0"&TEXT(InTB!A3,"mm")&"V"&REPT(" ",85)&"COT"&REPT(" ",12)&"KLZZZ "&"CN "&"OT "&REPT(" ",196) -> 12340 202001220201214 L 000000000000701000D SINV IMS HFT IMS: INVESTMENT 20201214202001220201214 202012142020012V COT KLZZZ CN OT
A3: =IF(InTB!K4=999," 999",InTB!K4)&REPT(" ",10)&YEAR(InTB!A4)&"0"&TEXT(InTB!A4,"mm")&TEXT(InTB!A4,"yyyymmdd")&REPT(" ",2)&"L"&REPT(" ",7)&REPT(" ",7)&TEXT(ABS(InTB!F4)*1000,"000000000000000000")&IF(InTB!F4>=0,"D","C")&REPT(" ",1)&"SINV "&"IMS "&InTB!B4&REPT(" ",15-LEN(InTB!B4))&"IMS: INVESTMENT"&REPT(" ",10)&TEXT(InTB!A4,"yyyymmdd")&YEAR(InTB!A4)&"0"&TEXT(InTB!A4,"mm")&TEXT(InTB!A4,"yyyymmdd")&REPT(" ",6)&REPT(" ",9)&TEXT(InTB!A4,"yyyymmdd")&YEAR(InTB!A4)&"0"&TEXT(InTB!A4,"mm")&"V"&REPT(" ",85)&"COT"&REPT(" ",12)&"KLZZZ "&"CN "&"OT "&REPT(" ",196) -> 16210 202001220201214 L 000000000000008740C SINV IMS HFT IMS: INVESTMENT 20201214202001220201214 202012142020012V COT KLZZZ CN OT
A4: =IF(InTB!K5=999," 999",InTB!K5)&REPT(" ",10)&YEAR(InTB!A5)&"0"&TEXT(InTB!A5,"mm")&TEXT(InTB!A5,"yyyymmdd")&REPT(" ",2)&"L"&REPT(" ",7)&REPT(" ",7)&TEXT(ABS(InTB!F5)*1000,"000000000000000000")&IF(InTB!F5>=0,"D","C")&REPT(" ",1)&"SINV "&"IMS "&InTB!B5&REPT(" ",15-LEN(InTB!B5))&"IMS: INVESTMENT"&REPT(" ",10)&TEXT(InTB!A5,"yyyymmdd")&YEAR(InTB!A5)&"0"&TEXT(InTB!A5,"mm")&TEXT(InTB!A5,"yyyymmdd")&REPT(" ",6)&REPT(" ",9)&TEXT(InTB!A5,"yyyymmdd")&YEAR(InTB!A5)&"0"&TEXT(InTB!A5,"mm")&"V"&REPT(" ",85)&"COT"&REPT(" ",12)&"KLZZZ "&"CN "&"OT "&REPT(" ",196) -> 16210 202001220201214 L 000000000217829920C SINV IMS TMUT IMS: INVESTMENT 20201214202001220201214 202012142020012V COT KLZZZ CN OT
A5: =IF(InTB!K6=999," 999",InTB!K6)&REPT(" ",10)&YEAR(InTB!A6)&"0"&TEXT(InTB!A6,"mm")&TEXT(InTB!A6,"yyyymmdd")&REPT(" ",2)&"L"&REPT(" ",7)&REPT(" ",7)&TEXT(ABS(InTB!F6)*1000,"000000000000000000")&IF(InTB!F6>=0,"D","C")&REPT(" ",1)&"SINV "&"IMS "&InTB!B6&REPT(" ",15-LEN(InTB!B6))&"IMS: INVESTMENT"&REPT(" ",10)&TEXT(InTB!A6,"yyyymmdd")&YEAR(InTB!A6)&"0"&TEXT(InTB!A6,"mm")&TEXT(InTB!A6,"yyyymmdd")&REPT(" ",6)&REPT(" ",9)&TEXT(InTB!A6,"yyyymmdd")&YEAR(InTB!A6)&"0"&TEXT(InTB!A6,"mm")&"V"&REPT(" ",85)&"COT"&REPT(" ",12)&"KLZZZ "&"CN "&"OT "&REPT(" ",196) -> 21110 202001220201214 L 000000008487715460C SINV IMS HFT IMS: INVESTMENT 20201214202001220201214 202012142020012V COT KLZZZ CN OT
A6: =IF(InTB!K7=999," 999",InTB!K7)&REPT(" ",10)&YEAR(InTB!A7)&"0"&TEXT(InTB!A7,"mm")&TEXT(InTB!A7,"yyyymmdd")&REPT(" ",2)&"L"&REPT(" ",7)&REPT(" ",7)&TEXT(ABS(InTB!F7)*1000,"000000000000000000")&IF(InTB!F7>=0,"D","C")&REPT(" ",1)&"SINV "&"IMS "&InTB!B7&REPT(" ",15-LEN(InTB!B7))&"IMS: INVESTMENT"&REPT(" ",10)&TEXT(InTB!A7,"yyyymmdd")&YEAR(InTB!A7)&"0"&TEXT(InTB!A7,"mm")&TEXT(InTB!A7,"yyyymmdd")&REPT(" ",6)&REPT(" ",9)&TEXT(InTB!A7,"yyyymmdd")&YEAR(InTB!A7)&"0"&TEXT(InTB!A7,"mm")&"V"&REPT(" ",85)&"COT"&REPT(" ",12)&"KLZZZ "&"CN "&"OT "&REPT(" ",196) -> 21110 202001220201214 L 000000004772902480C SINV IMS HFT IMS: INVESTMENT 20201214202001220201214 202012142020012V COT KLZZZ CN OT
A7: =IF(InTB!K8=999," 999",InTB!K8)&REPT(" ",10)&YEAR(InTB!A8)&"0"&TEXT(InTB!A8,"mm")&TEXT(InTB!A8,"yyyymmdd")&REPT(" ",2)&"L"&REPT(" ",7)&REPT(" ",7)&TEXT(ABS(InTB!F8)*1000,"000000000000000000")&IF(InTB!F8>=0,"D","C")&REPT(" ",1)&"SINV "&"IMS "&InTB!B8&REPT(" ",15-LEN(InTB!B8))&"IMS: INVESTMENT"&REPT(" ",10)&TEXT(InTB!A8,"yyyymmdd")&YEAR(InTB!A8)&"0"&TEXT(InTB!A8,"mm")&TEXT(InTB!A8,"yyyymmdd")&REPT(" ",6)&REPT(" ",9)&TEXT(InTB!A8,"yyyymmdd")&YEAR(InTB!A8)&"0"&TEXT(InTB!A8,"mm")&"V"&REPT(" ",85)&"COT"&REPT(" ",12)&"KLZZZ "&"CN "&"OT "&REPT(" ",196) -> 21110 202001220201214 L 000000003614558890D SINV IMS HFT IMS: INVESTMENT 20201214202001220201214 202012142020012V COT KLZZZ CN OT
A8: =IF(InTB!K9=999," 999",InTB!K9)&REPT(" ",10)&YEAR(InTB!A9)&"0"&TEXT(InTB!A9,"mm")&TEXT(InTB!A9,"yyyymmdd")&REPT(" ",2)&"L"&REPT(" ",7)&REPT(" ",7)&TEXT(ABS(InTB!F9)*1000,"000000000000000000")&IF(InTB!F9>=0,"D","C")&REPT(" ",1)&"SINV "&"IMS "&InTB!B9&REPT(" ",15-LEN(InTB!B9))&"IMS: INVESTMENT"&REPT(" ",10)&TEXT(InTB!A9,"yyyymmdd")&YEAR(InTB!A9)&"0"&TEXT(InTB!A9,"mm")&TEXT(InTB!A9,"yyyymmdd")&REPT(" ",6)&REPT(" ",9)&TEXT(InTB!A9,"yyyymmdd")&YEAR(InTB!A9)&"0"&TEXT(InTB!A9,"mm")&"V"&REPT(" ",85)&"COT"&REPT(" ",12)&"KLZZZ "&"CN "&"OT "&REPT(" ",196) -> 21110 202001220201214 L 000000000397668950C SINV IMS SHF IMS: INVESTMENT 20201214202001220201214 202012142020012V COT KLZZZ CN OT
A9: =IF(InTB!K10=999," 999",InTB!K10)&REPT(" ",10)&YEAR(InTB!A10)&"0"&TEXT(InTB!A10,"mm")&TEXT(InTB!A10,"yyyymmdd")&REPT(" ",2)&"L"&REPT(" ",7)&REPT(" ",7)&TEXT(ABS(InTB!F10)*1000,"000000000000000000")&IF(InTB!F10>=0,"D","C")&REPT(" ",1)&"SINV "&"IMS "&InTB!B10&REPT(" ",15-LEN(InTB!B10))&"IMS: INVESTMENT"&REPT(" ",10)&TEXT(InTB!A10,"yyyymmdd")&YEAR(InTB!A10)&"0"&TEXT(InTB!A10,"mm")&TEXT(InTB!A10,"yyyymmdd")&REPT(" ",6)&REPT(" ",9)&TEXT(InTB!A10,"yyyymmdd")&YEAR(InTB!A10)&"0"&TEXT(InTB!A10,"mm")&"V"&REPT(" ",85)&"COT"&REPT(" ",12)&"KLZZZ "&"CN "&"OT "&REPT(" ",196) -> 21110 202001220201214 L 000000000148176360C SINV IMS SHF IMS: INVESTMENT 20201214202001220201214 202012142020012V COT KLZZZ CN OT
A10: =IF(InTB!K11=999," 999",InTB!K11)&REPT(" ",10)&YEAR(InTB!A11)&"0"&TEXT(InTB!A11,"mm")&TEXT(InTB!A11,"yyyymmdd")&REPT(" ",2)&"L"&REPT(" ",7)&REPT(" ",7)&TEXT(ABS(InTB!F11)*1000,"000000000000000000")&IF(InTB!F11>=0,"D","C")&REPT(" ",1)&"SINV "&"IMS "&InTB!B11&REPT(" ",15-LEN(InTB!B11))&"IMS: INVESTMENT"&REPT(" ",10)&TEXT(InTB!A11,"yyyymmdd")&YEAR(InTB!A11)&"0"&TEXT(InTB!A11,"mm")&TEXT(InTB!A11,"yyyymmdd")&REPT(" ",6)&REPT(" ",9)&TEXT(InTB!A11,"yyyymmdd")&YEAR(InTB!A11)&"0"&TEXT(InTB!A11,"mm")&"V"&REPT(" ",85)&"COT"&REPT(" ",12)&"KLZZZ "&"CN "&"OT "&REPT(" ",196) -> 21110 202001220201214 L 000000000213385520D SINV IMS SHF IMS: INVESTMENT 20201214202001220201214 202012142020012V COT KLZZZ CN OT
A11: =IF(InTB!K12=999," 999",InTB!K12)&REPT(" ",10)&YEAR(InTB!A12)&"0"&TEXT(InTB!A12,"mm")&TEXT(InTB!A12,"yyyymmdd")&REPT(" ",2)&"L"&REPT(" ",7)&REPT(" ",7)&TEXT(ABS(InTB!F12)*1000,"000000000000000000")&IF(InTB!F12>=0,"D","C")&REPT(" ",1)&"SINV "&"IMS "&InTB!B12&REPT(" ",15-LEN(InTB!B12))&"IMS: INVESTMENT"&REPT(" ",10)&TEXT(InTB!A12,"yyyymmdd")&YEAR(InTB!A12)&"0"&TEXT(InTB!A12,"mm")&TEXT(InTB!A12,"yyyymmdd")&REPT(" ",6)&REPT(" ",9)&TEXT(InTB!A12,"yyyymmdd")&YEAR(InTB!A12)&"0"&TEXT(InTB!A12,"mm")&"V"&REPT(" ",85)&"COT"&REPT(" ",12)&"KLZZZ "&"CN "&"OT "&REPT(" ",196) -> 21120 202001220201214 L 000000000405924380C SINV IMS HFT IMS: INVESTMENT 20201214202001220201214 202012142020012V COT KLZZZ CN OT
A12: =IF(InTB!K13=999," 999",InTB!K13)&REPT(" ",10)&YEAR(InTB!A13)&"0"&TEXT(InTB!A13,"mm")&TEXT(InTB!A13,"yyyymmdd")&REPT(" ",2)&"L"&REPT(" ",7)&REPT(" ",7)&TEXT(ABS(InTB!F13)*1000,"000000000000000000")&IF(InTB!F13>=0,"D","C")&REPT(" ",1)&"SINV "&"IMS "&InTB!B13&REPT(" ",15-LEN(InTB!B13))&"IMS: INVESTMENT"&REPT(" ",10)&TEXT(InTB!A13,"yyyymmdd")&YEAR(InTB!A13)&"0"&TEXT(InTB!A13,"mm")&TEXT(InTB!A13,"yyyymmdd")&REPT(" ",6)&REPT(" ",9)&TEXT(InTB!A13,"yyyymmdd")&YEAR(InTB!A13)&"0"&TEXT(InTB!A13,"mm")&"V"&REPT(" ",85)&"COT"&REPT(" ",12)&"KLZZZ "&"CN "&"OT "&REPT(" ",196) -> 21120 202001220201214 L 000000000018410960C SINV IMS HFT IMS: INVESTMENT 20201214202001220201214 202012142020012V COT KLZZZ CN OT
A13: =IF(InTB!K14=999," 999",InTB!K14)&REPT(" ",10)&YEAR(InTB!A14)&"0"&TEXT(InTB!A14,"mm")&TEXT(InTB!A14,"yyyymmdd")&REPT(" ",2)&"L"&REPT(" ",7)&REPT(" ",7)&TEXT(ABS(InTB!F14)*1000,"000000000000000000")&IF(InTB!F14>=0,"D","C")&REPT(" ",1)&"SINV "&"IMS "&InTB!B14&REPT(" ",15-LEN(InTB!B14))&"IMS: INVESTMENT"&REPT(" ",10)&TEXT(InTB!A14,"yyyymmdd")&YEAR(InTB!A14)&"0"&TEXT(InTB!A14,"mm")&TEXT(InTB!A14,"yyyymmdd")&REPT(" ",6)&REPT(" ",9)&TEXT(InTB!A14,"yyyymmdd")&YEAR(InTB!A14)&"0"&TEXT(InTB!A14,"mm")&"V"&REPT(" ",85)&"COT"&REPT(" ",12)&"KLZZZ "&"CN "&"OT "&REPT(" ",196) -> 21120 202001220201214 L 000000000004027400D SINV IMS HFT IMS: INVESTMENT 20201214202001220201214 202012142020012V COT KLZZZ CN OT
A14: =IF(InTB!K15=999," 999",InTB!K15)&REPT(" ",10)&YEAR(InTB!A15)&"0"&TEXT(InTB!A15,"mm")&TEXT(InTB!A15,"yyyymmdd")&REPT(" ",2)&"L"&REPT(" ",7)&REPT(" ",7)&TEXT(ABS(InTB!F15)*1000,"000000000000000000")&IF(InTB!F15>=0,"D","C")&REPT(" ",1)&"SINV "&"IMS "&InTB!B15&REPT(" ",15-LEN(InTB!B15))&"IMS: INVESTMENT"&REPT(" ",10)&TEXT(InTB!A15,"yyyymmdd")&YEAR(InTB!A15)&"0"&TEXT(InTB!A15,"mm")&TEXT(InTB!A15,"yyyymmdd")&REPT(" ",6)&REPT(" ",9)&TEXT(InTB!A15,"yyyymmdd")&YEAR(InTB!A15)&"0"&TEXT(InTB!A15,"mm")&"V"&REPT(" ",85)&"COT"&REPT(" ",12)&"KLZZZ "&"CN "&"OT "&REPT(" ",196) -> 21341 202001220201214 L 000000006656609540C SINV IMS TMUT IMS: INVESTMENT 20201214202001220201214 202012142020012V COT KLZZZ CN OT
A15: =IF(InTB!K16=999," 999",InTB!K16)&REPT(" ",10)&YEAR(InTB!A16)&"0"&TEXT(InTB!A16,"mm")&TEXT(InTB!A16,"yyyymmdd")&REPT(" ",2)&"L"&REPT(" ",7)&REPT(" ",7)&TEXT(ABS(InTB!F16)*1000,"000000000000000000")&IF(InTB!F16>=0,"D","C")&REPT(" ",1)&"SINV "&"IMS "&InTB!B16&REPT(" ",15-LEN(InTB!B16))&"IMS: INVESTMENT"&REPT(" ",10)&TEXT(InTB!A16,"yyyymmdd")&YEAR(InTB!A16)&"0"&TEXT(InTB!A16,"mm")&TEXT(InTB!A16,"yyyymmdd")&REPT(" ",6)&REPT(" ",9)&TEXT(InTB!A16,"yyyymmdd")&YEAR(InTB!A16)&"0"&TEXT(InTB!A16,"mm")&"V"&REPT(" ",85)&"COT"&REPT(" ",12)&"KLZZZ "&"CN "&"OT "&REPT(" ",196) -> 21342 202001220201214 L 000000025719310710C SINV IMS TMUT IMS: INVESTMENT 20201214202001220201214 202012142020012V COT KLZZZ CN OT
A16: =IF(InTB!K17=999," 999",InTB!K17)&REPT(" ",10)&YEAR(InTB!A17)&"0"&TEXT(InTB!A17,"mm")&TEXT(InTB!A17,"yyyymmdd")&REPT(" ",2)&"L"&REPT(" ",7)&REPT(" ",7)&TEXT(ABS(InTB!F17)*1000,"000000000000000000")&IF(InTB!F17>=0,"D","C")&REPT(" ",1)&"SINV "&"IMS "&InTB!B17&REPT(" ",15-LEN(InTB!B17))&"IMS: INVESTMENT"&REPT(" ",10)&TEXT(InTB!A17,"yyyymmdd")&YEAR(InTB!A17)&"0"&TEXT(InTB!A17,"mm")&TEXT(InTB!A17,"yyyymmdd")&REPT(" ",6)&REPT(" ",9)&TEXT(InTB!A17,"yyyymmdd")&YEAR(InTB!A17)&"0"&TEXT(InTB!A17,"mm")&"V"&REPT(" ",85)&"COT"&REPT(" ",12)&"KLZZZ "&"CN "&"OT "&REPT(" ",196) -> 21343 202001220201214 L 000000031688608810C SINV IMS TMUT IMS: INVESTMENT 20201214202001220201214 202012142020012V COT KLZZZ CN OT
A17: =IF(InTB!K18=999," 999",InTB!K18)&REPT(" ",10)&YEAR(InTB!A18)&"0"&TEXT(InTB!A18,"mm")&TEXT(InTB!A18,"yyyymmdd")&REPT(" ",2)&"L"&REPT(" ",7)&REPT(" ",7)&TEXT(ABS(InTB!F18)*1000,"000000000000000000")&IF(InTB!F18>=0,"D","C")&REPT(" ",1)&"SINV "&"IMS "&InTB!B18&REPT(" ",15-LEN(InTB!B18))&"IMS: INVESTMENT"&REPT(" ",10)&TEXT(InTB!A18,"yyyymmdd")&YEAR(InTB!A18)&"0"&TEXT(InTB!A18,"mm")&TEXT(InTB!A18,"yyyymmdd")&REPT(" ",6)&REPT(" ",9)&TEXT(InTB!A18,"yyyymmdd")&YEAR(InTB!A18)&"0"&TEXT(InTB!A18,"mm")&"V"&REPT(" ",85)&"COT"&REPT(" ",12)&"KLZZZ "&"CN "&"OT "&REPT(" ",196) -> 25440 202001220201214 L 000000000002957110D SINV IMS TMUT IMS: INVESTMENT 20201214202001220201214 202012142020012V COT KLZZZ CN OT
A18: =IF(InTB!K19=999," 999",InTB!K19)&REPT(" ",10)&YEAR(InTB!A19)&"0"&TEXT(InTB!A19,"mm")&TEXT(InTB!A19,"yyyymmdd")&REPT(" ",2)&"L"&REPT(" ",7)&REPT(" ",7)&TEXT(ABS(InTB!F19)*1000,"000000000000000000")&IF(InTB!F19>=0,"D","C")&REPT(" ",1)&"SINV "&"IMS "&InTB!B19&REPT(" ",15-LEN(InTB!B19))&"IMS: INVESTMENT"&REPT(" ",10)&TEXT(InTB!A19,"yyyymmdd")&YEAR(InTB!A19)&"0"&TEXT(InTB!A19,"mm")&TEXT(InTB!A19,"yyyymmdd")&REPT(" ",6)&REPT(" ",9)&TEXT(InTB!A19,"yyyymmdd")&YEAR(InTB!A19)&"0"&TEXT(InTB!A19,"mm")&"V"&REPT(" ",85)&"COT"&REPT(" ",12)&"KLZZZ "&"CN "&"OT "&REPT(" ",196) -> 25440 202001220201214 L 000000000662931840C SINV IMS TMUT IMS: INVESTMENT 20201214202001220201214 202012142020012V COT KLZZZ CN OT
A19: =IF(InTB!K20=999," 999",InTB!K20)&REPT(" ",10)&YEAR(InTB!A20)&"0"&TEXT(InTB!A20,"mm")&TEXT(InTB!A20,"yyyymmdd")&REPT(" ",2)&"L"&REPT(" ",7)&REPT(" ",7)&TEXT(ABS(InTB!F20)*1000,"000000000000000000")&IF(InTB!F20>=0,"D","C")&REPT(" ",1)&"SINV "&"IMS "&InTB!B20&REPT(" ",15-LEN(InTB!B20))&"IMS: INVESTMENT"&REPT(" ",10)&TEXT(InTB!A20,"yyyymmdd")&YEAR(InTB!A20)&"0"&TEXT(InTB!A20,"mm")&TEXT(InTB!A20,"yyyymmdd")&REPT(" ",6)&REPT(" ",9)&TEXT(InTB!A20,"yyyymmdd")&YEAR(InTB!A20)&"0"&TEXT(InTB!A20,"mm")&"V"&REPT(" ",85)&"COT"&REPT(" ",12)&"KLZZZ "&"CN "&"OT "&REPT(" ",196) -> 51284 202001220201214 L 000000003084545140D SINV IMS HFT IMS: INVESTMENT 20201214202001220201214 202012142020012V COT KLZZZ CN OT
A20: =IF(InTB!K21=999," 999",InTB!K21)&REPT(" ",10)&YEAR(InTB!A21)&"0"&TEXT(InTB!A21,"mm")&TEXT(InTB!A21,"yyyymmdd")&REPT(" ",2)&"L"&REPT(" ",7)&REPT(" ",7)&TEXT(ABS(InTB!F21)*1000,"000000000000000000")&IF(InTB!F21>=0,"D","C")&REPT(" ",1)&"SINV "&"IMS "&InTB!B21&REPT(" ",15-LEN(InTB!B21))&"IMS: INVESTMENT"&REPT(" ",10)&TEXT(InTB!A21,"yyyymmdd")&YEAR(InTB!A21)&"0"&TEXT(InTB!A21,"mm")&TEXT(InTB!A21,"yyyymmdd")&REPT(" ",6)&REPT(" ",9)&TEXT(InTB!A21,"yyyymmdd")&YEAR(InTB!A21)&"0"&TEXT(InTB!A21,"mm")&"V"&REPT(" ",85)&"COT"&REPT(" ",12)&"KLZZZ "&"CN "&"OT "&REPT(" ",196) -> 52001 202001220201214 L 000000325000000000D SINV IMS HFT IMS: INVESTMENT 20201214202001220201214 202012142020012V COT KLZZZ CN OT
A21: =IF(InTB!K22=999," 999",InTB!K22)&REPT(" ",10)&YEAR(InTB!A22)&"0"&TEXT(InTB!A22,"mm")&TEXT(InTB!A22,"yyyymmdd")&REPT(" ",2)&"L"&REPT(" ",7)&REPT(" ",7)&TEXT(ABS(InTB!F22)*1000,"000000000000000000")&IF(InTB!F22>=0,"D","C")&REPT(" ",1)&"SINV "&"IMS "&InTB!B22&REPT(" ",15-LEN(InTB!B22))&"IMS: INVESTMENT"&REPT(" ",10)&TEXT(InTB!A22,"yyyymmdd")&YEAR(InTB!A22)&"0"&TEXT(InTB!A22,"mm")&TEXT(InTB!A22,"yyyymmdd")&REPT(" ",6)&REPT(" ",9)&TEXT(InTB!A22,"yyyymmdd")&YEAR(InTB!A22)&"0"&TEXT(InTB!A22,"mm")&"V"&REPT(" ",85)&"COT"&REPT(" ",12)&"KLZZZ "&"CN "&"OT "&REPT(" ",196) -> 52001 202001220201214 L 000000010589036640D SINV IMS SHF IMS: INVESTMENT 20201214202001220201214 202012142020012V COT KLZZZ CN OT
A22: =IF(InTB!K23=999," 999",InTB!K23)&REPT(" ",10)&YEAR(InTB!A23)&"0"&TEXT(InTB!A23,"mm")&TEXT(InTB!A23,"yyyymmdd")&REPT(" ",2)&"L"&REPT(" ",7)&REPT(" ",7)&TEXT(ABS(InTB!F23)*1000,"000000000000000000")&IF(InTB!F23>=0,"D","C")&REPT(" ",1)&"SINV "&"IMS "&InTB!B23&REPT(" ",15-LEN(InTB!B23))&"IMS: INVESTMENT"&REPT(" ",10)&TEXT(InTB!A23,"yyyymmdd")&YEAR(InTB!A23)&"0"&TEXT(InTB!A23,"mm")&TEXT(InTB!A23,"yyyymmdd")&REPT(" ",6)&REPT(" ",9)&TEXT(InTB!A23,"yyyymmdd")&YEAR(InTB!A23)&"0"&TEXT(InTB!A23,"mm")&"V"&REPT(" ",85)&"COT"&REPT(" ",12)&"KLZZZ "&"CN "&"OT "&REPT(" ",196) -> 52003 202001220201214 L 000000050000000000D SINV IMS HFT IMS: INVESTMENT 20201214202001220201214 202012142020012V COT KLZZZ CN OT
A23: =IF(InTB!K24=999," 999",InTB!K24)&REPT(" ",10)&YEAR(InTB!A24)&"0"&TEXT(InTB!A24,"mm")&TEXT(InTB!A24,"yyyymmdd")&REPT(" ",2)&"L"&REPT(" ",7)&REPT(" ",7)&TEXT(ABS(InTB!F24)*1000,"000000000000000000")&IF(InTB!F24>=0,"D","C")&REPT(" ",1)&"SINV "&"IMS "&InTB!B24&REPT(" ",15-LEN(InTB!B24))&"IMS: INVESTMENT"&REPT(" ",10)&TEXT(InTB!A24,"yyyymmdd")&YEAR(InTB!A24)&"0"&TEXT(InTB!A24,"mm")&TEXT(InTB!A24,"yyyymmdd")&REPT(" ",6)&REPT(" ",9)&TEXT(InTB!A24,"yyyymmdd")&YEAR(InTB!A24)&"0"&TEXT(InTB!A24,"mm")&"V"&REPT(" ",85)&"COT"&REPT(" ",12)&"KLZZZ "&"CN "&"OT "&REPT(" ",196) -> 53407 202001220201214 L 000000650000000000D SINV IMS TMUT IMS: INVESTMENT 20201214202001220201214 202012142020012V COT KLZZZ CN OT
A24: =IF(InTB!K25=999," 999",InTB!K25)&REPT(" ",10)&YEAR(InTB!A25)&"0"&TEXT(InTB!A25,"mm")&TEXT(InTB!A25,"yyyymmdd")&REPT(" ",2)&"L"&REPT(" ",7)&REPT(" ",7)&TEXT(ABS(InTB!F25)*1000,"000000000000000000")&IF(InTB!F25>=0,"D","C")&REPT(" ",1)&"SINV "&"IMS "&InTB!B25&REPT(" ",15-LEN(InTB!B25))&"IMS: INVESTMENT"&REPT(" ",10)&TEXT(InTB!A25,"yyyymmdd")&YEAR(InTB!A25)&"0"&TEXT(InTB!A25,"mm")&TEXT(InTB!A25,"yyyymmdd")&REPT(" ",6)&REPT(" ",9)&TEXT(InTB!A25,"yyyymmdd")&YEAR(InTB!A25)&"0"&TEXT(InTB!A25,"mm")&"V"&REPT(" ",85)&"COT"&REPT(" ",12)&"KLZZZ "&"CN "&"OT "&REPT(" ",196) -> 53408 202001220201214 L 000000744877000420D SINV IMS TMUT IMS: INVESTMENT 20201214202001220201214 202012142020012V COT KLZZZ CN OT
A25: =IF(InTB!K26=999," 999",InTB!K26)&REPT(" ",10)&YEAR(InTB!A26)&"0"&TEXT(InTB!A26,"mm")&TEXT(InTB!A26,"yyyymmdd")&REPT(" ",2)&"L"&REPT(" ",7)&REPT(" ",7)&TEXT(ABS(InTB!F26)*1000,"000000000000000000")&IF(InTB!F26>=0,"D","C")&REPT(" ",1)&"SINV "&"IMS "&InTB!B26&REPT(" ",15-LEN(InTB!B26))&"IMS: INVESTMENT"&REPT(" ",10)&TEXT(InTB!A26,"yyyymmdd")&YEAR(InTB!A26)&"0"&TEXT(InTB!A26,"mm")&TEXT(InTB!A26,"yyyymmdd")&REPT(" ",6)&REPT(" ",9)&TEXT(InTB!A26,"yyyymmdd")&YEAR(InTB!A26)&"0"&TEXT(InTB!A26,"mm")&"V"&REPT(" ",85)&"COT"&REPT(" ",12)&"KLZZZ "&"CN "&"OT "&REPT(" ",196) -> 53409 202001220201214 L 000000209221935980D SINV IMS TMUT IMS: INVESTMENT 20201214202001220201214 202012142020012V COT KLZZZ CN OT
A26: =IF(InTB!K27=999," 999",InTB!K27)&REPT(" ",10)&YEAR(InTB!A27)&"0"&TEXT(InTB!A27,"mm")&TEXT(InTB!A27,"yyyymmdd")&REPT(" ",2)&"L"&REPT(" ",7)&REPT(" ",7)&TEXT(ABS(InTB!F27)*1000,"000000000000000000")&IF(InTB!F27>=0,"D","C")&REPT(" ",1)&"SINV "&"IMS "&InTB!B27&REPT(" ",15-LEN(InTB!B27))&"IMS: INVESTMENT"&REPT(" ",10)&TEXT(InTB!A27,"yyyymmdd")&YEAR(InTB!A27)&"0"&TEXT(InTB!A27,"mm")&TEXT(InTB!A27,"yyyymmdd")&REPT(" ",6)&REPT(" ",9)&TEXT(InTB!A27,"yyyymmdd")&YEAR(InTB!A27)&"0"&TEXT(InTB!A27,"mm")&"V"&REPT(" ",85)&"COT"&REPT(" ",12)&"KLZZZ "&"CN "&"OT "&REPT(" ",196) -> 53454 202001220201214 L 000000042940494450D SINV IMS TMUT IMS: INVESTMENT 20201214202001220201214 202012142020012V COT KLZZZ CN OT
A27: =IF(InTB!K28=999," 999",InTB!K28)&REPT(" ",10)&YEAR(InTB!A28)&"0"&TEXT(InTB!A28,"mm")&TEXT(InTB!A28,"yyyymmdd")&REPT(" ",2)&"L"&REPT(" ",7)&REPT(" ",7)&TEXT(ABS(InTB!F28)*1000,"000000000000000000")&IF(InTB!F28>=0,"D","C")&REPT(" ",1)&"SINV "&"IMS "&InTB!B28&REPT(" ",15-LEN(InTB!B28))&"IMS: INVESTMENT"&REPT(" ",10)&TEXT(InTB!A28,"yyyymmdd")&YEAR(InTB!A28)&"0"&TEXT(InTB!A28,"mm")&TEXT(InTB!A28,"yyyymmdd")&REPT(" ",6)&REPT(" ",9)&TEXT(InTB!A28,"yyyymmdd")&YEAR(InTB!A28)&"0"&TEXT(InTB!A28,"mm")&"V"&REPT(" ",85)&"COT"&REPT(" ",12)&"KLZZZ "&"CN "&"OT "&REPT(" ",196) -> 53455 202001220201214 L 000000052627249250D SINV IMS TMUT IMS: INVESTMENT 20201214202001220201214 202012142020012V COT KLZZZ CN OT
A28: =IF(InTB!K29=999," 999",InTB!K29)&REPT(" ",10)&YEAR(InTB!A29)&"0"&TEXT(InTB!A29,"mm")&TEXT(InTB!A29,"yyyymmdd")&REPT(" ",2)&"L"&REPT(" ",7)&REPT(" ",7)&TEXT(ABS(InTB!F29)*1000,"000000000000000000")&IF(InTB!F29>=0,"D","C")&REPT(" ",1)&"SINV "&"IMS "&InTB!B29&REPT(" ",15-LEN(InTB!B29))&"IMS: INVESTMENT"&REPT(" ",10)&TEXT(InTB!A29,"yyyymmdd")&YEAR(InTB!A29)&"0"&TEXT(InTB!A29,"mm")&TEXT(InTB!A29,"yyyymmdd")&REPT(" ",6)&REPT(" ",9)&TEXT(InTB!A29,"yyyymmdd")&YEAR(InTB!A29)&"0"&TEXT(InTB!A29,"mm")&"V"&REPT(" ",85)&"COT"&REPT(" ",12)&"KLZZZ "&"CN "&"OT "&REPT(" ",196) -> 53456 202001220201214 L 000000001173253450D SINV IMS TMUT IMS: INVESTMENT 20201214202001220201214 202012142020012V COT KLZZZ CN OT
A29: =IF(InTB!K30=999," 999",InTB!K30)&REPT(" ",10)&YEAR(InTB!A30)&"0"&TEXT(InTB!A30,"mm")&TEXT(InTB!A30,"yyyymmdd")&REPT(" ",2)&"L"&REPT(" ",7)&REPT(" ",7)&TEXT(ABS(InTB!F30)*1000,"000000000000000000")&IF(InTB!F30>=0,"D","C")&REPT(" ",1)&"SINV "&"IMS "&InTB!B30&REPT(" ",15-LEN(InTB!B30))&"IMS: INVESTMENT"&REPT(" ",10)&TEXT(InTB!A30,"yyyymmdd")&YEAR(InTB!A30)&"0"&TEXT(InTB!A30,"mm")&TEXT(InTB!A30,"yyyymmdd")&REPT(" ",6)&REPT(" ",9)&TEXT(InTB!A30,"yyyymmdd")&YEAR(InTB!A30)&"0"&TEXT(InTB!A30,"mm")&"V"&REPT(" ",85)&"COT"&REPT(" ",12)&"KLZZZ "&"CN "&"OT "&REPT(" ",196) -> 57110 202001220201214 L 000000000018410960D SINV IMS HFT IMS: INVESTMENT 20201214202001220201214 202012142020012V COT KLZZZ CN OT
A30: =IF(InTB!K31=999," 999",InTB!K31)&REPT(" ",10)&YEAR(InTB!A31)&"0"&TEXT(InTB!A31,"mm")&TEXT(InTB!A31,"yyyymmdd")&REPT(" ",2)&"L"&REPT(" ",7)&REPT(" ",7)&TEXT(ABS(InTB!F31)*1000,"000000000000000000")&IF(InTB!F31>=0,"D","C")&REPT(" ",1)&"SINV "&"IMS "&InTB!B31&REPT(" ",15-LEN(InTB!B31))&"IMS: INVESTMENT"&REPT(" ",10)&TEXT(InTB!A31,"yyyymmdd")&YEAR(InTB!A31)&"0"&TEXT(InTB!A31,"mm")&TEXT(InTB!A31,"yyyymmdd")&REPT(" ",6)&REPT(" ",9)&TEXT(InTB!A31,"yyyymmdd")&YEAR(InTB!A31)&"0"&TEXT(InTB!A31,"mm")&"V"&REPT(" ",85)&"COT"&REPT(" ",12)&"KLZZZ "&"CN "&"OT "&REPT(" ",196) -> 57110 202001220201214 L 000000004772902480D SINV IMS HFT IMS: INVESTMENT 20201214202001220201214 202012142020012V COT KLZZZ CN OT
A31: =IF(InTB!K32=999," 999",InTB!K32)&REPT(" ",10)&YEAR(InTB!A32)&"0"&TEXT(InTB!A32,"mm")&TEXT(InTB!A32,"yyyymmdd")&REPT(" ",2)&"L"&REPT(" ",7)&REPT(" ",7)&TEXT(ABS(InTB!F32)*1000,"000000000000000000")&IF(InTB!F32>=0,"D","C")&REPT(" ",1)&"SINV "&"IMS "&InTB!B32&REPT(" ",15-LEN(InTB!B32))&"IMS: INVESTMENT"&REPT(" ",10)&TEXT(InTB!A32,"yyyymmdd")&YEAR(InTB!A32)&"0"&TEXT(InTB!A32,"mm")&TEXT(InTB!A32,"yyyymmdd")&REPT(" ",6)&REPT(" ",9)&TEXT(InTB!A32,"yyyymmdd")&YEAR(InTB!A32)&"0"&TEXT(InTB!A32,"mm")&"V"&REPT(" ",85)&"COT"&REPT(" ",12)&"KLZZZ "&"CN "&"OT "&REPT(" ",196) -> 57110 202001220201214 L 000000000148176360D SINV IMS SHF IMS: INVESTMENT 20201214202001220201214 202012142020012V COT KLZZZ CN OT
A32: =IF(InTB!K33=999," 999",InTB!K33)&REPT(" ",10)&YEAR(InTB!A33)&"0"&TEXT(InTB!A33,"mm")&TEXT(InTB!A33,"yyyymmdd")&REPT(" ",2)&"L"&REPT(" ",7)&REPT(" ",7)&TEXT(ABS(InTB!F33)*1000,"000000000000000000")&IF(InTB!F33>=0,"D","C")&REPT(" ",1)&"SINV "&"IMS "&InTB!B33&REPT(" ",15-LEN(InTB!B33))&"IMS: INVESTMENT"&REPT(" ",10)&TEXT(InTB!A33,"yyyymmdd")&YEAR(InTB!A33)&"0"&TEXT(InTB!A33,"mm")&TEXT(InTB!A33,"yyyymmdd")&REPT(" ",6)&REPT(" ",9)&TEXT(InTB!A33,"yyyymmdd")&YEAR(InTB!A33)&"0"&TEXT(InTB!A33,"mm")&"V"&REPT(" ",85)&"COT"&REPT(" ",12)&"KLZZZ "&"CN "&"OT "&REPT(" ",196) -> 58780 202001220201214 L 000000000000000020C SINV IMS HFT IMS: INVESTMENT 20201214202001220201214 202012142020012V COT KLZZZ CN OT
A33: =IF(InTB!K34=999," 999",InTB!K34)&REPT(" ",10)&YEAR(InTB!A34)&"0"&TEXT(InTB!A34,"mm")&TEXT(InTB!A34,"yyyymmdd")&REPT(" ",2)&"L"&REPT(" ",7)&REPT(" ",7)&TEXT(ABS(InTB!F34)*1000,"000000000000000000")&IF(InTB!F34>=0,"D","C")&REPT(" ",1)&"SINV "&"IMS "&InTB!B34&REPT(" ",15-LEN(InTB!B34))&"IMS: INVESTMENT"&REPT(" ",10)&TEXT(InTB!A34,"yyyymmdd")&YEAR(InTB!A34)&"0"&TEXT(InTB!A34,"mm")&TEXT(InTB!A34,"yyyymmdd")&REPT(" ",6)&REPT(" ",9)&TEXT(InTB!A34,"yyyymmdd")&YEAR(InTB!A34)&"0"&TEXT(InTB!A34,"mm")&"V"&REPT(" ",85)&"COT"&REPT(" ",12)&"KLZZZ "&"CN "&"OT "&REPT(" ",196) -> 58780 202001220201214 L 000000001821634120C SINV IMS TMUT IMS: INVESTMENT 20201214202001220201214 202012142020012V COT KLZZZ CN OT
A34: =IF(InTB!K35=999," 999",InTB!K35)&REPT(" ",10)&YEAR(InTB!A35)&"0"&TEXT(InTB!A35,"mm")&TEXT(InTB!A35,"yyyymmdd")&REPT(" ",2)&"L"&REPT(" ",7)&REPT(" ",7)&TEXT(ABS(InTB!F35)*1000,"000000000000000000")&IF(InTB!F35>=0,"D","C")&REPT(" ",1)&"SINV "&"IMS "&InTB!B35&REPT(" ",15-LEN(InTB!B35))&"IMS: INVESTMENT"&REPT(" ",10)&TEXT(InTB!A35,"yyyymmdd")&YEAR(InTB!A35)&"0"&TEXT(InTB!A35,"mm")&TEXT(InTB!A35,"yyyymmdd")&REPT(" ",6)&REPT(" ",9)&TEXT(InTB!A35,"yyyymmdd")&YEAR(InTB!A35)&"0"&TEXT(InTB!A35,"mm")&"V"&REPT(" ",85)&"COT"&REPT(" ",12)&"KLZZZ "&"CN "&"OT "&REPT(" ",196) -> 58780 202001220201214 L 000000000933363630D SINV IMS TMUT IMS: INVESTMENT 20201214202001220201214 202012142020012V COT KLZZZ CN OT
A35: =IF(InTB!K36=999," 999",InTB!K36)&REPT(" ",10)&YEAR(InTB!A36)&"0"&TEXT(InTB!A36,"mm")&TEXT(InTB!A36,"yyyymmdd")&REPT(" ",2)&"L"&REPT(" ",7)&REPT(" ",7)&TEXT(ABS(InTB!F36)*1000,"000000000000000000")&IF(InTB!F36>=0,"D","C")&REPT(" ",1)&"SINV "&"IMS "&InTB!B36&REPT(" ",15-LEN(InTB!B36))&"IMS: INVESTMENT"&REPT(" ",10)&TEXT(InTB!A36,"yyyymmdd")&YEAR(InTB!A36)&"0"&TEXT(InTB!A36,"mm")&TEXT(InTB!A36,"yyyymmdd")&REPT(" ",6)&REPT(" ",9)&TEXT(InTB!A36,"yyyymmdd")&YEAR(InTB!A36)&"0"&TEXT(InTB!A36,"mm")&"V"&REPT(" ",85)&"COT"&REPT(" ",12)&"KLZZZ "&"CN "&"OT "&REPT(" ",196) -> 58780 202001220201214 L 000000000900930350D SINV IMS TMUT IMS: INVESTMENT 20201214202001220201214 202012142020012V COT KLZZZ CN OT
A36: =IF(InTB!K37=999," 999",InTB!K37)&REPT(" ",10)&YEAR(InTB!A37)&"0"&TEXT(InTB!A37,"mm")&TEXT(InTB!A37,"yyyymmdd")&REPT(" ",2)&"L"&REPT(" ",7)&REPT(" ",7)&TEXT(ABS(InTB!F37)*1000,"000000000000000000")&IF(InTB!F37>=0,"D","C")&REPT(" ",1)&"SINV "&"IMS "&InTB!B37&REPT(" ",15-LEN(InTB!B37))&"IMS: INVESTMENT"&REPT(" ",10)&TEXT(InTB!A37,"yyyymmdd")&YEAR(InTB!A37)&"0"&TEXT(InTB!A37,"mm")&TEXT(InTB!A37,"yyyymmdd")&REPT(" ",6)&REPT(" ",9)&TEXT(InTB!A37,"yyyymmdd")&YEAR(InTB!A37)&"0"&TEXT(InTB!A37,"mm")&"V"&REPT(" ",85)&"COT"&REPT(" ",12)&"KLZZZ "&"CN "&"OT "&REPT(" ",196) -> 76010 202001220201214 L 000000319174683170C SINV IMS HFT IMS: INVESTMENT 20201214202001220201214 202012142020012V COT KLZZZ CN OT
A37: =IF(InTB!K38=999," 999",InTB!K38)&REPT(" ",10)&YEAR(InTB!A38)&"0"&TEXT(InTB!A38,"mm")&TEXT(InTB!A38,"yyyymmdd")&REPT(" ",2)&"L"&REPT(" ",7)&REPT(" ",7)&TEXT(ABS(InTB!F38)*1000,"000000000000000000")&IF(InTB!F38>=0,"D","C")&REPT(" ",1)&"SINV "&"IMS "&InTB!B38&REPT(" ",15-LEN(InTB!B38))&"IMS: INVESTMENT"&REPT(" ",10)&TEXT(InTB!A38,"yyyymmdd")&YEAR(InTB!A38)&"0"&TEXT(InTB!A38,"mm")&TEXT(InTB!A38,"yyyymmdd")&REPT(" ",6)&REPT(" ",9)&TEXT(InTB!A38,"yyyymmdd")&YEAR(InTB!A38)&"0"&TEXT(InTB!A38,"mm")&"V"&REPT(" ",85)&"COT"&REPT(" ",12)&"KLZZZ "&"CN "&"OT "&REPT(" ",196) -> 76010 202001220201214 L 000000008550572610C SINV IMS SHF IMS: INVESTMENT 20201214202001220201214 202012142020012V COT KLZZZ CN OT
A38: =IF(InTB!K39=999," 999",InTB!K39)&REPT(" ",10)&YEAR(InTB!A39)&"0"&TEXT(InTB!A39,"mm")&TEXT(InTB!A39,"yyyymmdd")&REPT(" ",2)&"L"&REPT(" ",7)&REPT(" ",7)&TEXT(ABS(InTB!F39)*1000,"000000000000000000")&IF(InTB!F39>=0,"D","C")&REPT(" ",1)&"SINV "&"IMS "&InTB!B39&REPT(" ",15-LEN(InTB!B39))&"IMS: INVESTMENT"&REPT(" ",10)&TEXT(InTB!A39,"yyyymmdd")&YEAR(InTB!A39)&"0"&TEXT(InTB!A39,"mm")&TEXT(InTB!A39,"yyyymmdd")&REPT(" ",6)&REPT(" ",9)&TEXT(InTB!A39,"yyyymmdd")&YEAR(InTB!A39)&"0"&TEXT(InTB!A39,"mm")&"V"&REPT(" ",85)&"COT"&REPT(" ",12)&"KLZZZ "&"CN "&"OT "&REPT(" ",196) -> 76010 202001220201214 L 000000000224904180D SINV IMS TMLAFS IMS: INVESTMENT 20201214202001220201214 202012142020012V COT KLZZZ CN OT
A39: =IF(InTB!K40=999," 999",InTB!K40)&REPT(" ",10)&YEAR(InTB!A40)&"0"&TEXT(InTB!A40,"mm")&TEXT(InTB!A40,"yyyymmdd")&REPT(" ",2)&"L"&REPT(" ",7)&REPT(" ",7)&TEXT(ABS(InTB!F40)*1000,"000000000000000000")&IF(InTB!F40>=0,"D","C")&REPT(" ",1)&"SINV "&"IMS "&InTB!B40&REPT(" ",15-LEN(InTB!B40))&"IMS: INVESTMENT"&REPT(" ",10)&TEXT(InTB!A40,"yyyymmdd")&YEAR(InTB!A40)&"0"&TEXT(InTB!A40,"mm")&TEXT(InTB!A40,"yyyymmdd")&REPT(" ",6)&REPT(" ",9)&TEXT(InTB!A40,"yyyymmdd")&YEAR(InTB!A40)&"0"&TEXT(InTB!A40,"mm")&"V"&REPT(" ",85)&"COT"&REPT(" ",12)&"KLZZZ "&"CN "&"OT "&REPT(" ",196) -> 76010 202001220201214 L 000000007086950410D SINV IMS TMLHFT IMS: INVESTMENT 20201214202001220201214 202012142020012V COT KLZZZ CN OT
A40: =IF(InTB!K41=999," 999",InTB!K41)&REPT(" ",10)&YEAR(InTB!A41)&"0"&TEXT(InTB!A41,"mm")&TEXT(InTB!A41,"yyyymmdd")&REPT(" ",2)&"L"&REPT(" ",7)&REPT(" ",7)&TEXT(ABS(InTB!F41)*1000,"000000000000000000")&IF(InTB!F41>=0,"D","C")&REPT(" ",1)&"SINV "&"IMS "&InTB!B41&REPT(" ",15-LEN(InTB!B41))&"IMS: INVESTMENT"&REPT(" ",10)&TEXT(InTB!A41,"yyyymmdd")&YEAR(InTB!A41)&"0"&TEXT(InTB!A41,"mm")&TEXT(InTB!A41,"yyyymmdd")&REPT(" ",6)&REPT(" ",9)&TEXT(InTB!A41,"yyyymmdd")&YEAR(InTB!A41)&"0"&TEXT(InTB!A41,"mm")&"V"&REPT(" ",85)&"COT"&REPT(" ",12)&"KLZZZ "&"CN "&"OT "&REPT(" ",196) -> 76010 202001220201214 L 000001283460883300C SINV IMS TMUT IMS: INVESTMENT 20201214202001220201214 202012142020012V COT KLZZZ CN OT
A41: =IF(InTB!K42=999," 999",InTB!K42)&REPT(" ",10)&YEAR(InTB!A42)&"0"&TEXT(InTB!A42,"mm")&TEXT(InTB!A42,"yyyymmdd")&REPT(" ",2)&"L"&REPT(" ",7)&REPT(" ",7)&TEXT(ABS(InTB!F42)*1000,"000000000000000000")&IF(InTB!F42>=0,"D","C")&REPT(" ",1)&"SINV "&"IMS "&InTB!B42&REPT(" ",15-LEN(InTB!B42))&"IMS: INVESTMENT"&REPT(" ",10)&TEXT(InTB!A42,"yyyymmdd")&YEAR(InTB!A42)&"0"&TEXT(InTB!A42,"mm")&TEXT(InTB!A42,"yyyymmdd")&REPT(" ",6)&REPT(" ",9)&TEXT(InTB!A42,"yyyymmdd")&YEAR(InTB!A42)&"0"&TEXT(InTB!A42,"mm")&"V"&REPT(" ",85)&"COT"&REPT(" ",12)&"KLZZZ "&"CN "&"OT "&REPT(" ",196) -> 94100 202001220201214 L 000000043731156400C SINV IMS HFT IMS: INVESTMENT 20201214202001220201214 202012142020012V COT KLZZZ CN OT
A42: =IF(InTB!K43=999," 999",InTB!K43)&REPT(" ",10)&YEAR(InTB!A43)&"0"&TEXT(InTB!A43,"mm")&TEXT(InTB!A43,"yyyymmdd")&REPT(" ",2)&"L"&REPT(" ",7)&REPT(" ",7)&TEXT(ABS(InTB!F43)*1000,"000000000000000000")&IF(InTB!F43>=0,"D","C")&REPT(" ",1)&"SINV "&"IMS "&InTB!B43&REPT(" ",15-LEN(InTB!B43))&"IMS: INVESTMENT"&REPT(" ",10)&TEXT(InTB!A43,"yyyymmdd")&YEAR(InTB!A43)&"0"&TEXT(InTB!A43,"mm")&TEXT(InTB!A43,"yyyymmdd")&REPT(" ",6)&REPT(" ",9)&TEXT(InTB!A43,"yyyymmdd")&YEAR(InTB!A43)&"0"&TEXT(InTB!A43,"mm")&"V"&REPT(" ",85)&"COT"&REPT(" ",12)&"KLZZZ "&"CN "&"OT "&REPT(" ",196) -> 94100 202001220201214 L 000000000613193940C SINV IMS HFT IMS: INVESTMENT 20201214202001220201214 202012142020012V COT KLZZZ CN OT
A43: =IF(InTB!K44=999," 999",InTB!K44)&REPT(" ",10)&YEAR(InTB!A44)&"0"&TEXT(InTB!A44,"mm")&TEXT(InTB!A44,"yyyymmdd")&REPT(" ",2)&"L"&REPT(" ",7)&REPT(" ",7)&TEXT(ABS(InTB!F44)*1000,"000000000000000000")&IF(InTB!F44>=0,"D","C")&REPT(" ",1)&"SINV "&"IMS "&InTB!B44&REPT(" ",15-LEN(InTB!B44))&"IMS: INVESTMENT"&REPT(" ",10)&TEXT(InTB!A44,"yyyymmdd")&YEAR(InTB!A44)&"0"&TEXT(InTB!A44,"mm")&TEXT(InTB!A44,"yyyymmdd")&REPT(" ",6)&REPT(" ",9)&TEXT(InTB!A44,"yyyymmdd")&YEAR(InTB!A44)&"0"&TEXT(InTB!A44,"mm")&"V"&REPT(" ",85)&"COT"&REPT(" ",12)&"KLZZZ "&"CN "&"OT "&REPT(" ",196) -> 94100 202001220201214 L 000000009291150320C SINV IMS HFT IMS: INVESTMENT 20201214202001220201214 202012142020012V COT KLZZZ CN OT
A44: =IF(InTB!K45=999," 999",InTB!K45)&REPT(" ",10)&YEAR(InTB!A45)&"0"&TEXT(InTB!A45,"mm")&TEXT(InTB!A45,"yyyymmdd")&REPT(" ",2)&"L"&REPT(" ",7)&REPT(" ",7)&TEXT(ABS(InTB!F45)*1000,"000000000000000000")&IF(InTB!F45>=0,"D","C")&REPT(" ",1)&"SINV "&"IMS "&InTB!B45&REPT(" ",15-LEN(InTB!B45))&"IMS: INVESTMENT"&REPT(" ",10)&TEXT(InTB!A45,"yyyymmdd")&YEAR(InTB!A45)&"0"&TEXT(InTB!A45,"mm")&TEXT(InTB!A45,"yyyymmdd")&REPT(" ",6)&REPT(" ",9)&TEXT(InTB!A45,"yyyymmdd")&YEAR(InTB!A45)&"0"&TEXT(InTB!A45,"mm")&"V"&REPT(" ",85)&"COT"&REPT(" ",12)&"KLZZZ "&"CN "&"OT "&REPT(" ",196) -> 94100 202001220201214 L 000000001451751050C SINV IMS SHF IMS: INVESTMENT 20201214202001220201214 202012142020012V COT KLZZZ CN OT
A45: =IF(InTB!K46=999," 999",InTB!K46)&REPT(" ",10)&YEAR(InTB!A46)&"0"&TEXT(InTB!A46,"mm")&TEXT(InTB!A46,"yyyymmdd")&REPT(" ",2)&"L"&REPT(" ",7)&REPT(" ",7)&TEXT(ABS(InTB!F46)*1000,"000000000000000000")&IF(InTB!F46>=0,"D","C")&REPT(" ",1)&"SINV "&"IMS "&InTB!B46&REPT(" ",15-LEN(InTB!B46))&"IMS: INVESTMENT"&REPT(" ",10)&TEXT(InTB!A46,"yyyymmdd")&YEAR(InTB!A46)&"0"&TEXT(InTB!A46,"mm")&TEXT(InTB!A46,"yyyymmdd")&REPT(" ",6)&REPT(" ",9)&TEXT(InTB!A46,"yyyymmdd")&YEAR(InTB!A46)&"0"&TEXT(InTB!A46,"mm")&"V"&REPT(" ",85)&"COT"&REPT(" ",12)&"KLZZZ "&"CN "&"OT "&REPT(" ",196) -> 94100 202001220201214 L 000000000402429550C SINV IMS SHF IMS: INVESTMENT 20201214202001220201214 202012142020012V COT KLZZZ CN OT
A46: =IF(InTB!K47=999," 999",InTB!K47)&REPT(" ",10)&YEAR(InTB!A47)&"0"&TEXT(InTB!A47,"mm")&TEXT(InTB!A47,"yyyymmdd")&REPT(" ",2)&"L"&REPT(" ",7)&REPT(" ",7)&TEXT(ABS(InTB!F47)*1000,"000000000000000000")&IF(InTB!F47>=0,"D","C")&REPT(" ",1)&"SINV "&"IMS "&InTB!B47&REPT(" ",15-LEN(InTB!B47))&"IMS: INVESTMENT"&REPT(" ",10)&TEXT(InTB!A47,"yyyymmdd")&YEAR(InTB!A47)&"0"&TEXT(InTB!A47,"mm")&TEXT(InTB!A47,"yyyymmdd")&REPT(" ",6)&REPT(" ",9)&TEXT(InTB!A47,"yyyymmdd")&YEAR(InTB!A47)&"0"&TEXT(InTB!A47,"mm")&"V"&REPT(" ",85)&"COT"&REPT(" ",12)&"KLZZZ "&"CN "&"OT "&REPT(" ",196) -> 94100 202001220201214 L 000000000224904180C SINV IMS TMLAFS IMS: INVESTMENT 20201214202001220201214 202012142020012V COT KLZZZ CN OT
A47: =IF(InTB!K48=999," 999",InTB!K48)&REPT(" ",10)&YEAR(InTB!A48)&"0"&TEXT(InTB!A48,"mm")&TEXT(InTB!A48,"yyyymmdd")&REPT(" ",2)&"L"&REPT(" ",7)&REPT(" ",7)&TEXT(ABS(InTB!F48)*1000,"000000000000000000")&IF(InTB!F48>=0,"D","C")&REPT(" ",1)&"SINV "&"IMS "&InTB!B48&REPT(" ",15-LEN(InTB!B48))&"IMS: INVESTMENT"&REPT(" ",10)&TEXT(InTB!A48,"yyyymmdd")&YEAR(InTB!A48)&"0"&TEXT(InTB!A48,"mm")&TEXT(InTB!A48,"yyyymmdd")&REPT(" ",6)&REPT(" ",9)&TEXT(InTB!A48,"yyyymmdd")&YEAR(InTB!A48)&"0"&TEXT(InTB!A48,"mm")&"V"&REPT(" ",85)&"COT"&REPT(" ",12)&"KLZZZ "&"CN "&"OT "&REPT(" ",196) -> 94100 202001220201214 L 000000007086950410C SINV IMS TMLHFT IMS: INVESTMENT 20201214202001220201214 202012142020012V COT KLZZZ CN OT
A48: =IF(InTB!K49=999," 999",InTB!K49)&REPT(" ",10)&YEAR(InTB!A49)&"0"&TEXT(InTB!A49,"mm")&TEXT(InTB!A49,"yyyymmdd")&REPT(" ",2)&"L"&REPT(" ",7)&REPT(" ",7)&TEXT(ABS(InTB!F49)*1000,"000000000000000000")&IF(InTB!F49>=0,"D","C")&REPT(" ",1)&"SINV "&"IMS "&InTB!B49&REPT(" ",15-LEN(InTB!B49))&"IMS: INVESTMENT"&REPT(" ",10)&TEXT(InTB!A49,"yyyymmdd")&YEAR(InTB!A49)&"0"&TEXT(InTB!A49,"mm")&TEXT(InTB!A49,"yyyymmdd")&REPT(" ",6)&REPT(" ",9)&TEXT(InTB!A49,"yyyymmdd")&YEAR(InTB!A49)&"0"&TEXT(InTB!A49,"mm")&"V"&REPT(" ",85)&"COT"&REPT(" ",12)&"KLZZZ "&"CN "&"OT "&REPT(" ",196) -> 94100 202001220201214 L 000000217618057280C SINV IMS TMUT IMS: INVESTMENT 20201214202001220201214 202012142020012V COT KLZZZ CN OT
A49: =IF(InTB!K50=999," 999",InTB!K50)&REPT(" ",10)&YEAR(InTB!A50)&"0"&TEXT(InTB!A50,"mm")&TEXT(InTB!A50,"yyyymmdd")&REPT(" ",2)&"L"&REPT(" ",7)&REPT(" ",7)&TEXT(ABS(InTB!F50)*1000,"000000000000000000")&IF(InTB!F50>=0,"D","C")&REPT(" ",1)&"SINV "&"IMS "&InTB!B50&REPT(" ",15-LEN(InTB!B50))&"IMS: INVESTMENT"&REPT(" ",10)&TEXT(InTB!A50,"yyyymmdd")&YEAR(InTB!A50)&"0"&TEXT(InTB!A50,"mm")&TEXT(InTB!A50,"yyyymmdd")&REPT(" ",6)&REPT(" ",9)&TEXT(InTB!A50,"yyyymmdd")&YEAR(InTB!A50)&"0"&TEXT(InTB!A50,"mm")&"V"&REPT(" ",85)&"COT"&REPT(" ",12)&"KLZZZ "&"CN "&"OT "&REPT(" ",196) -> 94100 202001220201214 L 000000001173253450C SINV IMS TMUT IMS: INVESTMENT 20201214202001220201214 202012142020012V COT KLZZZ CN OT
A50: =IF(InTB!K51=999," 999",InTB!K51)&REPT(" ",10)&YEAR(InTB!A51)&"0"&TEXT(InTB!A51,"mm")&TEXT(InTB!A51,"yyyymmdd")&REPT(" ",2)&"L"&REPT(" ",7)&REPT(" ",7)&TEXT(ABS(InTB!F51)*1000,"000000000000000000")&IF(InTB!F51>=0,"D","C")&REPT(" ",1)&"SINV "&"IMS "&InTB!B51&REPT(" ",15-LEN(InTB!B51))&"IMS: INVESTMENT"&REPT(" ",10)&TEXT(InTB!A51,"yyyymmdd")&YEAR(InTB!A51)&"0"&TEXT(InTB!A51,"mm")&TEXT(InTB!A51,"yyyymmdd")&REPT(" ",6)&REPT(" ",9)&TEXT(InTB!A51,"yyyymmdd")&YEAR(InTB!A51)&"0"&TEXT(InTB!A51,"mm")&"V"&REPT(" ",85)&"COT"&REPT(" ",12)&"KLZZZ "&"CN "&"OT "&REPT(" ",196) -> 94100 202001220201214 L 000000002339633070C SINV IMS TMUT IMS: INVESTMENT 20201214202001220201214 202012142020012V COT KLZZZ CN OT
A51: =IF(InTB!K52=999," 999",InTB!K52)&REPT(" ",10)&YEAR(InTB!A52)&"0"&TEXT(InTB!A52,"mm")&TEXT(InTB!A52,"yyyymmdd")&REPT(" ",2)&"L"&REPT(" ",7)&REPT(" ",7)&TEXT(ABS(InTB!F52)*1000,"000000000000000000")&IF(InTB!F52>=0,"D","C")&REPT(" ",1)&"SINV "&"IMS "&InTB!B52&REPT(" ",15-LEN(InTB!B52))&"IMS: INVESTMENT"&REPT(" ",10)&TEXT(InTB!A52,"yyyymmdd")&YEAR(InTB!A52)&"0"&TEXT(InTB!A52,"mm")&TEXT(InTB!A52,"yyyymmdd")&REPT(" ",6)&REPT(" ",9)&TEXT(InTB!A52,"yyyymmdd")&YEAR(InTB!A52)&"0"&TEXT(InTB!A52,"mm")&"V"&REPT(" ",85)&"COT"&REPT(" ",12)&"KLZZZ "&"CN "&"OT "&REPT(" ",196) -> 94100 202001220201214 L 000000008612271130C SINV IMS TMUT IMS: INVESTMENT 20201214202001220201214 202012142020012V COT KLZZZ CN OT
A52: =IF(InTB!K53=999," 999",InTB!K53)&REPT(" ",10)&YEAR(InTB!A53)&"0"&TEXT(InTB!A53,"mm")&TEXT(InTB!A53,"yyyymmdd")&REPT(" ",2)&"L"&REPT(" ",7)&REPT(" ",7)&TEXT(ABS(InTB!F53)*1000,"000000000000000000")&IF(InTB!F53>=0,"D","C")&REPT(" ",1)&"SINV "&"IMS "&InTB!B53&REPT(" ",15-LEN(InTB!B53))&"IMS: INVESTMENT"&REPT(" ",10)&TEXT(InTB!A53,"yyyymmdd")&YEAR(InTB!A53)&"0"&TEXT(InTB!A53,"mm")&TEXT(InTB!A53,"yyyymmdd")&REPT(" ",6)&REPT(" ",9)&TEXT(InTB!A53,"yyyymmdd")&YEAR(InTB!A53)&"0"&TEXT(InTB!A53,"mm")&"V"&REPT(" ",85)&"COT"&REPT(" ",12)&"KLZZZ "&"CN "&"OT "&REPT(" ",196) -> 94100 202001220201214 L 000000002339633070D SINV IMS TMUT IMS: INVESTMENT 20201214202001220201214 202012142020012V COT KLZZZ CN OT
A53: =IF(InTB!K54=999," 999",InTB!K54)&REPT(" ",10)&YEAR(InTB!A54)&"0"&TEXT(InTB!A54,"mm")&TEXT(InTB!A54,"yyyymmdd")&REPT(" ",2)&"L"&REPT(" ",7)&REPT(" ",7)&TEXT(ABS(InTB!F54)*1000,"000000000000000000")&IF(InTB!F54>=0,"D","C")&REPT(" ",1)&"SINV "&"IMS "&InTB!B54&REPT(" ",15-LEN(InTB!B54))&"IMS: INVESTMENT"&REPT(" ",10)&TEXT(InTB!A54,"yyyymmdd")&YEAR(InTB!A54)&"0"&TEXT(InTB!A54,"mm")&TEXT(InTB!A54,"yyyymmdd")&REPT(" ",6)&REPT(" ",9)&TEXT(InTB!A54,"yyyymmdd")&YEAR(InTB!A54)&"0"&TEXT(InTB!A54,"mm")&"V"&REPT(" ",85)&"COT"&REPT(" ",12)&"KLZZZ "&"CN "&"OT "&REPT(" ",196) -> 94100 202001220201214 L 000000052627249250C SINV IMS TMUT IMS: INVESTMENT 20201214202001220201214 202012142020012V COT KLZZZ CN OT
A54: =IF(InTB!K55=999," 999",InTB!K55)&REPT(" ",10)&YEAR(InTB!A55)&"0"&TEXT(InTB!A55,"mm")&TEXT(InTB!A55,"yyyymmdd")&REPT(" ",2)&"L"&REPT(" ",7)&REPT(" ",7)&TEXT(ABS(InTB!F55)*1000,"000000000000000000")&IF(InTB!F55>=0,"D","C")&REPT(" ",1)&"SINV "&"IMS "&InTB!B55&REPT(" ",15-LEN(InTB!B55))&"IMS: INVESTMENT"&REPT(" ",10)&TEXT(InTB!A55,"yyyymmdd")&YEAR(InTB!A55)&"0"&TEXT(InTB!A55,"mm")&TEXT(InTB!A55,"yyyymmdd")&REPT(" ",6)&REPT(" ",9)&TEXT(InTB!A55,"yyyymmdd")&YEAR(InTB!A55)&"0"&TEXT(InTB!A55,"mm")&"V"&REPT(" ",85)&"COT"&REPT(" ",12)&"KLZZZ "&"CN "&"OT "&REPT(" ",196) -> 94100 202001220201214 L 000000043694328020C SINV IMS TMUT IMS: INVESTMENT 20201214202001220201214 202012142020012V COT KLZZZ CN OT
A55: =IF(InTB!K56=999," 999",InTB!K56)&REPT(" ",10)&YEAR(InTB!A56)&"0"&TEXT(InTB!A56,"mm")&TEXT(InTB!A56,"yyyymmdd")&REPT(" ",2)&"L"&REPT(" ",7)&REPT(" ",7)&TEXT(ABS(InTB!F56)*1000,"000000000000000000")&IF(InTB!F56>=0,"D","C")&REPT(" ",1)&"SINV "&"IMS "&InTB!B56&REPT(" ",15-LEN(InTB!B56))&"IMS: INVESTMENT"&REPT(" ",10)&TEXT(InTB!A56,"yyyymmdd")&YEAR(InTB!A56)&"0"&TEXT(InTB!A56,"mm")&TEXT(InTB!A56,"yyyymmdd")&REPT(" ",6)&REPT(" ",9)&TEXT(InTB!A56,"yyyymmdd")&YEAR(InTB!A56)&"0"&TEXT(InTB!A56,"mm")&"V"&REPT(" ",85)&"COT"&REPT(" ",12)&"KLZZZ "&"CN "&"OT "&REPT(" ",196) -> 94100 202001220201214 L 000000034307895000C SINV IMS TMUT IMS: INVESTMENT 20201214202001220201214 202012142020012V COT KLZZZ CN OT
A56: =IF(InTB!K57=999," 999",InTB!K57)&REPT(" ",10)&YEAR(InTB!A57)&"0"&TEXT(InTB!A57,"mm")&TEXT(InTB!A57,"yyyymmdd")&REPT(" ",2)&"L"&REPT(" ",7)&REPT(" ",7)&TEXT(ABS(InTB!F57)*1000,"000000000000000000")&IF(InTB!F57>=0,"D","C")&REPT(" ",1)&"SINV "&"IMS "&InTB!B57&REPT(" ",15-LEN(InTB!B57))&"IMS: INVESTMENT"&REPT(" ",10)&TEXT(InTB!A57,"yyyymmdd")&YEAR(InTB!A57)&"0"&TEXT(InTB!A57,"mm")&TEXT(InTB!A57,"yyyymmdd")&REPT(" ",6)&REPT(" ",9)&TEXT(InTB!A57,"yyyymmdd")&YEAR(InTB!A57)&"0"&TEXT(InTB!A57,"mm")&"V"&REPT(" ",85)&"COT"&REPT(" ",12)&"KLZZZ "&"CN "&"OT "&REPT(" ",196) -> 94100 202001220201214 L 000000043694328020D SINV IMS TMUT IMS: INVESTMENT 20201214202001220201214 202012142020012V COT KLZZZ CN OT
A57: =IF(InTB!K58=999," 999",InTB!K58)&REPT(" ",10)&YEAR(InTB!A58)&"0"&TEXT(InTB!A58,"mm")&TEXT(InTB!A58,"yyyymmdd")&REPT(" ",2)&"L"&REPT(" ",7)&REPT(" ",7)&TEXT(ABS(InTB!F58)*1000,"000000000000000000")&IF(InTB!F58>=0,"D","C")&REPT(" ",1)&"SINV "&"IMS "&InTB!B58&REPT(" ",15-LEN(InTB!B58))&"IMS: INVESTMENT"&REPT(" ",10)&TEXT(InTB!A58,"yyyymmdd")&YEAR(InTB!A58)&"0"&TEXT(InTB!A58,"mm")&TEXT(InTB!A58,"yyyymmdd")&REPT(" ",6)&REPT(" ",9)&TEXT(InTB!A58,"yyyymmdd")&YEAR(InTB!A58)&"0"&TEXT(InTB!A58,"mm")&"V"&REPT(" ",85)&"COT"&REPT(" ",12)&"KLZZZ "&"CN "&"OT "&REPT(" ",196) -> 94100 202001220201214 L 000000042940494450C SINV IMS TMUT IMS: INVESTMENT 20201214202001220201214 202012142020012V COT KLZZZ CN OT
A58: =IF(InTB!K59=999," 999",InTB!K59)&REPT(" ",10)&YEAR(InTB!A59)&"0"&TEXT(InTB!A59,"mm")&TEXT(InTB!A59,"yyyymmdd")&REPT(" ",2)&"L"&REPT(" ",7)&REPT(" ",7)&TEXT(ABS(InTB!F59)*1000,"000000000000000000")&IF(InTB!F59>=0,"D","C")&REPT(" ",1)&"SINV "&"IMS "&InTB!B59&REPT(" ",15-LEN(InTB!B59))&"IMS: INVESTMENT"&REPT(" ",10)&TEXT(InTB!A59,"yyyymmdd")&YEAR(InTB!A59)&"0"&TEXT(InTB!A59,"mm")&TEXT(InTB!A59,"yyyymmdd")&REPT(" ",6)&REPT(" ",9)&TEXT(InTB!A59,"yyyymmdd")&YEAR(InTB!A59)&"0"&TEXT(InTB!A59,"mm")&"V"&REPT(" ",85)&"COT"&REPT(" ",12)&"KLZZZ "&"CN "&"OT "&REPT(" ",196) -> 94100 202001220201214 L 000000027871948380C SINV IMS TMUT IMS: INVESTMENT 20201214202001220201214 202012142020012V COT KLZZZ CN OT
A59: =IF(InTB!K60=999," 999",InTB!K60)&REPT(" ",10)&YEAR(InTB!A60)&"0"&TEXT(InTB!A60,"mm")&TEXT(InTB!A60,"yyyymmdd")&REPT(" ",2)&"L"&REPT(" ",7)&REPT(" ",7)&TEXT(ABS(InTB!F60)*1000,"000000000000000000")&IF(InTB!F60>=0,"D","C")&REPT(" ",1)&"SINV "&"IMS "&InTB!B60&REPT(" ",15-LEN(InTB!B60))&"IMS: INVESTMENT"&REPT(" ",10)&TEXT(InTB!A60,"yyyymmdd")&YEAR(InTB!A60)&"0"&TEXT(InTB!A60,"mm")&TEXT(InTB!A60,"yyyymmdd")&REPT(" ",6)&REPT(" ",9)&TEXT(InTB!A60,"yyyymmdd")&YEAR(InTB!A60)&"0"&TEXT(InTB!A60,"mm")&"V"&REPT(" ",85)&"COT"&REPT(" ",12)&"KLZZZ "&"CN "&"OT "&REPT(" ",196) -> 94100 202001220201214 L 000000025179155840C SINV IMS TMUT IMS: INVESTMENT 20201214202001220201214 202012142020012V COT KLZZZ CN OT
A60: =IF(InTB!K61=999," 999",InTB!K61)&REPT(" ",10)&YEAR(InTB!A61)&"0"&TEXT(InTB!A61,"mm")&TEXT(InTB!A61,"yyyymmdd")&REPT(" ",2)&"L"&REPT(" ",7)&REPT(" ",7)&TEXT(ABS(InTB!F61)*1000,"000000000000000000")&IF(InTB!F61>=0,"D","C")&REPT(" ",1)&"SINV "&"IMS "&InTB!B61&REPT(" ",15-LEN(InTB!B61))&"IMS: INVESTMENT"&REPT(" ",10)&TEXT(InTB!A61,"yyyymmdd")&YEAR(InTB!A61)&"0"&TEXT(InTB!A61,"mm")&TEXT(InTB!A61,"yyyymmdd")&REPT(" ",6)&REPT(" ",9)&TEXT(InTB!A61,"yyyymmdd")&YEAR(InTB!A61)&"0"&TEXT(InTB!A61,"mm")&"V"&REPT(" ",85)&"COT"&REPT(" ",12)&"KLZZZ "&"CN "&"OT "&REPT(" ",196) -> 94100 202001220201214 L 000000027871948380D SINV IMS TMUT IMS: INVESTMENT 20201214202001220201214 202012142020012V COT KLZZZ CN OT
A61: =IF(InTB!K62=999," 999",InTB!K62)&REPT(" ",10)&YEAR(InTB!A62)&"0"&TEXT(InTB!A62,"mm")&TEXT(InTB!A62,"yyyymmdd")&REPT(" ",2)&"L"&REPT(" ",7)&REPT(" ",7)&TEXT(ABS(InTB!F62)*1000,"000000000000000000")&IF(InTB!F62>=0,"D","C")&REPT(" ",1)&"SINV "&"IMS "&InTB!B62&REPT(" ",15-LEN(InTB!B62))&"IMS: INVESTMENT"&REPT(" ",10)&TEXT(InTB!A62,"yyyymmdd")&YEAR(InTB!A62)&"0"&TEXT(InTB!A62,"mm")&TEXT(InTB!A62,"yyyymmdd")&REPT(" ",6)&REPT(" ",9)&TEXT(InTB!A62,"yyyymmdd")&YEAR(InTB!A62)&"0"&TEXT(InTB!A62,"mm")&"V"&REPT(" ",85)&"COT"&REPT(" ",12)&"KLZZZ "&"CN "&"OT "&REPT(" ",196) -> 58780 202001220201214 L 000000030009000000D SINV IMS TMUT IMS: INVESTMENT 20201214202001220201214 202012142020012V COT KLZZZ CN OT

Sheet TransfertextRev
A1: ="VERSION"&REPT(" ",25)&"42001" -> VERSION 42001
A2: =IF(InTBRev!K3=999," 999",InTBRev!K3)&REPT(" ",10)&YEAR(InTBRev!A3+1)&"0"&TEXT(InTBRev!A3+1,"mm")&TEXT(InTBRev!A3+1,"yyyymmdd")&REPT(" ",2)&"L"&REPT(" ",7)&REPT(" ",7)&TEXT(ABS(InTBRev!F3)*1000,"000000000000000000")&IF(InTBRev!F3>=0,"D","C")&REPT(" ",1)&"SINV "&"IMS "&InTBRev!B3&REPT(" ",15-LEN(InTBRev!B3))&"IMS: INVESTMENT"&REPT(" ",10)&TEXT(InTBRev!A3+1,"yyyymmdd")&YEAR(InTBRev!A3+1)&"0"&TEXT(InTBRev!A3+1,"mm")&TEXT(InTBRev!A3+1,"yyyymmdd")&REPT(" ",6)&REPT(" ",9)&TEXT(InTBRev!A3+1,"yyyymmdd")&YEAR(InTBRev!A3+1)&"0"&TEXT(InTBRev!A3+1,"mm")&"V"&REPT(" ",85)&"COT"&REPT(" ",12)&"KLZZZ "&"CN "&"OT "&REPT(" ",196) -> 12340 202001220201208 L 000000000000701000C SINV IMS HFT IMS: INVESTMENT 20201208202001220201208 202012082020012V COT KLZZZ CN OT
A3: =IF(InTBRev!K4=999," 999",InTBRev!K4)&REPT(" ",10)&YEAR(InTBRev!A4+1)&"0"&TEXT(InTBRev!A4+1,"mm")&TEXT(InTBRev!A4+1,"yyyymmdd")&REPT(" ",2)&"L"&REPT(" ",7)&REPT(" ",7)&TEXT(ABS(InTBRev!F4)*1000,"000000000000000000")&IF(InTBRev!F4>=0,"D","C")&REPT(" ",1)&"SINV "&"IMS "&InTBRev!B4&REPT(" ",15-LEN(InTBRev!B4))&"IMS: INVESTMENT"&REPT(" ",10)&TEXT(InTBRev!A4+1,"yyyymmdd")&YEAR(InTBRev!A4+1)&"0"&TEXT(InTBRev!A4+1,"mm")&TEXT(InTBRev!A4+1,"yyyymmdd")&REPT(" ",6)&REPT(" ",9)&TEXT(InTBRev!A4+1,"yyyymmdd")&YEAR(InTBRev!A4+1)&"0"&TEXT(InTBRev!A4+1,"mm")&"V"&REPT(" ",85)&"COT"&REPT(" ",12)&"KLZZZ "&"CN "&"OT "&REPT(" ",196) -> 16210 202001220201208 L 000000000000008740D SINV IMS HFT IMS: INVESTMENT 20201208202001220201208 202012082020012V COT KLZZZ CN OT
A4: =IF(InTBRev!K5=999," 999",InTBRev!K5)&REPT(" ",10)&YEAR(InTBRev!A5+1)&"0"&TEXT(InTBRev!A5+1,"mm")&TEXT(InTBRev!A5+1,"yyyymmdd")&REPT(" ",2)&"L"&REPT(" ",7)&REPT(" ",7)&TEXT(ABS(InTBRev!F5)*1000,"000000000000000000")&IF(InTBRev!F5>=0,"D","C")&REPT(" ",1)&"SINV "&"IMS "&InTBRev!B5&REPT(" ",15-LEN(InTBRev!B5))&"IMS: INVESTMENT"&REPT(" ",10)&TEXT(InTBRev!A5+1,"yyyymmdd")&YEAR(InTBRev!A5+1)&"0"&TEXT(InTBRev!A5+1,"mm")&TEXT(InTBRev!A5+1,"yyyymmdd")&REPT(" ",6)&REPT(" ",9)&TEXT(InTBRev!A5+1,"yyyymmdd")&YEAR(InTBRev!A5+1)&"0"&TEXT(InTBRev!A5+1,"mm")&"V"&REPT(" ",85)&"COT"&REPT(" ",12)&"KLZZZ "&"CN "&"OT "&REPT(" ",196) -> 16210 202001220201208 L 000000000217829920D SINV IMS TMUT IMS: INVESTMENT 20201208202001220201208 202012082020012V COT KLZZZ CN OT
A5: =IF(InTBRev!K6=999," 999",InTBRev!K6)&REPT(" ",10)&YEAR(InTBRev!A6+1)&"0"&TEXT(InTBRev!A6+1,"mm")&TEXT(InTBRev!A6+1,"yyyymmdd")&REPT(" ",2)&"L"&REPT(" ",7)&REPT(" ",7)&TEXT(ABS(InTBRev!F6)*1000,"000000000000000000")&IF(InTBRev!F6>=0,"D","C")&REPT(" ",1)&"SINV "&"IMS "&InTBRev!B6&REPT(" ",15-LEN(InTBRev!B6))&"IMS: INVESTMENT"&REPT(" ",10)&TEXT(InTBRev!A6+1,"yyyymmdd")&YEAR(InTBRev!A6+1)&"0"&TEXT(InTBRev!A6+1,"mm")&TEXT(InTBRev!A6+1,"yyyymmdd")&REPT(" ",6)&REPT(" ",9)&TEXT(InTBRev!A6+1,"yyyymmdd")&YEAR(InTBRev!A6+1)&"0"&TEXT(InTBRev!A6+1,"mm")&"V"&REPT(" ",85)&"COT"&REPT(" ",12)&"KLZZZ "&"CN "&"OT "&REPT(" ",196) -> 21110 202001220201208 L 000000008487715460D SINV IMS HFT IMS: INVESTMENT 20201208202001220201208 202012082020012V COT KLZZZ CN OT
A6: =IF(InTBRev!K7=999," 999",InTBRev!K7)&REPT(" ",10)&YEAR(InTBRev!A7+1)&"0"&TEXT(InTBRev!A7+1,"mm")&TEXT(InTBRev!A7+1,"yyyymmdd")&REPT(" ",2)&"L"&REPT(" ",7)&REPT(" ",7)&TEXT(ABS(InTBRev!F7)*1000,"000000000000000000")&IF(InTBRev!F7>=0,"D","C")&REPT(" ",1)&"SINV "&"IMS "&InTBRev!B7&REPT(" ",15-LEN(InTBRev!B7))&"IMS: INVESTMENT"&REPT(" ",10)&TEXT(InTBRev!A7+1,"yyyymmdd")&YEAR(InTBRev!A7+1)&"0"&TEXT(InTBRev!A7+1,"mm")&TEXT(InTBRev!A7+1,"yyyymmdd")&REPT(" ",6)&REPT(" ",9)&TEXT(InTBRev!A7+1,"yyyymmdd")&YEAR(InTBRev!A7+1)&"0"&TEXT(InTBRev!A7+1,"mm")&"V"&REPT(" ",85)&"COT"&REPT(" ",12)&"KLZZZ "&"CN "&"OT "&REPT(" ",196) -> 21110 202001220201208 L 000000004596698110D SINV IMS HFT IMS: INVESTMENT 20201208202001220201208 202012082020012V COT KLZZZ CN OT
A7: =IF(InTBRev!K8=999," 999",InTBRev!K8)&REPT(" ",10)&YEAR(InTBRev!A8+1)&"0"&TEXT(InTBRev!A8+1,"mm")&TEXT(InTBRev!A8+1,"yyyymmdd")&REPT(" ",2)&"L"&REPT(" ",7)&REPT(" ",7)&TEXT(ABS(InTBRev!F8)*1000,"000000000000000000")&IF(InTBRev!F8>=0,"D","C")&REPT(" ",1)&"SINV "&"IMS "&InTBRev!B8&REPT(" ",15-LEN(InTBRev!B8))&"IMS: INVESTMENT"&REPT(" ",10)&TEXT(InTBRev!A8+1,"yyyymmdd")&YEAR(InTBRev!A8+1)&"0"&TEXT(InTBRev!A8+1,"mm")&TEXT(InTBRev!A8+1,"yyyymmdd")&REPT(" ",6)&REPT(" ",9)&TEXT(InTBRev!A8+1,"yyyymmdd")&YEAR(InTBRev!A8+1)&"0"&TEXT(InTBRev!A8+1,"mm")&"V"&REPT(" ",85)&"COT"&REPT(" ",12)&"KLZZZ "&"CN "&"OT "&REPT(" ",196) -> 21110 202001220201208 L 000000003614558890C SINV IMS HFT IMS: INVESTMENT 20201208202001220201208 202012082020012V COT KLZZZ CN OT
A8: =IF(InTBRev!K9=999," 999",InTBRev!K9)&REPT(" ",10)&YEAR(InTBRev!A9+1)&"0"&TEXT(InTBRev!A9+1,"mm")&TEXT(InTBRev!A9+1,"yyyymmdd")&REPT(" ",2)&"L"&REPT(" ",7)&REPT(" ",7)&TEXT(ABS(InTBRev!F9)*1000,"000000000000000000")&IF(InTBRev!F9>=0,"D","C")&REPT(" ",1)&"SINV "&"IMS "&InTBRev!B9&REPT(" ",15-LEN(InTBRev!B9))&"IMS: INVESTMENT"&REPT(" ",10)&TEXT(InTBRev!A9+1,"yyyymmdd")&YEAR(InTBRev!A9+1)&"0"&TEXT(InTBRev!A9+1,"mm")&TEXT(InTBRev!A9+1,"yyyymmdd")&REPT(" ",6)&REPT(" ",9)&TEXT(InTBRev!A9+1,"yyyymmdd")&YEAR(InTBRev!A9+1)&"0"&TEXT(InTBRev!A9+1,"mm")&"V"&REPT(" ",85)&"COT"&REPT(" ",12)&"KLZZZ "&"CN "&"OT "&REPT(" ",196) -> 21110 202001220201208 L 000000000397668950D SINV IMS SHF IMS: INVESTMENT 20201208202001220201208 202012082020012V COT KLZZZ CN OT
A9: =IF(InTBRev!K10=999," 999",InTBRev!K10)&REPT(" ",10)&YEAR(InTBRev!A10+1)&"0"&TEXT(InTBRev!A10+1,"mm")&TEXT(InTBRev!A10+1,"yyyymmdd")&REPT(" ",2)&"L"&REPT(" ",7)&REPT(" ",7)&TEXT(ABS(InTBRev!F10)*1000,"000000000000000000")&IF(InTBRev!F10>=0,"D","C")&REPT(" ",1)&"SINV "&"IMS "&InTBRev!B10&REPT(" ",15-LEN(InTBRev!B10))&"IMS: INVESTMENT"&REPT(" ",10)&TEXT(InTBRev!A10+1,"yyyymmdd")&YEAR(InTBRev!A10+1)&"0"&TEXT(InTBRev!A10+1,"mm")&TEXT(InTBRev!A10+1,"yyyymmdd")&REPT(" ",6)&REPT(" ",9)&TEXT(InTBRev!A10+1,"yyyymmdd")&YEAR(InTBRev!A10+1)&"0"&TEXT(InTBRev!A10+1,"mm")&"V"&REPT(" ",85)&"COT"&REPT(" ",12)&"KLZZZ "&"CN "&"OT "&REPT(" ",196) -> 21110 202001220201208 L 000000000142760900D SINV IMS SHF IMS: INVESTMENT 20201208202001220201208 202012082020012V COT KLZZZ CN OT
A10: =IF(InTBRev!K11=999," 999",InTBRev!K11)&REPT(" ",10)&YEAR(InTBRev!A11+1)&"0"&TEXT(InTBRev!A11+1,"mm")&TEXT(InTBRev!A11+1,"yyyymmdd")&REPT(" ",2)&"L"&REPT(" ",7)&REPT(" ",7)&TEXT(ABS(InTBRev!F11)*1000,"000000000000000000")&IF(InTBRev!F11>=0,"D","C")&REPT(" ",1)&"SINV "&"IMS "&InTBRev!B11&REPT(" ",15-LEN(InTBRev!B11))&"IMS: INVESTMENT"&REPT(" ",10)&TEXT(InTBRev!A11+1,"yyyymmdd")&YEAR(InTBRev!A11+1)&"0"&TEXT(InTBRev!A11+1,"mm")&TEXT(InTBRev!A11+1,"yyyymmdd")&REPT(" ",6)&REPT(" ",9)&TEXT(InTBRev!A11+1,"yyyymmdd")&YEAR(InTBRev!A11+1)&"0"&TEXT(InTBRev!A11+1,"mm")&"V"&REPT(" ",85)&"COT"&REPT(" ",12)&"KLZZZ "&"CN "&"OT "&REPT(" ",196) -> 21110 202001220201208 L 000000000213385520C SINV IMS SHF IMS: INVESTMENT 20201208202001220201208 202012082020012V COT KLZZZ CN OT
A11: =IF(InTBRev!K12=999," 999",InTBRev!K12)&REPT(" ",10)&YEAR(InTBRev!A12+1)&"0"&TEXT(InTBRev!A12+1,"mm")&TEXT(InTBRev!A12+1,"yyyymmdd")&REPT(" ",2)&"L"&REPT(" ",7)&REPT(" ",7)&TEXT(ABS(InTBRev!F12)*1000,"000000000000000000")&IF(InTBRev!F12>=0,"D","C")&REPT(" ",1)&"SINV "&"IMS "&InTBRev!B12&REPT(" ",15-LEN(InTBRev!B12))&"IMS: INVESTMENT"&REPT(" ",10)&TEXT(InTBRev!A12+1,"yyyymmdd")&YEAR(InTBRev!A12+1)&"0"&TEXT(InTBRev!A12+1,"mm")&TEXT(InTBRev!A12+1,"yyyymmdd")&REPT(" ",6)&REPT(" ",9)&TEXT(InTBRev!A12+1,"yyyymmdd")&YEAR(InTBRev!A12+1)&"0"&TEXT(InTBRev!A12+1,"mm")&"V"&REPT(" ",85)&"COT"&REPT(" ",12)&"KLZZZ "&"CN "&"OT "&REPT(" ",196) -> 21120 202001220201208 L 000000000401896980D SINV IMS HFT IMS: INVESTMENT 20201208202001220201208 202012082020012V COT KLZZZ CN OT
A12: =IF(InTBRev!K13=999," 999",InTBRev!K13)&REPT(" ",10)&YEAR(InTBRev!A13+1)&"0"&TEXT(InTBRev!A13+1,"mm")&TEXT(InTBRev!A13+1,"yyyymmdd")&REPT(" ",2)&"L"&REPT(" ",7)&REPT(" ",7)&TEXT(ABS(InTBRev!F13)*1000,"000000000000000000")&IF(InTBRev!F13>=0,"D","C")&REPT(" ",1)&"SINV "&"IMS "&InTBRev!B13&REPT(" ",15-LEN(InTBRev!B13))&"IMS: INVESTMENT"&REPT(" ",10)&TEXT(InTBRev!A13+1,"yyyymmdd")&YEAR(InTBRev!A13+1)&"0"&TEXT(InTBRev!A13+1,"mm")&TEXT(InTBRev!A13+1,"yyyymmdd")&REPT(" ",6)&REPT(" ",9)&TEXT(InTBRev!A13+1,"yyyymmdd")&YEAR(InTBRev!A13+1)&"0"&TEXT(InTBRev!A13+1,"mm")&"V"&REPT(" ",85)&"COT"&REPT(" ",12)&"KLZZZ "&"CN "&"OT "&REPT(" ",196) -> 21120 202001220201208 L 000000000008265760D SINV IMS HFT IMS: INVESTMENT 20201208202001220201208 202012082020012V COT KLZZZ CN OT
A13: =IF(InTBRev!K14=999," 999",InTBRev!K14)&REPT(" ",10)&YEAR(InTBRev!A14+1)&"0"&TEXT(InTBRev!A14+1,"mm")&TEXT(InTBRev!A14+1,"yyyymmdd")&REPT(" ",2)&"L"&REPT(" ",7)&REPT(" ",7)&TEXT(ABS(InTBRev!F14)*1000,"000000000000000000")&IF(InTBRev!F14>=0,"D","C")&REPT(" ",1)&"SINV "&"IMS "&InTBRev!B14&REPT(" ",15-LEN(InTBRev!B14))&"IMS: INVESTMENT"&REPT(" ",10)&TEXT(InTBRev!A14+1,"yyyymmdd")&YEAR(InTBRev!A14+1)&"0"&TEXT(InTBRev!A14+1,"mm")&TEXT(InTBRev!A14+1,"yyyymmdd")&REPT(" ",6)&REPT(" ",9)&TEXT(InTBRev!A14+1,"yyyymmdd")&YEAR(InTBRev!A14+1)&"0"&TEXT(InTBRev!A14+1,"mm")&"V"&REPT(" ",85)&"COT"&REPT(" ",12)&"KLZZZ "&"CN "&"OT "&REPT(" ",196) -> 21120 202001220201208 L 000000000004027400C SINV IMS HFT IMS: INVESTMENT 20201208202001220201208 202012082020012V COT KLZZZ CN OT
A14: =IF(InTBRev!K15=999," 999",InTBRev!K15)&REPT(" ",10)&YEAR(InTBRev!A15+1)&"0"&TEXT(InTBRev!A15+1,"mm")&TEXT(InTBRev!A15+1,"yyyymmdd")&REPT(" ",2)&"L"&REPT(" ",7)&REPT(" ",7)&TEXT(ABS(InTBRev!F15)*1000,"000000000000000000")&IF(InTBRev!F15>=0,"D","C")&REPT(" ",1)&"SINV "&"IMS "&InTBRev!B15&REPT(" ",15-LEN(InTBRev!B15))&"IMS: INVESTMENT"&REPT(" ",10)&TEXT(InTBRev!A15+1,"yyyymmdd")&YEAR(InTBRev!A15+1)&"0"&TEXT(InTBRev!A15+1,"mm")&TEXT(InTBRev!A15+1,"yyyymmdd")&REPT(" ",6)&REPT(" ",9)&TEXT(InTBRev!A15+1,"yyyymmdd")&YEAR(InTBRev!A15+1)&"0"&TEXT(InTBRev!A15+1,"mm")&"V"&REPT(" ",85)&"COT"&REPT(" ",12)&"KLZZZ "&"CN "&"OT "&REPT(" ",196) -> 21341 202001220201208 L 000000006550154690D SINV IMS TMUT IMS: INVESTMENT 20201208202001220201208 202012082020012V COT KLZZZ CN OT
A15: =IF(InTBRev!K16=999," 999",InTBRev!K16)&REPT(" ",10)&YEAR(InTBRev!A16+1)&"0"&TEXT(InTBRev!A16+1,"mm")&TEXT(InTBRev!A16+1,"yyyymmdd")&REPT(" ",2)&"L"&REPT(" ",7)&REPT(" ",7)&TEXT(ABS(InTBRev!F16)*1000,"000000000000000000")&IF(InTBRev!F16>=0,"D","C")&REPT(" ",1)&"SINV "&"IMS "&InTBRev!B16&REPT(" ",15-LEN(InTBRev!B16))&"IMS: INVESTMENT"&REPT(" ",10)&TEXT(InTBRev!A16+1,"yyyymmdd")&YEAR(InTBRev!A16+1)&"0"&TEXT(InTBRev!A16+1,"mm")&TEXT(InTBRev!A16+1,"yyyymmdd")&REPT(" ",6)&REPT(" ",9)&TEXT(InTBRev!A16+1,"yyyymmdd")&YEAR(InTBRev!A16+1)&"0"&TEXT(InTBRev!A16+1,"mm")&"V"&REPT(" ",85)&"COT"&REPT(" ",12)&"KLZZZ "&"CN "&"OT "&REPT(" ",196) -> 21342 202001220201208 L 000000025719310710D SINV IMS TMUT IMS: INVESTMENT 20201208202001220201208 202012082020012V COT KLZZZ CN OT
A16: =IF(InTBRev!K17=999," 999",InTBRev!K17)&REPT(" ",10)&YEAR(InTBRev!A17+1)&"0"&TEXT(InTBRev!A17+1,"mm")&TEXT(InTBRev!A17+1,"yyyymmdd")&REPT(" ",2)&"L"&REPT(" ",7)&REPT(" ",7)&TEXT(ABS(InTBRev!F17)*1000,"000000000000000000")&IF(InTBRev!F17>=0,"D","C")&REPT(" ",1)&"SINV "&"IMS "&InTBRev!B17&REPT(" ",15-LEN(InTBRev!B17))&"IMS: INVESTMENT"&REPT(" ",10)&TEXT(InTBRev!A17+1,"yyyymmdd")&YEAR(InTBRev!A17+1)&"0"&TEXT(InTBRev!A17+1,"mm")&TEXT(InTBRev!A17+1,"yyyymmdd")&REPT(" ",6)&REPT(" ",9)&TEXT(InTBRev!A17+1,"yyyymmdd")&YEAR(InTBRev!A17+1)&"0"&TEXT(InTBRev!A17+1,"mm")&"V"&REPT(" ",85)&"COT"&REPT(" ",12)&"KLZZZ "&"CN "&"OT "&REPT(" ",196) -> 21343 202001220201208 L 000000031688608810D SINV IMS TMUT IMS: INVESTMENT 20201208202001220201208 202012082020012V COT KLZZZ CN OT
A17: =IF(InTBRev!K18=999," 999",InTBRev!K18)&REPT(" ",10)&YEAR(InTBRev!A18+1)&"0"&TEXT(InTBRev!A18+1,"mm")&TEXT(InTBRev!A18+1,"yyyymmdd")&REPT(" ",2)&"L"&REPT(" ",7)&REPT(" ",7)&TEXT(ABS(InTBRev!F18)*1000,"000000000000000000")&IF(InTBRev!F18>=0,"D","C")&REPT(" ",1)&"SINV "&"IMS "&InTBRev!B18&REPT(" ",15-LEN(InTBRev!B18))&"IMS: INVESTMENT"&REPT(" ",10)&TEXT(InTBRev!A18+1,"yyyymmdd")&YEAR(InTBRev!A18+1)&"0"&TEXT(InTBRev!A18+1,"mm")&TEXT(InTBRev!A18+1,"yyyymmdd")&REPT(" ",6)&REPT(" ",9)&TEXT(InTBRev!A18+1,"yyyymmdd")&YEAR(InTBRev!A18+1)&"0"&TEXT(InTBRev!A18+1,"mm")&"V"&REPT(" ",85)&"COT"&REPT(" ",12)&"KLZZZ "&"CN "&"OT "&REPT(" ",196) -> 25440 202001220201208 L 000000000662931840D SINV IMS TMUT IMS: INVESTMENT 20201208202001220201208 202012082020012V COT KLZZZ CN OT
A18: =IF(InTBRev!K19=999," 999",InTBRev!K19)&REPT(" ",10)&YEAR(InTBRev!A19+1)&"0"&TEXT(InTBRev!A19+1,"mm")&TEXT(InTBRev!A19+1,"yyyymmdd")&REPT(" ",2)&"L"&REPT(" ",7)&REPT(" ",7)&TEXT(ABS(InTBRev!F19)*1000,"000000000000000000")&IF(InTBRev!F19>=0,"D","C")&REPT(" ",1)&"SINV "&"IMS "&InTBRev!B19&REPT(" ",15-LEN(InTBRev!B19))&"IMS: INVESTMENT"&REPT(" ",10)&TEXT(InTBRev!A19+1,"yyyymmdd")&YEAR(InTBRev!A19+1)&"0"&TEXT(InTBRev!A19+1,"mm")&TEXT(InTBRev!A19+1,"yyyymmdd")&REPT(" ",6)&REPT(" ",9)&TEXT(InTBRev!A19+1,"yyyymmdd")&YEAR(InTBRev!A19+1)&"0"&TEXT(InTBRev!A19+1,"mm")&"V"&REPT(" ",85)&"COT"&REPT(" ",12)&"KLZZZ "&"CN "&"OT "&REPT(" ",196) -> 51284 202001220201208 L 000000003007340290C SINV IMS HFT IMS: INVESTMENT 20201208202001220201208 202012082020012V COT KLZZZ CN OT
A19: =IF(InTBRev!K20=999," 999",InTBRev!K20)&REPT(" ",10)&YEAR(InTBRev!A20+1)&"0"&TEXT(InTBRev!A20+1,"mm")&TEXT(InTBRev!A20+1,"yyyymmdd")&REPT(" ",2)&"L"&REPT(" ",7)&REPT(" ",7)&TEXT(ABS(InTBRev!F20)*1000,"000000000000000000")&IF(InTBRev!F20>=0,"D","C")&REPT(" ",1)&"SINV "&"IMS "&InTBRev!B20&REPT(" ",15-LEN(InTBRev!B20))&"IMS: INVESTMENT"&REPT(" ",10)&TEXT(InTBRev!A20+1,"yyyymmdd")&YEAR(InTBRev!A20+1)&"0"&TEXT(InTBRev!A20+1,"mm")&TEXT(InTBRev!A20+1,"yyyymmdd")&REPT(" ",6)&REPT(" ",9)&TEXT(InTBRev!A20+1,"yyyymmdd")&YEAR(InTBRev!A20+1)&"0"&TEXT(InTBRev!A20+1,"mm")&"V"&REPT(" ",85)&"COT"&REPT(" ",12)&"KLZZZ "&"CN "&"OT "&REPT(" ",196) -> 52001 202001220201208 L 000000325000000000C SINV IMS HFT IMS: INVESTMENT 20201208202001220201208 202012082020012V COT KLZZZ CN OT
A20: =IF(InTBRev!K21=999," 999",InTBRev!K21)&REPT(" ",10)&YEAR(InTBRev!A21+1)&"0"&TEXT(InTBRev!A21+1,"mm")&TEXT(InTBRev!A21+1,"yyyymmdd")&REPT(" ",2)&"L"&REPT(" ",7)&REPT(" ",7)&TEXT(ABS(InTBRev!F21)*1000,"000000000000000000")&IF(InTBRev!F21>=0,"D","C")&REPT(" ",1)&"SINV "&"IMS "&InTBRev!B21&REPT(" ",15-LEN(InTBRev!B21))&"IMS: INVESTMENT"&REPT(" ",10)&TEXT(InTBRev!A21+1,"yyyymmdd")&YEAR(InTBRev!A21+1)&"0"&TEXT(InTBRev!A21+1,"mm")&TEXT(InTBRev!A21+1,"yyyymmdd")&REPT(" ",6)&REPT(" ",9)&TEXT(InTBRev!A21+1,"yyyymmdd")&YEAR(InTBRev!A21+1)&"0"&TEXT(InTBRev!A21+1,"mm")&"V"&REPT(" ",85)&"COT"&REPT(" ",12)&"KLZZZ "&"CN "&"OT "&REPT(" ",196) -> 52001 202001220201208 L 000000010589036640C SINV IMS SHF IMS: INVESTMENT 20201208202001220201208 202012082020012V COT KLZZZ CN OT
A21: =IF(InTBRev!K22=999," 999",InTBRev!K22)&REPT(" ",10)&YEAR(InTBRev!A22+1)&"0"&TEXT(InTBRev!A22+1,"mm")&TEXT(InTBRev!A22+1,"yyyymmdd")&REPT(" ",2)&"L"&REPT(" ",7)&REPT(" ",7)&TEXT(ABS(InTBRev!F22)*1000,"000000000000000000")&IF(InTBRev!F22>=0,"D","C")&REPT(" ",1)&"SINV "&"IMS "&InTBRev!B22&REPT(" ",15-LEN(InTBRev!B22))&"IMS: INVESTMENT"&REPT(" ",10)&TEXT(InTBRev!A22+1,"yyyymmdd")&YEAR(InTBRev!A22+1)&"0"&TEXT(InTBRev!A22+1,"mm")&TEXT(InTBRev!A22+1,"yyyymmdd")&REPT(" ",6)&REPT(" ",9)&TEXT(InTBRev!A22+1,"yyyymmdd")&YEAR(InTBRev!A22+1)&"0"&TEXT(InTBRev!A22+1,"mm")&"V"&REPT(" ",85)&"COT"&REPT(" ",12)&"KLZZZ "&"CN "&"OT "&REPT(" ",196) -> 52003 202001220201208 L 000000044000000000C SINV IMS HFT IMS: INVESTMENT 20201208202001220201208 202012082020012V COT KLZZZ CN OT
A22: =IF(InTBRev!K23=999," 999",InTBRev!K23)&REPT(" ",10)&YEAR(InTBRev!A23+1)&"0"&TEXT(InTBRev!A23+1,"mm")&TEXT(InTBRev!A23+1,"yyyymmdd")&REPT(" ",2)&"L"&REPT(" ",7)&REPT(" ",7)&TEXT(ABS(InTBRev!F23)*1000,"000000000000000000")&IF(InTBRev!F23>=0,"D","C")&REPT(" ",1)&"SINV "&"IMS "&InTBRev!B23&REPT(" ",15-LEN(InTBRev!B23))&"IMS: INVESTMENT"&REPT(" ",10)&TEXT(InTBRev!A23+1,"yyyymmdd")&YEAR(InTBRev!A23+1)&"0"&TEXT(InTBRev!A23+1,"mm")&TEXT(InTBRev!A23+1,"yyyymmdd")&REPT(" ",6)&REPT(" ",9)&TEXT(InTBRev!A23+1,"yyyymmdd")&YEAR(InTBRev!A23+1)&"0"&TEXT(InTBRev!A23+1,"mm")&"V"&REPT(" ",85)&"COT"&REPT(" ",12)&"KLZZZ "&"CN "&"OT "&REPT(" ",196) -> 53407 202001220201208 L 000000650000000000C SINV IMS TMUT IMS: INVESTMENT 20201208202001220201208 202012082020012V COT KLZZZ CN OT
A23: =IF(InTBRev!K24=999," 999",InTBRev!K24)&REPT(" ",10)&YEAR(InTBRev!A24+1)&"0"&TEXT(InTBRev!A24+1,"mm")&TEXT(InTBRev!A24+1,"yyyymmdd")&REPT(" ",2)&"L"&REPT(" ",7)&REPT(" ",7)&TEXT(ABS(InTBRev!F24)*1000,"000000000000000000")&IF(InTBRev!F24>=0,"D","C")&REPT(" ",1)&"SINV "&"IMS "&InTBRev!B24&REPT(" ",15-LEN(InTBRev!B24))&"IMS: INVESTMENT"&REPT(" ",10)&TEXT(InTBRev!A24+1,"yyyymmdd")&YEAR(InTBRev!A24+1)&"0"&TEXT(InTBRev!A24+1,"mm")&TEXT(InTBRev!A24+1,"yyyymmdd")&REPT(" ",6)&REPT(" ",9)&TEXT(InTBRev!A24+1,"yyyymmdd")&YEAR(InTBRev!A24+1)&"0"&TEXT(InTBRev!A24+1,"mm")&"V"&REPT(" ",85)&"COT"&REPT(" ",12)&"KLZZZ "&"CN "&"OT "&REPT(" ",196) -> 53408 202001220201208 L 000000744877000420C SINV IMS TMUT IMS: INVESTMENT 20201208202001220201208 202012082020012V COT KLZZZ CN OT
A24: =IF(InTBRev!K25=999," 999",InTBRev!K25)&REPT(" ",10)&YEAR(InTBRev!A25+1)&"0"&TEXT(InTBRev!A25+1,"mm")&TEXT(InTBRev!A25+1,"yyyymmdd")&REPT(" ",2)&"L"&REPT(" ",7)&REPT(" ",7)&TEXT(ABS(InTBRev!F25)*1000,"000000000000000000")&IF(InTBRev!F25>=0,"D","C")&REPT(" ",1)&"SINV "&"IMS "&InTBRev!B25&REPT(" ",15-LEN(InTBRev!B25))&"IMS: INVESTMENT"&REPT(" ",10)&TEXT(InTBRev!A25+1,"yyyymmdd")&YEAR(InTBRev!A25+1)&"0"&TEXT(InTBRev!A25+1,"mm")&TEXT(InTBRev!A25+1,"yyyymmdd")&REPT(" ",6)&REPT(" ",9)&TEXT(InTBRev!A25+1,"yyyymmdd")&YEAR(InTBRev!A25+1)&"0"&TEXT(InTBRev!A25+1,"mm")&"V"&REPT(" ",85)&"COT"&REPT(" ",12)&"KLZZZ "&"CN "&"OT "&REPT(" ",196) -> 53409 202001220201208 L 000000239213275550C SINV IMS TMUT IMS: INVESTMENT 20201208202001220201208 202012082020012V COT KLZZZ CN OT
A25: =IF(InTBRev!K26=999," 999",InTBRev!K26)&REPT(" ",10)&YEAR(InTBRev!A26+1)&"0"&TEXT(InTBRev!A26+1,"mm")&TEXT(InTBRev!A26+1,"yyyymmdd")&REPT(" ",2)&"L"&REPT(" ",7)&REPT(" ",7)&TEXT(ABS(InTBRev!F26)*1000,"000000000000000000")&IF(InTBRev!F26>=0,"D","C")&REPT(" ",1)&"SINV "&"IMS "&InTBRev!B26&REPT(" ",15-LEN(InTBRev!B26))&"IMS: INVESTMENT"&REPT(" ",10)&TEXT(InTBRev!A26+1,"yyyymmdd")&YEAR(InTBRev!A26+1)&"0"&TEXT(InTBRev!A26+1,"mm")&TEXT(InTBRev!A26+1,"yyyymmdd")&REPT(" ",6)&REPT(" ",9)&TEXT(InTBRev!A26+1,"yyyymmdd")&YEAR(InTBRev!A26+1)&"0"&TEXT(InTBRev!A26+1,"mm")&"V"&REPT(" ",85)&"COT"&REPT(" ",12)&"KLZZZ "&"CN "&"OT "&REPT(" ",196) -> 53454 202001220201208 L 000000042940494450C SINV IMS TMUT IMS: INVESTMENT 20201208202001220201208 202012082020012V COT KLZZZ CN OT
A26: =IF(InTBRev!K27=999," 999",InTBRev!K27)&REPT(" ",10)&YEAR(InTBRev!A27+1)&"0"&TEXT(InTBRev!A27+1,"mm")&TEXT(InTBRev!A27+1,"yyyymmdd")&REPT(" ",2)&"L"&REPT(" ",7)&REPT(" ",7)&TEXT(ABS(InTBRev!F27)*1000,"000000000000000000")&IF(InTBRev!F27>=0,"D","C")&REPT(" ",1)&"SINV "&"IMS "&InTBRev!B27&REPT(" ",15-LEN(InTBRev!B27))&"IMS: INVESTMENT"&REPT(" ",10)&TEXT(InTBRev!A27+1,"yyyymmdd")&YEAR(InTBRev!A27+1)&"0"&TEXT(InTBRev!A27+1,"mm")&TEXT(InTBRev!A27+1,"yyyymmdd")&REPT(" ",6)&REPT(" ",9)&TEXT(InTBRev!A27+1,"yyyymmdd")&YEAR(InTBRev!A27+1)&"0"&TEXT(InTBRev!A27+1,"mm")&"V"&REPT(" ",85)&"COT"&REPT(" ",12)&"KLZZZ "&"CN "&"OT "&REPT(" ",196) -> 53455 202001220201208 L 000000052627249250C SINV IMS TMUT IMS: INVESTMENT 20201208202001220201208 202012082020012V COT KLZZZ CN OT
A27: =IF(InTBRev!K28=999," 999",InTBRev!K28)&REPT(" ",10)&YEAR(InTBRev!A28+1)&"0"&TEXT(InTBRev!A28+1,"mm")&TEXT(InTBRev!A28+1,"yyyymmdd")&REPT(" ",2)&"L"&REPT(" ",7)&REPT(" ",7)&TEXT(ABS(InTBRev!F28)*1000,"000000000000000000")&IF(InTBRev!F28>=0,"D","C")&REPT(" ",1)&"SINV "&"IMS "&InTBRev!B28&REPT(" ",15-LEN(InTBRev!B28))&"IMS: INVESTMENT"&REPT(" ",10)&TEXT(InTBRev!A28+1,"yyyymmdd")&YEAR(InTBRev!A28+1)&"0"&TEXT(InTBRev!A28+1,"mm")&TEXT(InTBRev!A28+1,"yyyymmdd")&REPT(" ",6)&REPT(" ",9)&TEXT(InTBRev!A28+1,"yyyymmdd")&YEAR(InTBRev!A28+1)&"0"&TEXT(InTBRev!A28+1,"mm")&"V"&REPT(" ",85)&"COT"&REPT(" ",12)&"KLZZZ "&"CN "&"OT "&REPT(" ",196) -> 53456 202001220201208 L 000000001170290150C SINV IMS TMUT IMS: INVESTMENT 20201208202001220201208 202012082020012V COT KLZZZ CN OT
A28: =IF(InTBRev!K29=999," 999",InTBRev!K29)&REPT(" ",10)&YEAR(InTBRev!A29+1)&"0"&TEXT(InTBRev!A29+1,"mm")&TEXT(InTBRev!A29+1,"yyyymmdd")&REPT(" ",2)&"L"&REPT(" ",7)&REPT(" ",7)&TEXT(ABS(InTBRev!F29)*1000,"000000000000000000")&IF(InTBRev!F29>=0,"D","C")&REPT(" ",1)&"SINV "&"IMS "&InTBRev!B29&REPT(" ",15-LEN(InTBRev!B29))&"IMS: INVESTMENT"&REPT(" ",10)&TEXT(InTBRev!A29+1,"yyyymmdd")&YEAR(InTBRev!A29+1)&"0"&TEXT(InTBRev!A29+1,"mm")&TEXT(InTBRev!A29+1,"yyyymmdd")&REPT(" ",6)&REPT(" ",9)&TEXT(InTBRev!A29+1,"yyyymmdd")&YEAR(InTBRev!A29+1)&"0"&TEXT(InTBRev!A29+1,"mm")&"V"&REPT(" ",85)&"COT"&REPT(" ",12)&"KLZZZ "&"CN "&"OT "&REPT(" ",196) -> 57110 202001220201208 L 000000000008265760C SINV IMS HFT IMS: INVESTMENT 20201208202001220201208 202012082020012V COT KLZZZ CN OT
A29: =IF(InTBRev!K30=999," 999",InTBRev!K30)&REPT(" ",10)&YEAR(InTBRev!A30+1)&"0"&TEXT(InTBRev!A30+1,"mm")&TEXT(InTBRev!A30+1,"yyyymmdd")&REPT(" ",2)&"L"&REPT(" ",7)&REPT(" ",7)&TEXT(ABS(InTBRev!F30)*1000,"000000000000000000")&IF(InTBRev!F30>=0,"D","C")&REPT(" ",1)&"SINV "&"IMS "&InTBRev!B30&REPT(" ",15-LEN(InTBRev!B30))&"IMS: INVESTMENT"&REPT(" ",10)&TEXT(InTBRev!A30+1,"yyyymmdd")&YEAR(InTBRev!A30+1)&"0"&TEXT(InTBRev!A30+1,"mm")&TEXT(InTBRev!A30+1,"yyyymmdd")&REPT(" ",6)&REPT(" ",9)&TEXT(InTBRev!A30+1,"yyyymmdd")&YEAR(InTBRev!A30+1)&"0"&TEXT(InTBRev!A30+1,"mm")&"V"&REPT(" ",85)&"COT"&REPT(" ",12)&"KLZZZ "&"CN "&"OT "&REPT(" ",196) -> 57110 202001220201208 L 000000004596698110C SINV IMS HFT IMS: INVESTMENT 20201208202001220201208 202012082020012V COT KLZZZ CN OT
A30: =IF(InTBRev!K31=999," 999",InTBRev!K31)&REPT(" ",10)&YEAR(InTBRev!A31+1)&"0"&TEXT(InTBRev!A31+1,"mm")&TEXT(InTBRev!A31+1,"yyyymmdd")&REPT(" ",2)&"L"&REPT(" ",7)&REPT(" ",7)&TEXT(ABS(InTBRev!F31)*1000,"000000000000000000")&IF(InTBRev!F31>=0,"D","C")&REPT(" ",1)&"SINV "&"IMS "&InTBRev!B31&REPT(" ",15-LEN(InTBRev!B31))&"IMS: INVESTMENT"&REPT(" ",10)&TEXT(InTBRev!A31+1,"yyyymmdd")&YEAR(InTBRev!A31+1)&"0"&TEXT(InTBRev!A31+1,"mm")&TEXT(InTBRev!A31+1,"yyyymmdd")&REPT(" ",6)&REPT(" ",9)&TEXT(InTBRev!A31+1,"yyyymmdd")&YEAR(InTBRev!A31+1)&"0"&TEXT(InTBRev!A31+1,"mm")&"V"&REPT(" ",85)&"COT"&REPT(" ",12)&"KLZZZ "&"CN "&"OT "&REPT(" ",196) -> 57110 202001220201208 L 000000000142760900C SINV IMS SHF IMS: INVESTMENT 20201208202001220201208 202012082020012V COT KLZZZ CN OT
A31: =IF(InTBRev!K32=999," 999",InTBRev!K32)&REPT(" ",10)&YEAR(InTBRev!A32+1)&"0"&TEXT(InTBRev!A32+1,"mm")&TEXT(InTBRev!A32+1,"yyyymmdd")&REPT(" ",2)&"L"&REPT(" ",7)&REPT(" ",7)&TEXT(ABS(InTBRev!F32)*1000,"000000000000000000")&IF(InTBRev!F32>=0,"D","C")&REPT(" ",1)&"SINV "&"IMS "&InTBRev!B32&REPT(" ",15-LEN(InTBRev!B32))&"IMS: INVESTMENT"&REPT(" ",10)&TEXT(InTBRev!A32+1,"yyyymmdd")&YEAR(InTBRev!A32+1)&"0"&TEXT(InTBRev!A32+1,"mm")&TEXT(InTBRev!A32+1,"yyyymmdd")&REPT(" ",6)&REPT(" ",9)&TEXT(InTBRev!A32+1,"yyyymmdd")&YEAR(InTBRev!A32+1)&"0"&TEXT(InTBRev!A32+1,"mm")&"V"&REPT(" ",85)&"COT"&REPT(" ",12)&"KLZZZ "&"CN "&"OT "&REPT(" ",196) -> 58780 202001220201208 L 000000000000000020D SINV IMS HFT IMS: INVESTMENT 20201208202001220201208 202012082020012V COT KLZZZ CN OT
A32: =IF(InTBRev!K33=999," 999",InTBRev!K33)&REPT(" ",10)&YEAR(InTBRev!A33+1)&"0"&TEXT(InTBRev!A33+1,"mm")&TEXT(InTBRev!A33+1,"yyyymmdd")&REPT(" ",2)&"L"&REPT(" ",7)&REPT(" ",7)&TEXT(ABS(InTBRev!F33)*1000,"000000000000000000")&IF(InTBRev!F33>=0,"D","C")&REPT(" ",1)&"SINV "&"IMS "&InTBRev!B33&REPT(" ",15-LEN(InTBRev!B33))&"IMS: INVESTMENT"&REPT(" ",10)&TEXT(InTBRev!A33+1,"yyyymmdd")&YEAR(InTBRev!A33+1)&"0"&TEXT(InTBRev!A33+1,"mm")&TEXT(InTBRev!A33+1,"yyyymmdd")&REPT(" ",6)&REPT(" ",9)&TEXT(InTBRev!A33+1,"yyyymmdd")&YEAR(InTBRev!A33+1)&"0"&TEXT(InTBRev!A33+1,"mm")&"V"&REPT(" ",85)&"COT"&REPT(" ",12)&"KLZZZ "&"CN "&"OT "&REPT(" ",196) -> 58780 202001220201208 L 000000001834293980D SINV IMS TMUT IMS: INVESTMENT 20201208202001220201208 202012082020012V COT KLZZZ CN OT
A33: =IF(InTBRev!K34=999," 999",InTBRev!K34)&REPT(" ",10)&YEAR(InTBRev!A34+1)&"0"&TEXT(InTBRev!A34+1,"mm")&TEXT(InTBRev!A34+1,"yyyymmdd")&REPT(" ",2)&"L"&REPT(" ",7)&REPT(" ",7)&TEXT(ABS(InTBRev!F34)*1000,"000000000000000000")&IF(InTBRev!F34>=0,"D","C")&REPT(" ",1)&"SINV "&"IMS "&InTBRev!B34&REPT(" ",15-LEN(InTBRev!B34))&"IMS: INVESTMENT"&REPT(" ",10)&TEXT(InTBRev!A34+1,"yyyymmdd")&YEAR(InTBRev!A34+1)&"0"&TEXT(InTBRev!A34+1,"mm")&TEXT(InTBRev!A34+1,"yyyymmdd")&REPT(" ",6)&REPT(" ",9)&TEXT(InTBRev!A34+1,"yyyymmdd")&YEAR(InTBRev!A34+1)&"0"&TEXT(InTBRev!A34+1,"mm")&"V"&REPT(" ",85)&"COT"&REPT(" ",12)&"KLZZZ "&"CN "&"OT "&REPT(" ",196) -> 58780 202001220201208 L 000000000933363630C SINV IMS TMUT IMS: INVESTMENT 20201208202001220201208 202012082020012V COT KLZZZ CN OT
A34: =IF(InTBRev!K35=999," 999",InTBRev!K35)&REPT(" ",10)&YEAR(InTBRev!A35+1)&"0"&TEXT(InTBRev!A35+1,"mm")&TEXT(InTBRev!A35+1,"yyyymmdd")&REPT(" ",2)&"L"&REPT(" ",7)&REPT(" ",7)&TEXT(ABS(InTBRev!F35)*1000,"000000000000000000")&IF(InTBRev!F35>=0,"D","C")&REPT(" ",1)&"SINV "&"IMS "&InTBRev!B35&REPT(" ",15-LEN(InTBRev!B35))&"IMS: INVESTMENT"&REPT(" ",10)&TEXT(InTBRev!A35+1,"yyyymmdd")&YEAR(InTBRev!A35+1)&"0"&TEXT(InTBRev!A35+1,"mm")&TEXT(InTBRev!A35+1,"yyyymmdd")&REPT(" ",6)&REPT(" ",9)&TEXT(InTBRev!A35+1,"yyyymmdd")&YEAR(InTBRev!A35+1)&"0"&TEXT(InTBRev!A35+1,"mm")&"V"&REPT(" ",85)&"COT"&REPT(" ",12)&"KLZZZ "&"CN "&"OT "&REPT(" ",196) -> 58780 202001220201208 L 000000000900930350C SINV IMS TMUT IMS: INVESTMENT 20201208202001220201208 202012082020012V COT KLZZZ CN OT
A35: =IF(InTBRev!K36=999," 999",InTBRev!K36)&REPT(" ",10)&YEAR(InTBRev!A36+1)&"0"&TEXT(InTBRev!A36+1,"mm")&TEXT(InTBRev!A36+1,"yyyymmdd")&REPT(" ",2)&"L"&REPT(" ",7)&REPT(" ",7)&TEXT(ABS(InTBRev!F36)*1000,"000000000000000000")&IF(InTBRev!F36>=0,"D","C")&REPT(" ",1)&"SINV "&"IMS "&InTBRev!B36&REPT(" ",15-LEN(InTBRev!B36))&"IMS: INVESTMENT"&REPT(" ",10)&TEXT(InTBRev!A36+1,"yyyymmdd")&YEAR(InTBRev!A36+1)&"0"&TEXT(InTBRev!A36+1,"mm")&TEXT(InTBRev!A36+1,"yyyymmdd")&REPT(" ",6)&REPT(" ",9)&TEXT(InTBRev!A36+1,"yyyymmdd")&YEAR(InTBRev!A36+1)&"0"&TEXT(InTBRev!A36+1,"mm")&"V"&REPT(" ",85)&"COT"&REPT(" ",12)&"KLZZZ "&"CN "&"OT "&REPT(" ",196) -> 76010 202001220201208 L 000000313101505720D SINV IMS HFT IMS: INVESTMENT 20201208202001220201208 202012082020012V COT KLZZZ CN OT
A36: =IF(InTBRev!K37=999," 999",InTBRev!K37)&REPT(" ",10)&YEAR(InTBRev!A37+1)&"0"&TEXT(InTBRev!A37+1,"mm")&TEXT(InTBRev!A37+1,"yyyymmdd")&REPT(" ",2)&"L"&REPT(" ",7)&REPT(" ",7)&TEXT(ABS(InTBRev!F37)*1000,"000000000000000000")&IF(InTBRev!F37>=0,"D","C")&REPT(" ",1)&"SINV "&"IMS "&InTBRev!B37&REPT(" ",15-LEN(InTBRev!B37))&"IMS: INVESTMENT"&REPT(" ",10)&TEXT(InTBRev!A37+1,"yyyymmdd")&YEAR(InTBRev!A37+1)&"0"&TEXT(InTBRev!A37+1,"mm")&TEXT(InTBRev!A37+1,"yyyymmdd")&REPT(" ",6)&REPT(" ",9)&TEXT(InTBRev!A37+1,"yyyymmdd")&YEAR(InTBRev!A37+1)&"0"&TEXT(InTBRev!A37+1,"mm")&"V"&REPT(" ",85)&"COT"&REPT(" ",12)&"KLZZZ "&"CN "&"OT "&REPT(" ",196) -> 76010 202001220201208 L 000000008550572610D SINV IMS SHF IMS: INVESTMENT 20201208202001220201208 202012082020012V COT KLZZZ CN OT
A37: =IF(InTBRev!K38=999," 999",InTBRev!K38)&REPT(" ",10)&YEAR(InTBRev!A38+1)&"0"&TEXT(InTBRev!A38+1,"mm")&TEXT(InTBRev!A38+1,"yyyymmdd")&REPT(" ",2)&"L"&REPT(" ",7)&REPT(" ",7)&TEXT(ABS(InTBRev!F38)*1000,"000000000000000000")&IF(InTBRev!F38>=0,"D","C")&REPT(" ",1)&"SINV "&"IMS "&InTBRev!B38&REPT(" ",15-LEN(InTBRev!B38))&"IMS: INVESTMENT"&REPT(" ",10)&TEXT(InTBRev!A38+1,"yyyymmdd")&YEAR(InTBRev!A38+1)&"0"&TEXT(InTBRev!A38+1,"mm")&TEXT(InTBRev!A38+1,"yyyymmdd")&REPT(" ",6)&REPT(" ",9)&TEXT(InTBRev!A38+1,"yyyymmdd")&YEAR(InTBRev!A38+1)&"0"&TEXT(InTBRev!A38+1,"mm")&"V"&REPT(" ",85)&"COT"&REPT(" ",12)&"KLZZZ "&"CN "&"OT "&REPT(" ",196) -> 76010 202001220201208 L 000000000224904180C SINV IMS TMLAFS IMS: INVESTMENT 20201208202001220201208 202012082020012V COT KLZZZ CN OT
A38: =IF(InTBRev!K39=999," 999",InTBRev!K39)&REPT(" ",10)&YEAR(InTBRev!A39+1)&"0"&TEXT(InTBRev!A39+1,"mm")&TEXT(InTBRev!A39+1,"yyyymmdd")&REPT(" ",2)&"L"&REPT(" ",7)&REPT(" ",7)&TEXT(ABS(InTBRev!F39)*1000,"000000000000000000")&IF(InTBRev!F39>=0,"D","C")&REPT(" ",1)&"SINV "&"IMS "&InTBRev!B39&REPT(" ",15-LEN(InTBRev!B39))&"IMS: INVESTMENT"&REPT(" ",10)&TEXT(InTBRev!A39+1,"yyyymmdd")&YEAR(InTBRev!A39+1)&"0"&TEXT(InTBRev!A39+1,"mm")&TEXT(InTBRev!A39+1,"yyyymmdd")&REPT(" ",6)&REPT(" ",9)&TEXT(InTBRev!A39+1,"yyyymmdd")&YEAR(InTBRev!A39+1)&"0"&TEXT(InTBRev!A39+1,"mm")&"V"&REPT(" ",85)&"COT"&REPT(" ",12)&"KLZZZ "&"CN "&"OT "&REPT(" ",196) -> 76010 202001220201208 L 000000007086950410C SINV IMS TMLHFT IMS: INVESTMENT 20201208202001220201208 202012082020012V COT KLZZZ CN OT
A39: =IF(InTBRev!K40=999," 999",InTBRev!K40)&REPT(" ",10)&YEAR(InTBRev!A40+1)&"0"&TEXT(InTBRev!A40+1,"mm")&TEXT(InTBRev!A40+1,"yyyymmdd")&REPT(" ",2)&"L"&REPT(" ",7)&REPT(" ",7)&TEXT(ABS(InTBRev!F40)*1000,"000000000000000000")&IF(InTBRev!F40>=0,"D","C")&REPT(" ",1)&"SINV "&"IMS "&InTBRev!B40&REPT(" ",15-LEN(InTBRev!B40))&"IMS: INVESTMENT"&REPT(" ",10)&TEXT(InTBRev!A40+1,"yyyymmdd")&YEAR(InTBRev!A40+1)&"0"&TEXT(InTBRev!A40+1,"mm")&TEXT(InTBRev!A40+1,"yyyymmdd")&REPT(" ",6)&REPT(" ",9)&TEXT(InTBRev!A40+1,"yyyymmdd")&YEAR(InTBRev!A40+1)&"0"&TEXT(InTBRev!A40+1,"mm")&"V"&REPT(" ",85)&"COT"&REPT(" ",12)&"KLZZZ "&"CN "&"OT "&REPT(" ",196) -> 76010 202001220201208 L 000001283534060750D SINV IMS TMUT IMS: INVESTMENT 20201208202001220201208 202012082020012V COT KLZZZ CN OT
A40: =IF(InTBRev!K41=999," 999",InTBRev!K41)&REPT(" ",10)&YEAR(InTBRev!A41+1)&"0"&TEXT(InTBRev!A41+1,"mm")&TEXT(InTBRev!A41+1,"yyyymmdd")&REPT(" ",2)&"L"&REPT(" ",7)&REPT(" ",7)&TEXT(ABS(InTBRev!F41)*1000,"000000000000000000")&IF(InTBRev!F41>=0,"D","C")&REPT(" ",1)&"SINV "&"IMS "&InTBRev!B41&REPT(" ",15-LEN(InTBRev!B41))&"IMS: INVESTMENT"&REPT(" ",10)&TEXT(InTBRev!A41+1,"yyyymmdd")&YEAR(InTBRev!A41+1)&"0"&TEXT(InTBRev!A41+1,"mm")&TEXT(InTBRev!A41+1,"yyyymmdd")&REPT(" ",6)&REPT(" ",9)&TEXT(InTBRev!A41+1,"yyyymmdd")&YEAR(InTBRev!A41+1)&"0"&TEXT(InTBRev!A41+1,"mm")&"V"&REPT(" ",85)&"COT"&REPT(" ",12)&"KLZZZ "&"CN "&"OT "&REPT(" ",196) -> 94100 202001220201208 L 000000043731156400D SINV IMS HFT IMS: INVESTMENT 20201208202001220201208 202012082020012V COT KLZZZ CN OT
A41: =IF(InTBRev!K42=999," 999",InTBRev!K42)&REPT(" ",10)&YEAR(InTBRev!A42+1)&"0"&TEXT(InTBRev!A42+1,"mm")&TEXT(InTBRev!A42+1,"yyyymmdd")&REPT(" ",2)&"L"&REPT(" ",7)&REPT(" ",7)&TEXT(ABS(InTBRev!F42)*1000,"000000000000000000")&IF(InTBRev!F42>=0,"D","C")&REPT(" ",1)&"SINV "&"IMS "&InTBRev!B42&REPT(" ",15-LEN(InTBRev!B42))&"IMS: INVESTMENT"&REPT(" ",10)&TEXT(InTBRev!A42+1,"yyyymmdd")&YEAR(InTBRev!A42+1)&"0"&TEXT(InTBRev!A42+1,"mm")&TEXT(InTBRev!A42+1,"yyyymmdd")&REPT(" ",6)&REPT(" ",9)&TEXT(InTBRev!A42+1,"yyyymmdd")&YEAR(InTBRev!A42+1)&"0"&TEXT(InTBRev!A42+1,"mm")&"V"&REPT(" ",85)&"COT"&REPT(" ",12)&"KLZZZ "&"CN "&"OT "&REPT(" ",196) -> 94100 202001220201208 L 000000000613193940D SINV IMS HFT IMS: INVESTMENT 20201208202001220201208 202012082020012V COT KLZZZ CN OT
A42: =IF(InTBRev!K43=999," 999",InTBRev!K43)&REPT(" ",10)&YEAR(InTBRev!A43+1)&"0"&TEXT(InTBRev!A43+1,"mm")&TEXT(InTBRev!A43+1,"yyyymmdd")&REPT(" ",2)&"L"&REPT(" ",7)&REPT(" ",7)&TEXT(ABS(InTBRev!F43)*1000,"000000000000000000")&IF(InTBRev!F43>=0,"D","C")&REPT(" ",1)&"SINV "&"IMS "&InTBRev!B43&REPT(" ",15-LEN(InTBRev!B43))&"IMS: INVESTMENT"&REPT(" ",10)&TEXT(InTBRev!A43+1,"yyyymmdd")&YEAR(InTBRev!A43+1)&"0"&TEXT(InTBRev!A43+1,"mm")&TEXT(InTBRev!A43+1,"yyyymmdd")&REPT(" ",6)&REPT(" ",9)&TEXT(InTBRev!A43+1,"yyyymmdd")&YEAR(InTBRev!A43+1)&"0"&TEXT(InTBRev!A43+1,"mm")&"V"&REPT(" ",85)&"COT"&REPT(" ",12)&"KLZZZ "&"CN "&"OT "&REPT(" ",196) -> 94100 202001220201208 L 000000009291150320D SINV IMS HFT IMS: INVESTMENT 20201208202001220201208 202012082020012V COT KLZZZ CN OT
A43: =IF(InTBRev!K44=999," 999",InTBRev!K44)&REPT(" ",10)&YEAR(InTBRev!A44+1)&"0"&TEXT(InTBRev!A44+1,"mm")&TEXT(InTBRev!A44+1,"yyyymmdd")&REPT(" ",2)&"L"&REPT(" ",7)&REPT(" ",7)&TEXT(ABS(InTBRev!F44)*1000,"000000000000000000")&IF(InTBRev!F44>=0,"D","C")&REPT(" ",1)&"SINV "&"IMS "&InTBRev!B44&REPT(" ",15-LEN(InTBRev!B44))&"IMS: INVESTMENT"&REPT(" ",10)&TEXT(InTBRev!A44+1,"yyyymmdd")&YEAR(InTBRev!A44+1)&"0"&TEXT(InTBRev!A44+1,"mm")&TEXT(InTBRev!A44+1,"yyyymmdd")&REPT(" ",6)&REPT(" ",9)&TEXT(InTBRev!A44+1,"yyyymmdd")&YEAR(InTBRev!A44+1)&"0"&TEXT(InTBRev!A44+1,"mm")&"V"&REPT(" ",85)&"COT"&REPT(" ",12)&"KLZZZ "&"CN "&"OT "&REPT(" ",196) -> 94100 202001220201208 L 000000001451751050D SINV IMS SHF IMS: INVESTMENT 20201208202001220201208 202012082020012V COT KLZZZ CN OT
A44: =IF(InTBRev!K45=999," 999",InTBRev!K45)&REPT(" ",10)&YEAR(InTBRev!A45+1)&"0"&TEXT(InTBRev!A45+1,"mm")&TEXT(InTBRev!A45+1,"yyyymmdd")&REPT(" ",2)&"L"&REPT(" ",7)&REPT(" ",7)&TEXT(ABS(InTBRev!F45)*1000,"000000000000000000")&IF(InTBRev!F45>=0,"D","C")&REPT(" ",1)&"SINV "&"IMS "&InTBRev!B45&REPT(" ",15-LEN(InTBRev!B45))&"IMS: INVESTMENT"&REPT(" ",10)&TEXT(InTBRev!A45+1,"yyyymmdd")&YEAR(InTBRev!A45+1)&"0"&TEXT(InTBRev!A45+1,"mm")&TEXT(InTBRev!A45+1,"yyyymmdd")&REPT(" ",6)&REPT(" ",9)&TEXT(InTBRev!A45+1,"yyyymmdd")&YEAR(InTBRev!A45+1)&"0"&TEXT(InTBRev!A45+1,"mm")&"V"&REPT(" ",85)&"COT"&REPT(" ",12)&"KLZZZ "&"CN "&"OT "&REPT(" ",196) -> 94100 202001220201208 L 000000000402429550D SINV IMS SHF IMS: INVESTMENT 20201208202001220201208 202012082020012V COT KLZZZ CN OT
A45: =IF(InTBRev!K46=999," 999",InTBRev!K46)&REPT(" ",10)&YEAR(InTBRev!A46+1)&"0"&TEXT(InTBRev!A46+1,"mm")&TEXT(InTBRev!A46+1,"yyyymmdd")&REPT(" ",2)&"L"&REPT(" ",7)&REPT(" ",7)&TEXT(ABS(InTBRev!F46)*1000,"000000000000000000")&IF(InTBRev!F46>=0,"D","C")&REPT(" ",1)&"SINV "&"IMS "&InTBRev!B46&REPT(" ",15-LEN(InTBRev!B46))&"IMS: INVESTMENT"&REPT(" ",10)&TEXT(InTBRev!A46+1,"yyyymmdd")&YEAR(InTBRev!A46+1)&"0"&TEXT(InTBRev!A46+1,"mm")&TEXT(InTBRev!A46+1,"yyyymmdd")&REPT(" ",6)&REPT(" ",9)&TEXT(InTBRev!A46+1,"yyyymmdd")&YEAR(InTBRev!A46+1)&"0"&TEXT(InTBRev!A46+1,"mm")&"V"&REPT(" ",85)&"COT"&REPT(" ",12)&"KLZZZ "&"CN "&"OT "&REPT(" ",196) -> 94100 202001220201208 L 000000000224904180D SINV IMS TMLAFS IMS: INVESTMENT 20201208202001220201208 202012082020012V COT KLZZZ CN OT
A46: =IF(InTBRev!K47=999," 999",InTBRev!K47)&REPT(" ",10)&YEAR(InTBRev!A47+1)&"0"&TEXT(InTBRev!A47+1,"mm")&TEXT(InTBRev!A47+1,"yyyymmdd")&REPT(" ",2)&"L"&REPT(" ",7)&REPT(" ",7)&TEXT(ABS(InTBRev!F47)*1000,"000000000000000000")&IF(InTBRev!F47>=0,"D","C")&REPT(" ",1)&"SINV "&"IMS "&InTBRev!B47&REPT(" ",15-LEN(InTBRev!B47))&"IMS: INVESTMENT"&REPT(" ",10)&TEXT(InTBRev!A47+1,"yyyymmdd")&YEAR(InTBRev!A47+1)&"0"&TEXT(InTBRev!A47+1,"mm")&TEXT(InTBRev!A47+1,"yyyymmdd")&REPT(" ",6)&REPT(" ",9)&TEXT(InTBRev!A47+1,"yyyymmdd")&YEAR(InTBRev!A47+1)&"0"&TEXT(InTBRev!A47+1,"mm")&"V"&REPT(" ",85)&"COT"&REPT(" ",12)&"KLZZZ "&"CN "&"OT "&REPT(" ",196) -> 94100 202001220201208 L 000000007086950410D SINV IMS TMLHFT IMS: INVESTMENT 20201208202001220201208 202012082020012V COT KLZZZ CN OT
A47: =IF(InTBRev!K48=999," 999",InTBRev!K48)&REPT(" ",10)&YEAR(InTBRev!A48+1)&"0"&TEXT(InTBRev!A48+1,"mm")&TEXT(InTBRev!A48+1,"yyyymmdd")&REPT(" ",2)&"L"&REPT(" ",7)&REPT(" ",7)&TEXT(ABS(InTBRev!F48)*1000,"000000000000000000")&IF(InTBRev!F48>=0,"D","C")&REPT(" ",1)&"SINV "&"IMS "&InTBRev!B48&REPT(" ",15-LEN(InTBRev!B48))&"IMS: INVESTMENT"&REPT(" ",10)&TEXT(InTBRev!A48+1,"yyyymmdd")&YEAR(InTBRev!A48+1)&"0"&TEXT(InTBRev!A48+1,"mm")&TEXT(InTBRev!A48+1,"yyyymmdd")&REPT(" ",6)&REPT(" ",9)&TEXT(InTBRev!A48+1,"yyyymmdd")&YEAR(InTBRev!A48+1)&"0"&TEXT(InTBRev!A48+1,"mm")&"V"&REPT(" ",85)&"COT"&REPT(" ",12)&"KLZZZ "&"CN "&"OT "&REPT(" ",196) -> 94100 202001220201208 L 000000001170290150D SINV IMS TMUT IMS: INVESTMENT 20201208202001220201208 202012082020012V COT KLZZZ CN OT
A48: =IF(InTBRev!K49=999," 999",InTBRev!K49)&REPT(" ",10)&YEAR(InTBRev!A49+1)&"0"&TEXT(InTBRev!A49+1,"mm")&TEXT(InTBRev!A49+1,"yyyymmdd")&REPT(" ",2)&"L"&REPT(" ",7)&REPT(" ",7)&TEXT(ABS(InTBRev!F49)*1000,"000000000000000000")&IF(InTBRev!F49>=0,"D","C")&REPT(" ",1)&"SINV "&"IMS "&InTBRev!B49&REPT(" ",15-LEN(InTBRev!B49))&"IMS: INVESTMENT"&REPT(" ",10)&TEXT(InTBRev!A49+1,"yyyymmdd")&YEAR(InTBRev!A49+1)&"0"&TEXT(InTBRev!A49+1,"mm")&TEXT(InTBRev!A49+1,"yyyymmdd")&REPT(" ",6)&REPT(" ",9)&TEXT(InTBRev!A49+1,"yyyymmdd")&YEAR(InTBRev!A49+1)&"0"&TEXT(InTBRev!A49+1,"mm")&"V"&REPT(" ",85)&"COT"&REPT(" ",12)&"KLZZZ "&"CN "&"OT "&REPT(" ",196) -> 94100 202001220201208 L 000000052627249250D SINV IMS TMUT IMS: INVESTMENT 20201208202001220201208 202012082020012V COT KLZZZ CN OT
A49: =IF(InTBRev!K50=999," 999",InTBRev!K50)&REPT(" ",10)&YEAR(InTBRev!A50+1)&"0"&TEXT(InTBRev!A50+1,"mm")&TEXT(InTBRev!A50+1,"yyyymmdd")&REPT(" ",2)&"L"&REPT(" ",7)&REPT(" ",7)&TEXT(ABS(InTBRev!F50)*1000,"000000000000000000")&IF(InTBRev!F50>=0,"D","C")&REPT(" ",1)&"SINV "&"IMS "&InTBRev!B50&REPT(" ",15-LEN(InTBRev!B50))&"IMS: INVESTMENT"&REPT(" ",10)&TEXT(InTBRev!A50+1,"yyyymmdd")&YEAR(InTBRev!A50+1)&"0"&TEXT(InTBRev!A50+1,"mm")&TEXT(InTBRev!A50+1,"yyyymmdd")&REPT(" ",6)&REPT(" ",9)&TEXT(InTBRev!A50+1,"yyyymmdd")&YEAR(InTBRev!A50+1)&"0"&TEXT(InTBRev!A50+1,"mm")&"V"&REPT(" ",85)&"COT"&REPT(" ",12)&"KLZZZ "&"CN "&"OT "&REPT(" ",196) -> 94100 202001220201208 L 000000042940494450D SINV IMS TMUT IMS: INVESTMENT 20201208202001220201208 202012082020012V COT KLZZZ CN OT
A50: =IF(InTBRev!K51=999," 999",InTBRev!K51)&REPT(" ",10)&YEAR(InTBRev!A51+1)&"0"&TEXT(InTBRev!A51+1,"mm")&TEXT(InTBRev!A51+1,"yyyymmdd")&REPT(" ",2)&"L"&REPT(" ",7)&REPT(" ",7)&TEXT(ABS(InTBRev!F51)*1000,"000000000000000000")&IF(InTBRev!F51>=0,"D","C")&REPT(" ",1)&"SINV "&"IMS "&InTBRev!B51&REPT(" ",15-LEN(InTBRev!B51))&"IMS: INVESTMENT"&REPT(" ",10)&TEXT(InTBRev!A51+1,"yyyymmdd")&YEAR(InTBRev!A51+1)&"0"&TEXT(InTBRev!A51+1,"mm")&TEXT(InTBRev!A51+1,"yyyymmdd")&REPT(" ",6)&REPT(" ",9)&TEXT(InTBRev!A51+1,"yyyymmdd")&YEAR(InTBRev!A51+1)&"0"&TEXT(InTBRev!A51+1,"mm")&"V"&REPT(" ",85)&"COT"&REPT(" ",12)&"KLZZZ "&"CN "&"OT "&REPT(" ",196) -> 94100 202001220201208 L 000000002339633070D SINV IMS TMUT IMS: INVESTMENT 20201208202001220201208 202012082020012V COT KLZZZ CN OT
A51: =IF(InTBRev!K52=999," 999",InTBRev!K52)&REPT(" ",10)&YEAR(InTBRev!A52+1)&"0"&TEXT(InTBRev!A52+1,"mm")&TEXT(InTBRev!A52+1,"yyyymmdd")&REPT(" ",2)&"L"&REPT(" ",7)&REPT(" ",7)&TEXT(ABS(InTBRev!F52)*1000,"000000000000000000")&IF(InTBRev!F52>=0,"D","C")&REPT(" ",1)&"SINV "&"IMS "&InTBRev!B52&REPT(" ",15-LEN(InTBRev!B52))&"IMS: INVESTMENT"&REPT(" ",10)&TEXT(InTBRev!A52+1,"yyyymmdd")&YEAR(InTBRev!A52+1)&"0"&TEXT(InTBRev!A52+1,"mm")&TEXT(InTBRev!A52+1,"yyyymmdd")&REPT(" ",6)&REPT(" ",9)&TEXT(InTBRev!A52+1,"yyyymmdd")&YEAR(InTBRev!A52+1)&"0"&TEXT(InTBRev!A52+1,"mm")&"V"&REPT(" ",85)&"COT"&REPT(" ",12)&"KLZZZ "&"CN "&"OT "&REPT(" ",196) -> 94100 202001220201208 L 000000043694328020D SINV IMS TMUT IMS: INVESTMENT 20201208202001220201208 202012082020012V COT KLZZZ CN OT
A52: =IF(InTBRev!K53=999," 999",InTBRev!K53)&REPT(" ",10)&YEAR(InTBRev!A53+1)&"0"&TEXT(InTBRev!A53+1,"mm")&TEXT(InTBRev!A53+1,"yyyymmdd")&REPT(" ",2)&"L"&REPT(" ",7)&REPT(" ",7)&TEXT(ABS(InTBRev!F53)*1000,"000000000000000000")&IF(InTBRev!F53>=0,"D","C")&REPT(" ",1)&"SINV "&"IMS "&InTBRev!B53&REPT(" ",15-LEN(InTBRev!B53))&"IMS: INVESTMENT"&REPT(" ",10)&TEXT(InTBRev!A53+1,"yyyymmdd")&YEAR(InTBRev!A53+1)&"0"&TEXT(InTBRev!A53+1,"mm")&TEXT(InTBRev!A53+1,"yyyymmdd")&REPT(" ",6)&REPT(" ",9)&TEXT(InTBRev!A53+1,"yyyymmdd")&YEAR(InTBRev!A53+1)&"0"&TEXT(InTBRev!A53+1,"mm")&"V"&REPT(" ",85)&"COT"&REPT(" ",12)&"KLZZZ "&"CN "&"OT "&REPT(" ",196) -> 94100 202001220201208 L 000000027871948380D SINV IMS TMUT IMS: INVESTMENT 20201208202001220201208 202012082020012V COT KLZZZ CN OT
A53: =IF(InTBRev!K54=999," 999",InTBRev!K54)&REPT(" ",10)&YEAR(InTBRev!A54+1)&"0"&TEXT(InTBRev!A54+1,"mm")&TEXT(InTBRev!A54+1,"yyyymmdd")&REPT(" ",2)&"L"&REPT(" ",7)&REPT(" ",7)&TEXT(ABS(InTBRev!F54)*1000,"000000000000000000")&IF(InTBRev!F54>=0,"D","C")&REPT(" ",1)&"SINV "&"IMS "&InTBRev!B54&REPT(" ",15-LEN(InTBRev!B54))&"IMS: INVESTMENT"&REPT(" ",10)&TEXT(InTBRev!A54+1,"yyyymmdd")&YEAR(InTBRev!A54+1)&"0"&TEXT(InTBRev!A54+1,"mm")&TEXT(InTBRev!A54+1,"yyyymmdd")&REPT(" ",6)&REPT(" ",9)&TEXT(InTBRev!A54+1,"yyyymmdd")&YEAR(InTBRev!A54+1)&"0"&TEXT(InTBRev!A54+1,"mm")&"V"&REPT(" ",85)&"COT"&REPT(" ",12)&"KLZZZ "&"CN "&"OT "&REPT(" ",196) -> 94100 202001220201208 L 000000217618057280D SINV IMS TMUT IMS: INVESTMENT 20201208202001220201208 202012082020012V COT KLZZZ CN OT
A54: =IF(InTBRev!K55=999," 999",InTBRev!K55)&REPT(" ",10)&YEAR(InTBRev!A55+1)&"0"&TEXT(InTBRev!A55+1,"mm")&TEXT(InTBRev!A55+1,"yyyymmdd")&REPT(" ",2)&"L"&REPT(" ",7)&REPT(" ",7)&TEXT(ABS(InTBRev!F55)*1000,"000000000000000000")&IF(InTBRev!F55>=0,"D","C")&REPT(" ",1)&"SINV "&"IMS "&InTBRev!B55&REPT(" ",15-LEN(InTBRev!B55))&"IMS: INVESTMENT"&REPT(" ",10)&TEXT(InTBRev!A55+1,"yyyymmdd")&YEAR(InTBRev!A55+1)&"0"&TEXT(InTBRev!A55+1,"mm")&TEXT(InTBRev!A55+1,"yyyymmdd")&REPT(" ",6)&REPT(" ",9)&TEXT(InTBRev!A55+1,"yyyymmdd")&YEAR(InTBRev!A55+1)&"0"&TEXT(InTBRev!A55+1,"mm")&"V"&REPT(" ",85)&"COT"&REPT(" ",12)&"KLZZZ "&"CN "&"OT "&REPT(" ",196) -> 94100 202001220201208 L 000000008612271130D SINV IMS TMUT IMS: INVESTMENT 20201208202001220201208 202012082020012V COT KLZZZ CN OT
A55: =IF(InTBRev!K56=999," 999",InTBRev!K56)&REPT(" ",10)&YEAR(InTBRev!A56+1)&"0"&TEXT(InTBRev!A56+1,"mm")&TEXT(InTBRev!A56+1,"yyyymmdd")&REPT(" ",2)&"L"&REPT(" ",7)&REPT(" ",7)&TEXT(ABS(InTBRev!F56)*1000,"000000000000000000")&IF(InTBRev!F56>=0,"D","C")&REPT(" ",1)&"SINV "&"IMS "&InTBRev!B56&REPT(" ",15-LEN(InTBRev!B56))&"IMS: INVESTMENT"&REPT(" ",10)&TEXT(InTBRev!A56+1,"yyyymmdd")&YEAR(InTBRev!A56+1)&"0"&TEXT(InTBRev!A56+1,"mm")&TEXT(InTBRev!A56+1,"yyyymmdd")&REPT(" ",6)&REPT(" ",9)&TEXT(InTBRev!A56+1,"yyyymmdd")&YEAR(InTBRev!A56+1)&"0"&TEXT(InTBRev!A56+1,"mm")&"V"&REPT(" ",85)&"COT"&REPT(" ",12)&"KLZZZ "&"CN "&"OT "&REPT(" ",196) -> 94100 202001220201208 L 000000034307895000D SINV IMS TMUT IMS: INVESTMENT 20201208202001220201208 202012082020012V COT KLZZZ CN OT
A56: =IF(InTBRev!K57=999," 999",InTBRev!K57)&REPT(" ",10)&YEAR(InTBRev!A57+1)&"0"&TEXT(InTBRev!A57+1,"mm")&TEXT(InTBRev!A57+1,"yyyymmdd")&REPT(" ",2)&"L"&REPT(" ",7)&REPT(" ",7)&TEXT(ABS(InTBRev!F57)*1000,"000000000000000000")&IF(InTBRev!F57>=0,"D","C")&REPT(" ",1)&"SINV "&"IMS "&InTBRev!B57&REPT(" ",15-LEN(InTBRev!B57))&"IMS: INVESTMENT"&REPT(" ",10)&TEXT(InTBRev!A57+1,"yyyymmdd")&YEAR(InTBRev!A57+1)&"0"&TEXT(InTBRev!A57+1,"mm")&TEXT(InTBRev!A57+1,"yyyymmdd")&REPT(" ",6)&REPT(" ",9)&TEXT(InTBRev!A57+1,"yyyymmdd")&YEAR(InTBRev!A57+1)&"0"&TEXT(InTBRev!A57+1,"mm")&"V"&REPT(" ",85)&"COT"&REPT(" ",12)&"KLZZZ "&"CN "&"OT "&REPT(" ",196) -> 94100 202001220201208 L 000000025179155840D SINV IMS TMUT IMS: INVESTMENT 20201208202001220201208 202012082020012V COT KLZZZ CN OT
A57: =IF(InTBRev!K58=999," 999",InTBRev!K58)&REPT(" ",10)&YEAR(InTBRev!A58+1)&"0"&TEXT(InTBRev!A58+1,"mm")&TEXT(InTBRev!A58+1,"yyyymmdd")&REPT(" ",2)&"L"&REPT(" ",7)&REPT(" ",7)&TEXT(ABS(InTBRev!F58)*1000,"000000000000000000")&IF(InTBRev!F58>=0,"D","C")&REPT(" ",1)&"SINV "&"IMS "&InTBRev!B58&REPT(" ",15-LEN(InTBRev!B58))&"IMS: INVESTMENT"&REPT(" ",10)&TEXT(InTBRev!A58+1,"yyyymmdd")&YEAR(InTBRev!A58+1)&"0"&TEXT(InTBRev!A58+1,"mm")&TEXT(InTBRev!A58+1,"yyyymmdd")&REPT(" ",6)&REPT(" ",9)&TEXT(InTBRev!A58+1,"yyyymmdd")&YEAR(InTBRev!A58+1)&"0"&TEXT(InTBRev!A58+1,"mm")&"V"&REPT(" ",85)&"COT"&REPT(" ",12)&"KLZZZ "&"CN "&"OT "&REPT(" ",196) -> 94100 202001220201208 L 000000002339633070C SINV IMS TMUT IMS: INVESTMENT 20201208202001220201208 202012082020012V COT KLZZZ CN OT
A58: =IF(InTBRev!K59=999," 999",InTBRev!K59)&REPT(" ",10)&YEAR(InTBRev!A59+1)&"0"&TEXT(InTBRev!A59+1,"mm")&TEXT(InTBRev!A59+1,"yyyymmdd")&REPT(" ",2)&"L"&REPT(" ",7)&REPT(" ",7)&TEXT(ABS(InTBRev!F59)*1000,"000000000000000000")&IF(InTBRev!F59>=0,"D","C")&REPT(" ",1)&"SINV "&"IMS "&InTBRev!B59&REPT(" ",15-LEN(InTBRev!B59))&"IMS: INVESTMENT"&REPT(" ",10)&TEXT(InTBRev!A59+1,"yyyymmdd")&YEAR(InTBRev!A59+1)&"0"&TEXT(InTBRev!A59+1,"mm")&TEXT(InTBRev!A59+1,"yyyymmdd")&REPT(" ",6)&REPT(" ",9)&TEXT(InTBRev!A59+1,"yyyymmdd")&YEAR(InTBRev!A59+1)&"0"&TEXT(InTBRev!A59+1,"mm")&"V"&REPT(" ",85)&"COT"&REPT(" ",12)&"KLZZZ "&"CN "&"OT "&REPT(" ",196) -> 94100 202001220201208 L 000000043694328020C SINV IMS TMUT IMS: INVESTMENT 20201208202001220201208 202012082020012V COT KLZZZ CN OT
A59: =IF(InTBRev!K60=999," 999",InTBRev!K60)&REPT(" ",10)&YEAR(InTBRev!A60+1)&"0"&TEXT(InTBRev!A60+1,"mm")&TEXT(InTBRev!A60+1,"yyyymmdd")&REPT(" ",2)&"L"&REPT(" ",7)&REPT(" ",7)&TEXT(ABS(InTBRev!F60)*1000,"000000000000000000")&IF(InTBRev!F60>=0,"D","C")&REPT(" ",1)&"SINV "&"IMS "&InTBRev!B60&REPT(" ",15-LEN(InTBRev!B60))&"IMS: INVESTMENT"&REPT(" ",10)&TEXT(InTBRev!A60+1,"yyyymmdd")&YEAR(InTBRev!A60+1)&"0"&TEXT(InTBRev!A60+1,"mm")&TEXT(InTBRev!A60+1,"yyyymmdd")&REPT(" ",6)&REPT(" ",9)&TEXT(InTBRev!A60+1,"yyyymmdd")&YEAR(InTBRev!A60+1)&"0"&TEXT(InTBRev!A60+1,"mm")&"V"&REPT(" ",85)&"COT"&REPT(" ",12)&"KLZZZ "&"CN "&"OT "&REPT(" ",196) -> 94100 202001220201208 L 000000027871948380C SINV IMS TMUT IMS: INVESTMENT 20201208202001220201208 202012082020012V COT KLZZZ CN OT

Sheet InTB
F1: -1 | H1: =IF(I1=0,DATE(3000,1,1),IF(OR(LEFT(D1,1)="6",LEFT(D1,1)="7"),EOMONTH(A1,-MONTH(A1)+CHOOSE(CEILING(MONTH(A1)/3,1),1,4,7,10)-1)+1,A1)) -> 3000-01-01 | I1: =IF(COUNTA(InCurrency!A:A)=1,0,IF(G1=GlobalCurr,1,1/VLOOKUP(TEXT(IF(OR(LEFT(D1,1)="6",LEFT(D1,1)="7"),EOMONTH(A1,-MONTH(A1)+CHOOSE(CEILING(MONTH(A1)/3,1),1,4,7,10)-1)+1,A1),"dd-MM-yyyy")&G1,InCurrency!$D:$E,2,0))) -> 0 | J1: =IF(COUNTA(InCurrency!A:A)=1,0,ROUND(F1*I1,2)) -> 0 | K1: =IFERROR(IF(OR(D1="200000",D1="300000"),VLOOKUP(D1,Mapping!A:E,5,0),IF(D1="500000",IF(B1="HWANG",VLOOKUP("HWANG500000",Mapping!$A:$E,5,0),VLOOKUP("RHB500000",Mapping!$A:$E,5,0)),VLOOKUP(D1&E1,Mapping!C:E,3,0))),0) -> 0
A2: TBDate | B2: qFundCode | C2: Description | D2: ShortGL | E2: qAssetAccType | F2: Total | G2: qCurrencyCode | H2: Currency Date | I2: Currency | J2: USD Value | K2: SunGL code
A3: 2020-12-14 | B3: HFT | C3: Expenses: Bank Charges | D3: 710102 | E3: 000 | F3: 701 | G3: MYR | H3: 3000-01-01 | I3: 0 | J3: 0 | K3: 12340
A4: 2020-12-14 | B4: HFT | C4: Income: Other Income | D4: 640003 | E4: 000 | F4: -8.74 | G4: MYR | H4: 3000-01-01 | I4: 0 | J4: 0 | K4: 16210
A5: 2020-12-14 | B5: TMUT | C5: Income: Rebates of Management Fee | D5: 640001 | E5: 000 | F5: -217829.92 | G5: MYR | H5: 3000-01-01 | I5: 0 | J5: 0 | K5: 16210
A6: 2020-12-14 | B6: HFT | C6: Income PL | D6: 630000 | E6: 220 | F6: -8487715.46 | G6: MYR | H6: 3000-01-01 | I6: 0 | J6: 0 | K6: 21110
A7: 2020-12-14 | B7: HFT | C7: Income Accrual PL (Valuation) | D7: 639000 | E7: 220 | F7: -4772902.48 | G7: MYR | H7: 3000-01-01 | I7: 0 | J7: 0 | K7: 21110
A8: 2020-12-14 | B8: HFT | C8: Control: Last Year Accrued Income | D8: 939000 | E8: 220 | F8: 3614558.89 | G8: MYR | H8: 3000-01-01 | I8: 0 | J8: 0 | K8: 21110
A9: 2020-12-14 | B9: SHF | C9: Income PL | D9: 630000 | E9: 220 | F9: -397668.95 | G9: MYR | H9: 3000-01-01 | I9: 0 | J9: 0 | K9: 21110
A10: 2020-12-14 | B10: SHF | C10: Income Accrual PL (Valuation) | D10: 639000 | E10: 220 | F10: -148176.36 | G10: MYR | H10: 3000-01-01 | I10: 0 | J10: 0 | K10: 21110
A11: 2020-12-14 | B11: SHF | C11: Control: Last Year Accrued Income | D11: 939000 | E11: 220 | F11: 213385.52 | G11: MYR | H11: 3000-01-01 | I11: 0 | J11: 0 | K11: 21110
A12: 2020-12-14 | B12: HFT | C12: Income PL | D12: 630000 | E12: 210 | F12: -405924.38 | G12: MYR | H12: 3000-01-01 | I12: 0 | J12: 0 | K12: 21120
A13: 2020-12-14 | B13: HFT | C13: Income Accrual PL (Valuation) | D13: 639000 | E13: 210 | F13: -18410.96 | G13: MYR | H13: 3000-01-01 | I13: 0 | J13: 0 | K13: 21120
A14: 2020-12-14 | B14: HFT | C14: Control: Last Year Accrued Income | D14: 939000 | E14: 210 | F14: 4027.4 | G14: MYR | H14: 3000-01-01 | I14: 0 | J14: 0 | K14: 21120
A15: 2020-12-14 | B15: TMUT | C15: Dividend: Tax Exempted Dividend Income | D15: 636000 | E15: 430 | F15: -6656609.54 | G15: MYR | H15: 3000-01-01 | I15: 0 | J15: 0 | K15: 21341
A16: 2020-12-14 | B16: TMUT | C16: Dividend: Tax Exempted Dividend Income | D16: 636000 | E16: 450 | F16: -25719310.71 | G16: MYR | H16: 3000-01-01 | I16: 0 | J16: 0 | K16: 21342
A17: 2020-12-14 | B17: TMUT | C17: Dividend: Tax Exempted Dividend Income | D17: 636000 | E17: 440 | F17: -31688608.81 | G17: MYR | H17: 3000-01-01 | I17: 0 | J17: 0 | K17: 21343
A18: 2020-12-14 | B18: TMUT | C18: Gains: Realised GnL | D18: 600000 | E18: 430 | F18: 2957.11 | G18: MYR | H18: 3000-01-01 | I18: 0 | J18: 0 | K18: 25440
A19: 2020-12-14 | B19: TMUT | C19: Gains: Realised GnL | D19: 600000 | E19: 440 | F19: -662931.84 | G19: MYR | H19: 3000-01-01 | I19: 0 | J19: 0 | K19: 25440
A20: 2020-12-14 | B20: HFT | C20: Bank: Default Bank | D20: 500000 | E20: 000 | F20: 3084545.14 | G20: MYR | H20: 3000-01-01 | I20: 0 | J20: 0 | K20: 51284
A21: 2020-12-14 | B21: HFT | C21: Cost: Investment | D21: 100000 | E21: 220 | F21: 325000000 | G21: MYR | H21: 3000-01-01 | I21: 0 | J21: 0 | K21: 52001
A22: 2020-12-14 | B22: SHF | C22: Cost: Investment | D22: 100000 | E22: 220 | F22: 10589036.64 | G22: MYR | H22: 3000-01-01 | I22: 0 | J22: 0 | K22: 52001
A23: 2020-12-14 | B23: HFT | C23: Cost: Investment | D23: 100000 | E23: 210 | F23: 50000000 | G23: MYR | H23: 3000-01-01 | I23: 0 | J23: 0 | K23: 52003
A24: 2020-12-14 | B24: TMUT | C24: Cost: Investment | D24: 100000 | E24: 450 | F24: 650000000 | G24: MYR | H24: 3000-01-01 | I24: 0 | J24: 0 | K24: 53407
A25: 2020-12-14 | B25: TMUT | C25: Cost: Investment | D25: 100000 | E25: 440 | F25: 744877000.4 | G25: MYR | H25: 3000-01-01 | I25: 0 | J25: 0 | K25: 53408
A26: 2020-12-14 | B26: TMUT | C26: Cost: Investment | D26: 100000 | E26: 430 | F26: 209221936 | G26: MYR | H26: 3000-01-01 | I26: 0 | J26: 0 | K26: 53409
A27: 2020-12-14 | B27: TMUT | C27: Unrealised GnL - Investment | D27: 189000 | E27: 450 | F27: 42940494.45 | G27: MYR | H27: 3000-01-01 | I27: 0 | J27: 0 | K27: 53454
A28: 2020-12-14 | B28: TMUT | C28: Unrealised GnL - Investment | D28: 189000 | E28: 440 | F28: 52627249.25 | G28: MYR | H28: 3000-01-01 | I28: 0 | J28: 0 | K28: 53455
A29: 2020-12-14 | B29: TMUT | C29: Unrealised GnL - Investment | D29: 189000 | E29: 430 | F29: 1173253.45 | G29: MYR | H29: 3000-01-01 | I29: 0 | J29: 0 | K29: 53456
A30: 2020-12-14 | B30: HFT | C30: Income Accrual BS | D30: 139000 | E30: 210 | F30: 18410.96 | G30: MYR | H30: 3000-01-01 | I30: 0 | J30: 0 | K30: 57110
A31: 2020-12-14 | B31: HFT | C31: Income Accrual BS | D31: 139000 | E31: 220 | F31: 4772902.48 | G31: MYR | H31: 3000-01-01 | I31: 0 | J31: 0 | K31: 57110
A32: 2020-12-14 | B32: SHF | C32: Income Accrual BS | D32: 139000 | E32: 220 | F32: 148176.36 | G32: MYR | H32: 3000-01-01 | I32: 0 | J32: 0 | K32: 57110
A33: 2020-12-14 | B33: HFT | C33: Debtor: Others Investment Debtors | D33: 200100 | E33: 000 | F33: -0.02 | G33: MYR | H33: 3000-01-01 | I33: 0 | J33: 0 | K33: 58780
A34: 2020-12-14 | B34: TMUT | C34: DivDebtor: Dividend Receivable | D34: 299000 | E34: 430 | F34: -1821634.12 | G34: MYR | H34: 3000-01-01 | I34: 0 | J34: 0 | K34: 58780
A35: 2020-12-14 | B35: TMUT | C35: DivDebtor: Dividend Receivable | D35: 299000 | E35: 440 | F35: 933363.63 | G35: MYR | H35: 3000-01-01 | I35: 0 | J35: 0 | K35: 58780
A36: 2020-12-14 | B36: TMUT | C36: DivDebtor: Dividend Receivable | D36: 299000 | E36: 450 | F36: 900930.35 | G36: MYR | H36: 3000-01-01 | I36: 0 | J36: 0 | K36: 58780
A37: 2020-12-14 | B37: HFT | C37: Capital: Unitholder Capital | D37: 800000 | E37: 000 | F37: -319174683.2 | G37: MYR | H37: 3000-01-01 | I37: 0 | J37: 0 | K37: 76010
A38: 2020-12-14 | B38: SHF | C38: Capital: Unitholder Capital | D38: 800000 | E38: 000 | F38: -8550572.61 | G38: MYR | H38: 3000-01-01 | I38: 0 | J38: 0 | K38: 76010
A39: 2020-12-14 | B39: TMLAFS | C39: Capital: Unitholder Capital | D39: 800000 | E39: 000 | F39: 224904.18 | G39: MYR | H39: 3000-01-01 | I39: 0 | J39: 0 | K39: 76010
A40: 2020-12-14 | B40: TMLHFT | C40: Capital: Unitholder Capital | D40: 800000 | E40: 000 | F40: 7086950.41 | G40: MYR | H40: 3000-01-01 | I40: 0 | J40: 0 | K40: 76010
A41: 2020-12-14 | B41: TMUT | C41: Capital: Unitholder Capital | D41: 800000 | E41: 000 | F41: -1283460883 | G41: MYR | H41: 3000-01-01 | I41: 0 | J41: 0 | K41: 76010
A42: 2020-12-14 | B42: HFT | C42: Profit: Last Year Realised Retained Profit | D42: 830000 | E42: 000 | F42: -43731156.4 | G42: MYR | H42: 3000-01-01 | I42: 0 | J42: 0 | K42: 94100
A43: 2020-12-14 | B43: HFT | C43: Profit: Last Year Realised Retained Profit | D43: 830000 | E43: 210 | F43: -613193.94 | G43: MYR | H43: 3000-01-01 | I43: 0 | J43: 0 | K43: 94100
A44: 2020-12-14 | B44: HFT | C44: Profit: Last Year Realised Retained Profit | D44: 830000 | E44: 220 | F44: -9291150.32 | G44: MYR | H44: 3000-01-01 | I44: 0 | J44: 0 | K44: 94100
A45: 2020-12-14 | B45: SHF | C45: Profit: Last Year Realised Retained Profit | D45: 830000 | E45: 000 | F45: -1451751.05 | G45: MYR | H45: 3000-01-01 | I45: 0 | J45: 0 | K45: 94100
A46: 2020-12-14 | B46: SHF | C46: Profit: Last Year Realised Retained Profit | D46: 830000 | E46: 220 | F46: -402429.55 | G46: MYR | H46: 3000-01-01 | I46: 0 | J46: 0 | K46: 94100
A47: 2020-12-14 | B47: TMLAFS | C47: Profit: Last Year Realised Retained Profit | D47: 830000 | E47: 000 | F47: -224904.18 | G47: MYR | H47: 3000-01-01 | I47: 0 | J47: 0 | K47: 94100
A48: 2020-12-14 | B48: TMLHFT | C48: Profit: Last Year Realised Retained Profit | D48: 830000 | E48: 000 | F48: -7086950.41 | G48: MYR | H48: 3000-01-01 | I48: 0 | J48: 0 | K48: 94100
A49: 2020-12-14 | B49: TMUT | C49: Profit: Last Year Realised Retained Profit | D49: 830000 | E49: 000 | F49: -217618057.3 | G49: MYR | H49: 3000-01-01 | I49: 0 | J49: 0 | K49: 94100
A50: 2020-12-14 | B50: TMUT | C50: Unrealised GnL PL - Investment | D50: 689000 | E50: 430 | F50: -1173253.45 | G50: MYR | H50: 3000-01-01 | I50: 0 | J50: 0 | K50: 94100
A51: 2020-12-14 | B51: TMUT | C51: Profit: Last Year Unrealised Reserved | D51: 810000 | E51: 430 | F51: -2339633.07 | G51: MYR | H51: 3000-01-01 | I51: 0 | J51: 0 | K51: 94100
A52: 2020-12-14 | B52: TMUT | C52: Profit: Last Year Realised Retained Profit | D52: 830000 | E52: 430 | F52: -8612271.13 | G52: MYR | H52: 3000-01-01 | I52: 0 | J52: 0 | K52: 94100
A53: 2020-12-14 | B53: TMUT | C53: Control: Last Year Unrealised GnL Investment | D53: 989000 | E53: 430 | F53: 2339633.07 | G53: MYR | H53: 3000-01-01 | I53: 0 | J53: 0 | K53: 94100
A54: 2020-12-14 | B54: TMUT | C54: Unrealised GnL PL - Investment | D54: 689000 | E54: 440 | F54: -52627249.25 | G54: MYR | H54: 3000-01-01 | I54: 0 | J54: 0 | K54: 94100
A55: 2020-12-14 | B55: TMUT | C55: Profit: Last Year Unrealised Reserved | D55: 810000 | E55: 440 | F55: -43694328.02 | G55: MYR | H55: 3000-01-01 | I55: 0 | J55: 0 | K55: 94100
A56: 2020-12-14 | B56: TMUT | C56: Profit: Last Year Realised Retained Profit | D56: 830000 | E56: 440 | F56: -34307895 | G56: MYR | H56: 3000-01-01 | I56: 0 | J56: 0 | K56: 94100
A57: 2020-12-14 | B57: TMUT | C57: Control: Last Year Unrealised GnL Investment | D57: 989000 | E57: 440 | F57: 43694328.02 | G57: MYR | H57: 3000-01-01 | I57: 0 | J57: 0 | K57: 94100
A58: 2020-12-14 | B58: TMUT | C58: Unrealised GnL PL - Investment | D58: 689000 | E58: 450 | F58: -42940494.45 | G58: MYR | H58: 3000-01-01 | I58: 0 | J58: 0 | K58: 94100
A59: 2020-12-14 | B59: TMUT | C59: Profit: Last Year Unrealised Reserved | D59: 810000 | E59: 450 | F59: -27871948.38 | G59: MYR | H59: 3000-01-01 | I59: 0 | J59: 0 | K59: 94100
A60: 2020-12-14 | B60: TMUT | C60: Profit: Last Year Realised Retained Profit | D60: 830000 | E60: 450 | F60: -25179155.84 | G60: MYR | H60: 3000-01-01 | I60: 0 | J60: 0 | K60: 94100
A61: 2020-12-14 | B61: TMUT | C61: Control: Last Year Unrealised GnL Investment | D61: 989000 | E61: 450 | F61: 27871948.38 | G61: MYR | H61: 3000-01-01 | I61: 0 | J61: 0 | K61: 94100
A62: 2020-12-14 | B62: TMUT | C62: Debtor: Investment | D62: 200000 | E62: 430 | F62: 30009000 | G62: MYR | H62: 3000-01-01 | I62: 0 | J62: 0 | K62: =IFERROR(IF(OR(D62="200000",D62="300000"),VLOOKUP(D62,Mapping!A:E,5,0),IF(D62="500000",IF(B62="HWANG",VLOOKUP("HWANG500000",Mapping!$A:$E,5,0),VLOOKUP("RHB500000",Mapping!$A:$E,5,0)),VLOOKUP(D62&E62,Mapping!C:E,3,0))),0) -> 58780

Sheet InTBRev
F1: -1
A2: TBDate | B2: qFundCode | C2: Description | D2: ShortGL | E2: qAssetAccType | F2: Total | G2: qCurrencyCode | H2: Currency Date | I2: Currency | J2: USD Value | K2: SunGL code
A3: 2020-12-07 | B3: HFT | C3: 12340 | F3: -701 | G3: MYR | J3: 0 | K3: 12340
A4: 2020-12-07 | B4: HFT | C4: 16210 | F4: 8.74 | G4: MYR | J4: 0 | K4: 16210
A5: 2020-12-07 | B5: TMUT | C5: 16210 | F5: 217829.92 | G5: MYR | J5: 0 | K5: 16210
A6: 2020-12-07 | B6: HFT | C6: 21110 | F6: 8487715.46 | G6: MYR | J6: 0 | K6: 21110
A7: 2020-12-07 | B7: HFT | C7: 21110 | F7: 4596698.11 | G7: MYR | J7: 0 | K7: 21110
A8: 2020-12-07 | B8: HFT | C8: 21110 | F8: -3614558.89 | G8: MYR | J8: 0 | K8: 21110
A9: 2020-12-07 | B9: SHF | C9: 21110 | F9: 397668.95 | G9: MYR | J9: 0 | K9: 21110
A10: 2020-12-07 | B10: SHF | C10: 21110 | F10: 142760.9 | G10: MYR | J10: 0 | K10: 21110
A11: 2020-12-07 | B11: SHF | C11: 21110 | F11: -213385.52 | G11: MYR | J11: 0 | K11: 21110
A12: 2020-12-07 | B12: HFT | C12: 21120 | F12: 401896.98 | G12: MYR | J12: 0 | K12: 21120
A13: 2020-12-07 | B13: HFT | C13: 21120 | F13: 8265.76 | G13: MYR | J13: 0 | K13: 21120
A14: 2020-12-07 | B14: HFT | C14: 21120 | F14: -4027.4 | G14: MYR | J14: 0 | K14: 21120
A15: 2020-12-07 | B15: TMUT | C15: 21341 | F15: 6550154.69 | G15: MYR | J15: 0 | K15: 21341
A16: 2020-12-07 | B16: TMUT | C16: 21342 | F16: 25719310.71 | G16: MYR | J16: 0 | K16: 21342
A17: 2020-12-07 | B17: TMUT | C17: 21343 | F17: 31688608.81 | G17: MYR | J17: 0 | K17: 21343
A18: 2020-12-07 | B18: TMUT | C18: 25440 | F18: 662931.84 | G18: MYR | J18: 0 | K18: 25440
A19: 2020-12-07 | B19: HFT | C19: 51284 | F19: -3007340.29 | G19: MYR | J19: 0 | K19: 51284
A20: 2020-12-07 | B20: HFT | C20: 52001 | F20: -325000000 | G20: MYR | J20: 0 | K20: 52001
A21: 2020-12-07 | B21: SHF | C21: 52001 | F21: -10589036.64 | G21: MYR | J21: 0 | K21: 52001
A22: 2020-12-07 | B22: HFT | C22: 52003 | F22: -44000000 | G22: MYR | J22: 0 | K22: 52003
A23: 2020-12-07 | B23: TMUT | C23: 53407 | F23: -650000000 | G23: MYR | J23: 0 | K23: 53407
A24: 2020-12-07 | B24: TMUT | C24: 53408 | F24: -744877000.4 | G24: MYR | J24: 0 | K24: 53408
A25: 2020-12-07 | B25: TMUT | C25: 53409 | F25: -239213275.6 | G25: MYR | J25: 0 | K25: 53409
A26: 2020-12-07 | B26: TMUT | C26: 53454 | F26: -42940494.45 | G26: MYR | J26: 0 | K26: 53454
A27: 2020-12-07 | B27: TMUT | C27: 53455 | F27: -52627249.25 | G27: MYR | J27: 0 | K27: 53455
A28: 2020-12-07 | B28: TMUT | C28: 53456 | F28: -1170290.15 | G28: MYR | J28: 0 | K28: 53456
A29: 2020-12-07 | B29: HFT | C29: 57110 | F29: -8265.76 | G29: MYR | J29: 0 | K29: 57110
A30: 2020-12-07 | B30: HFT | C30: 57110 | F30: -4596698.11 | G30: MYR | J30: 0 | K30: 57110
A31: 2020-12-07 | B31: SHF | C31: 57110 | F31: -142760.9 | G31: MYR | J31: 0 | K31: 57110
A32: 2020-12-07 | B32: HFT | C32: 58780 | F32: 0.02 | G32: MYR | J32: 0 | K32: 58780
A33: 2020-12-07 | B33: TMUT | C33: 58780 | F33: 1834293.98 | G33: MYR | J33: 0 | K33: 58780
A34: 2020-12-07 | B34: TMUT | C34: 58780 | F34: -933363.63 | G34: MYR | J34: 0 | K34: 58780
A35: 2020-12-07 | B35: TMUT | C35: 58780 | F35: -900930.35 | G35: MYR | J35: 0 | K35: 58780
A36: 2020-12-07 | B36: HFT | C36: 76010 | F36: 313101505.7 | G36: MYR | J36: 0 | K36: 76010
A37: 2020-12-07 | B37: SHF | C37: 76010 | F37: 8550572.61 | G37: MYR | J37: 0 | K37: 76010
A38: 2020-12-07 | B38: TMLAFS | C38: 76010 | F38: -224904.18 | G38: MYR | J38: 0 | K38: 76010
A39: 2020-12-07 | B39: TMLHFT | C39: 76010 | F39: -7086950.41 | G39: MYR | J39: 0 | K39: 76010
A40: 2020-12-07 | B40: TMUT | C40: 76010 | F40: 1283534061 | G40: MYR | J40: 0 | K40: 76010
A41: 2020-12-07 | B41: HFT | C41: 94100 | F41: 43731156.4 | G41: MYR | J41: 0 | K41: 94100
A42: 2020-12-07 | B42: HFT | C42: 94100 | F42: 613193.94 | G42: MYR | J42: 0 | K42: 94100
A43: 2020-12-07 | B43: HFT | C43: 94100 | F43: 9291150.32 | G43: MYR | J43: 0 | K43: 94100
A44: 2020-12-07 | B44: SHF | C44: 94100 | F44: 1451751.05 | G44: MYR | J44: 0 | K44: 94100
A45: 2020-12-07 | B45: SHF | C45: 94100 | F45: 402429.55 | G45: MYR | J45: 0 | K45: 94100
A46: 2020-12-07 | B46: TMLAFS | C46: 94100 | F46: 224904.18 | G46: MYR | J46: 0 | K46: 94100
A47: 2020-12-07 | B47: TMLHFT | C47: 94100 | F47: 7086950.41 | G47: MYR | J47: 0 | K47: 94100
A48: 2020-12-07 | B48: TMUT | C48: 94100 | F48: 1170290.15 | G48: MYR | J48: 0 | K48: 94100
A49: 2020-12-07 | B49: TMUT | C49: 94100 | F49: 52627249.25 | G49: MYR | J49: 0 | K49: 94100
A50: 2020-12-07 | B50: TMUT | C50: 94100 | F50: 42940494.45 | G50: MYR | J50: 0 | K50: 94100
A51: 2020-12-07 | B51: TMUT | C51: 94100 | F51: 2339633.07 | G51: MYR | J51: 0 | K51: 94100
A52: 2020-12-07 | B52: TMUT | C52: 94100 | F52: 43694328.02 | G52: MYR | J52: 0 | K52: 94100
A53: 2020-12-07 | B53: TMUT | C53: 94100 | F53: 27871948.38 | G53: MYR | J53: 0 | K53: 94100
A54: 2020-12-07 | B54: TMUT | C54: 94100 | F54: 217618057.3 | G54: MYR | J54: 0 | K54: 94100
A55: 2020-12-07 | B55: TMUT | C55: 94100 | F55: 8612271.13 | G55: MYR | J55: 0 | K55: 94100
A56: 2020-12-07 | B56: TMUT | C56: 94100 | F56: 34307895 | G56: MYR | J56: 0 | K56: 94100
A57: 2020-12-07 | B57: TMUT | C57: 94100 | F57: 25179155.84 | G57: MYR | J57: 0 | K57: 94100
A58: 2020-12-07 | B58: TMUT | C58: 94100 | F58: -2339633.07 | G58: MYR | J58: 0 | K58: 94100
A59: 2020-12-07 | B59: TMUT | C59: 94100 | F59: -43694328.02 | G59: MYR | J59: 0 | K59: 94100
A60: 2020-12-07 | B60: TMUT | C60: 94100 | F60: -27871948.38 | G60: MYR | J60: 0 | K60: 94100

Sheet Header
A1: Header of the file
A3: Item | B3: Start Position | C3: Length | D3: Comments
A4: VERSION | B4: 1 | C4: 32 | D4: Hardcode wording "VERSION"
A5: 42001 | B5: 33 | C5: 5 | D5: Hardcode wording "42001"

Sheet InCurrency (hidden)
A1: ExDate | B1: BaseCurrency | C1: QuoteCurrency | D1: ExDate&Curr | E1: ExRate

Sheet DailyTrialBalance (hidden)
A2: TBDate | B2: qFundCode | C2: qCurrencyCode | D2: ShortGL | E2: Total | F2: Currency | G2: USD Value | H2: SunGL code | I2: code | J2: check | K2: desc
A3: 2014-12-31 | B3: HFT | C3: MYR | D3: 100210 | E3: 50642526.73 | H3: 52003 | I3: =OFFSET(Mapping!$E$1,MATCH(D3,Mapping!$B:$B,0)-1,0) ->  | J3: =H3=I3 ->  | K3: =OFFSET(Investment!$P$1,MATCH(L3,Investment!$M:$M,0)-1,0) -> Cost: Local Money Market Placement | L3: =TEXT(D3,"0") -> 100210
A4: 2014-12-31 | B4: HFT | C4: MYR | D4: 100220 | E4: 675380325.5 | H4: 52001 | I4: =OFFSET(Mapping!$E$1,MATCH(D4,Mapping!$B:$B,0)-1,0) ->  | K4: =OFFSET(Investment!$P$1,MATCH(L4,Investment!$M:$M,0)-1,0) ->  | L4: =TEXT(D4,"0") -> 100220
A5: 2014-12-31 | B5: HFT | C5: MYR | D5: 139210 | E5: 227969.94 | I5: =OFFSET(Mapping!$E$1,MATCH(D5,Mapping!$B:$B,0)-1,0) ->  | K5: =OFFSET(Investment!$P$1,MATCH(L5,Investment!$M:$M,0)-1,0) -> IntDebtor: Local Money Market Placement | L5: 139210
A6: 2014-12-31 | B6: HFT | C6: MYR | D6: 139220 | E6: 3703762.27 | I6: =OFFSET(Mapping!$E$1,MATCH(D6,Mapping!$B:$B,0)-1,0) ->  | K6: =OFFSET(Investment!$P$1,MATCH(L6,Investment!$M:$M,0)-1,0) ->  | L6: 139220
A7: 2014-12-31 | B7: HFT | C7: MYR | D7: 500000 | E7: 2407690.7 | H7: 51284 | I7: =OFFSET(Mapping!$E$1,MATCH(D7,Mapping!$B:$B,0)-1,0) ->  | K7: =OFFSET(Investment!$P$1,MATCH(L7,Investment!$M:$M,0)-1,0) -> Bank: Default Bank | L7: 500000
A8: 2014-12-31 | B8: HFT | C8: MYR | D8: 630210 | E8: -1113906.35 | H8: 21120 | I8: =OFFSET(Mapping!$E$1,MATCH(D8,Mapping!$B:$B,0)-1,0) ->  | K8: =OFFSET(Investment!$P$1,MATCH(L8,Investment!$M:$M,0)-1,0) ->  | L8: 630210
A9: 2014-12-31 | B9: HFT | C9: MYR | D9: 630220 | E9: -13386721.84 | H9: 21110 | I9: =OFFSET(Mapping!$E$1,MATCH(D9,Mapping!$B:$B,0)-1,0) ->  | K9: =OFFSET(Investment!$P$1,MATCH(L9,Investment!$M:$M,0)-1,0) ->  | L9: 630220
A10: 2014-12-31 | B10: HFT | C10: MYR | D10: 639210 | E10: -227969.94 | I10: =OFFSET(Mapping!$E$1,MATCH(D10,Mapping!$B:$B,0)-1,0) ->  | K10: =OFFSET(Investment!$P$1,MATCH(L10,Investment!$M:$M,0)-1,0) -> IncomeVal: Local Money Market Placement (Valuation) | L10: 639210
A11: 2014-12-31 | B11: HFT | C11: MYR | D11: 639220 | E11: -3703762.27 | I11: =OFFSET(Mapping!$E$1,MATCH(D11,Mapping!$B:$B,0)-1,0) ->  | K11: =OFFSET(Investment!$P$1,MATCH(L11,Investment!$M:$M,0)-1,0) ->  | L11: 639220
A12: 2014-12-31 | B12: HFT | C12: MYR | D12: 800000 | E12: -713929914.7 | I12: =OFFSET(Mapping!$E$1,MATCH(D12,Mapping!$B:$B,0)-1,0) ->  | K12: =OFFSET(Investment!$P$1,MATCH(L12,Investment!$M:$M,0)-1,0) -> Capital: Unitholder Capital | L12: 800000
A13: 2014-12-31 | B13: HWANG | C13: MYR | D13: 100010 | E13: 38740287.93 | H13: 53301 | I13: =OFFSET(Mapping!$E$1,MATCH(D13,Mapping!$B:$B,0)-1,0) ->  | K13: =OFFSET(Investment!$P$1,MATCH(L13,Investment!$M:$M,0)-1,0) -> Cost: Local Listed Share | L13: 100010
A14: 2014-12-31 | B14: HWANG | C14: MYR | D14: 100210 | E14: 13722000 | H14: 52003 | I14: =OFFSET(Mapping!$E$1,MATCH(D14,Mapping!$B:$B,0)-1,0) ->  | K14: =OFFSET(Investment!$P$1,MATCH(L14,Investment!$M:$M,0)-1,0) -> Cost: Local Money Market Placement | L14: 100210
A15: 2014-12-31 | B15: HWANG | C15: MYR | D15: 139210 | E15: 1165.43 | I15: =OFFSET(Mapping!$E$1,MATCH(D15,Mapping!$B:$B,0)-1,0) ->  | K15: =OFFSET(Investment!$P$1,MATCH(L15,Investment!$M:$M,0)-1,0) -> IntDebtor: Local Money Market Placement | L15: 139210
A16: 2014-12-31 | B16: HWANG | C16: MYR | D16: 189010 | E16: 2613805.77 | I16: =OFFSET(Mapping!$E$1,MATCH(D16,Mapping!$B:$B,0)-1,0) ->  | K16: =OFFSET(Investment!$P$1,MATCH(L16,Investment!$M:$M,0)-1,0) -> ProvUnGnLRes: Local Listed Share | L16: 189010
A17: 2014-12-31 | B17: HWANG | C17: MYR | D17: 200200 | E17: 54593.54 | H17: 58780 | I17: =OFFSET(Mapping!$E$1,MATCH(D17,Mapping!$B:$B,0)-1,0) ->  | K17: =OFFSET(Investment!$P$1,MATCH(L17,Investment!$M:$M,0)-1,0) -> Debtor: Amount Due From Local Broker | L17: 200200
A18: 2014-12-31 | B18: HWANG | C18: MYR | D18: 299010 | E18: 88612.5 | I18: =OFFSET(Mapping!$E$1,MATCH(D18,Mapping!$B:$B,0)-1,0) ->  | K18: =OFFSET(Investment!$P$1,MATCH(L18,Investment!$M:$M,0)-1,0) -> DivDebtor: Local Share Net Dividend Receivable | L18: 299010
A19: 2014-12-31 | B19: HWANG | C19: MYR | D19: 320103 | E19: -50326.76 | I19: =OFFSET(Mapping!$E$1,MATCH(D19,Mapping!$B:$B,0)-1,0) ->  | K19: =OFFSET(Investment!$P$1,MATCH(L19,Investment!$M:$M,0)-1,0) -> Creditor: Amount Due to Managers(Mngt Fee) | L19: 320103
A20: 2014-12-31 | B20: HWANG | C20: MYR | D20: 500000 | E20: 18126.81 | H20: 51284 | I20: =OFFSET(Mapping!$E$1,MATCH(D20,Mapping!$B:$B,0)-1,0) ->  | K20: =OFFSET(Investment!$P$1,MATCH(L20,Investment!$M:$M,0)-1,0) -> Bank: Default Bank | L20: 500000
A21: 2014-12-31 | B21: HWANG | C21: MYR | D21: 600010 | E21: -3695038.14 | H21: 25410 | I21: =OFFSET(Mapping!$E$1,MATCH(D21,Mapping!$B:$B,0)-1,0) ->  | K21: =OFFSET(Investment!$P$1,MATCH(L21,Investment!$M:$M,0)-1,0) ->  | L21: 600010
A22: 2014-12-31 | B22: HWANG | C22: MYR | D22: 630210 | E22: -163914.31 | H22: 21120 | I22: =OFFSET(Mapping!$E$1,MATCH(D22,Mapping!$B:$B,0)-1,0) ->  | K22: =OFFSET(Investment!$P$1,MATCH(L22,Investment!$M:$M,0)-1,0) ->  | L22: 630210
A23: 2014-12-31 | B23: HWANG | C23: MYR | D23: 635010 | E23: -1379364.52 | H23: 21310 | I23: =OFFSET(Mapping!$E$1,MATCH(D23,Mapping!$B:$B,0)-1,0) ->  | K23: =OFFSET(Investment!$P$1,MATCH(L23,Investment!$M:$M,0)-1,0) ->  | L23: 635010
A24: 2014-12-31 | B24: HWANG | C24: MYR | D24: 639210 | E24: -1165.43 | I24: =OFFSET(Mapping!$E$1,MATCH(D24,Mapping!$B:$B,0)-1,0) ->  | K24: =OFFSET(Investment!$P$1,MATCH(L24,Investment!$M:$M,0)-1,0) -> IncomeVal: Local Money Market Placement (Valuation) | L24: 639210
A25: 2014-12-31 | B25: HWANG | C25: MYR | D25: 689010 | E25: -2613805.77 | I25: =OFFSET(Mapping!$E$1,MATCH(D25,Mapping!$B:$B,0)-1,0) ->  | K25: =OFFSET(Investment!$P$1,MATCH(L25,Investment!$M:$M,0)-1,0) -> ProvUnGnL: Local Listed Share | L25: 689010
A26: 2014-12-31 | B26: HWANG | C26: MYR | D26: 700301 | E26: 12772.47 | I26: =OFFSET(Mapping!$E$1,MATCH(D26,Mapping!$B:$B,0)-1,0) ->  | K26: =OFFSET(Investment!$P$1,MATCH(L26,Investment!$M:$M,0)-1,0) ->  | L26: 700301
A27: 2014-12-31 | B27: HWANG | C27: MYR | D27: 710102 | E27: 398.94 | I27: =OFFSET(Mapping!$E$1,MATCH(D27,Mapping!$B:$B,0)-1,0) ->  | K27: =OFFSET(Investment!$P$1,MATCH(L27,Investment!$M:$M,0)-1,0) ->  | L27: 710102
A28: 2014-12-31 | B28: HWANG | C28: MYR | D28: 710104 | E28: 104.13 | I28: =OFFSET(Mapping!$E$1,MATCH(D28,Mapping!$B:$B,0)-1,0) ->  | K28: =OFFSET(Investment!$P$1,MATCH(L28,Investment!$M:$M,0)-1,0) ->  | L28: 710104
A29: 2014-12-31 | B29: HWANG | C29: MYR | D29: 710106 | E29: 202790.24 | I29: =OFFSET(Mapping!$E$1,MATCH(D29,Mapping!$B:$B,0)-1,0) ->  | K29: =OFFSET(Investment!$P$1,MATCH(L29,Investment!$M:$M,0)-1,0) ->  | L29: 710106
A30: 2014-12-31 | B30: HWANG | C30: MYR | D30: 710126 | E30: 1037762.33 | I30: =OFFSET(Mapping!$E$1,MATCH(D30,Mapping!$B:$B,0)-1,0) ->  | K30: =OFFSET(Investment!$P$1,MATCH(L30,Investment!$M:$M,0)-1,0) ->  | L30: 710126
A31: 2014-12-31 | B31: HWANG | C31: MYR | D31: 710151 | E31: 19610 | I31: =OFFSET(Mapping!$E$1,MATCH(D31,Mapping!$B:$B,0)-1,0) ->  | K31: =OFFSET(Investment!$P$1,MATCH(L31,Investment!$M:$M,0)-1,0) ->  | L31: 710151
A32: 2014-12-31 | B32: HWANG | C32: MYR | D32: 799010 | E32: 263153.56 | I32: =OFFSET(Mapping!$E$1,MATCH(D32,Mapping!$B:$B,0)-1,0) ->  | K32: =OFFSET(Investment!$P$1,MATCH(L32,Investment!$M:$M,0)-1,0) ->  | L32: 799010
A33: 2014-12-31 | B33: HWANG | C33: MYR | D33: 800000 | E33: -23490923.03 | I33: =OFFSET(Mapping!$E$1,MATCH(D33,Mapping!$B:$B,0)-1,0) ->  | K33: =OFFSET(Investment!$P$1,MATCH(L33,Investment!$M:$M,0)-1,0) -> Capital: Unitholder Capital | L33: 800000
A34: 2014-12-31 | B34: HWANG | C34: MYR | D34: 810000 | E34: -7889377.31 | I34: =OFFSET(Mapping!$E$1,MATCH(D34,Mapping!$B:$B,0)-1,0) ->  | K34: =OFFSET(Investment!$P$1,MATCH(L34,Investment!$M:$M,0)-1,0) -> Profit: Last Year Unrealised Reserved | L34: 810000
A35: 2014-12-31 | B35: HWANG | C35: MYR | D35: 830000 | E35: -25380645.69 | I35: =OFFSET(Mapping!$E$1,MATCH(D35,Mapping!$B:$B,0)-1,0) ->  | K35: =OFFSET(Investment!$P$1,MATCH(L35,Investment!$M:$M,0)-1,0) -> Profit: Last Year Realised Retained Profit | L35: 830000
A36: 2014-12-31 | B36: HWANG | C36: MYR | D36: 989010 | E36: 7889377.31 | I36: =OFFSET(Mapping!$E$1,MATCH(D36,Mapping!$B:$B,0)-1,0) ->  | K36: =OFFSET(Investment!$P$1,MATCH(L36,Investment!$M:$M,0)-1,0) -> Control: Last Year UnGnL of Local Listed Share | L36: 989010
A37: 2014-12-31 | B37: SHF | C37: MYR | D37: 100220 | E37: 8500000 | H37: 52001 | I37: =OFFSET(Mapping!$E$1,MATCH(D37,Mapping!$B:$B,0)-1,0) ->  | K37: =OFFSET(Investment!$P$1,MATCH(L37,Investment!$M:$M,0)-1,0) ->  | L37: 100220
A38: 2014-12-31 | B38: SHF | C38: MYR | D38: 139220 | E38: 50572.61 | I38: =OFFSET(Mapping!$E$1,MATCH(D38,Mapping!$B:$B,0)-1,0) ->  | K38: =OFFSET(Investment!$P$1,MATCH(L38,Investment!$M:$M,0)-1,0) ->  | L38: 139220
A39: 2014-12-31 | B39: SHF | C39: MYR | D39: 630220 | E39: -285120.11 | H39: 21110 | I39: =OFFSET(Mapping!$E$1,MATCH(D39,Mapping!$B:$B,0)-1,0) ->  | K39: =OFFSET(Investment!$P$1,MATCH(L39,Investment!$M:$M,0)-1,0) ->  | L39: 630220
A40: 2014-12-31 | B40: SHF | C40: MYR | D40: 639220 | E40: -50572.61 | I40: =OFFSET(Mapping!$E$1,MATCH(D40,Mapping!$B:$B,0)-1,0) ->  | K40: =OFFSET(Investment!$P$1,MATCH(L40,Investment!$M:$M,0)-1,0) ->  | L40: 639220
A41: 2014-12-31 | B41: SHF | C41: MYR | D41: 800000 | E41: -8214879.89 | I41: =OFFSET(Mapping!$E$1,MATCH(D41,Mapping!$B:$B,0)-1,0) ->  | K41: =OFFSET(Investment!$P$1,MATCH(L41,Investment!$M:$M,0)-1,0) -> Capital: Unitholder Capital | L41: 800000
A42: 2014-12-31 | B42: TMLAFS | C42: MYR | D42: 100010 | E42: 67909450.14 | H42: 53301 | I42: =OFFSET(Mapping!$E$1,MATCH(D42,Mapping!$B:$B,0)-1,0) ->  | K42: =OFFSET(Investment!$P$1,MATCH(L42,Investment!$M:$M,0)-1,0) -> Cost: Local Listed Share | L42: 100010
A43: 2014-12-31 | B43: TMLAFS | C43: MYR | D43: 100110 | E43: 30376500 | H43: 53202 | I43: =OFFSET(Mapping!$E$1,MATCH(D43,Mapping!$B:$B,0)-1,0) ->  | K43: =OFFSET(Investment!$P$1,MATCH(L43,Investment!$M:$M,0)-1,0) -> Cost: Commercial Bond | L43: 100110
A44: 2014-12-31 | B44: TMLAFS | C44: MYR | D44: 110110 | E44: -100325.35 | H44: 53252 | I44: =OFFSET(Mapping!$E$1,MATCH(D44,Mapping!$B:$B,0)-1,0) ->  | K44: =OFFSET(Investment!$P$1,MATCH(L44,Investment!$M:$M,0)-1,0) -> AmortBSVal: Commercial Bond (Valuation) | L44: 110110
A45: 2014-12-31 | B45: TMLAFS | C45: MYR | D45: 139110 | E45: 375426.02 | I45: =OFFSET(Mapping!$E$1,MATCH(D45,Mapping!$B:$B,0)-1,0) ->  | K45: =OFFSET(Investment!$P$1,MATCH(L45,Investment!$M:$M,0)-1,0) -> IntDebtor: Commercial Bond | L45: 139110
A46: 2014-12-31 | B46: TMLAFS | C46: MYR | D46: 189010 | E46: 3855786.83 | I46: =OFFSET(Mapping!$E$1,MATCH(D46,Mapping!$B:$B,0)-1,0) ->  | K46: =OFFSET(Investment!$P$1,MATCH(L46,Investment!$M:$M,0)-1,0) -> ProvUnGnLRes: Local Listed Share | L46: 189010
A47: 2014-12-31 | B47: TMLAFS | C47: MYR | D47: 189110 | E47: -7674.65
A48: 2014-12-31 | B48: TMLAFS | C48: MYR | D48: 200200 | E48: 1239825.85 | H48: 58780
A49: 2014-12-31 | B49: TMLAFS | C49: MYR | D49: 299010 | E49: 86450
A50: 2014-12-31 | B50: TMLAFS | C50: MYR | D50: 300200 | E50: -1811879.38 | H50: 58780
A51: 2014-12-31 | B51: TMLAFS | C51: MYR | D51: 600110 | E51: 829703.91 | H51: 25430
A52: 2014-12-31 | B52: TMLAFS | C52: MYR | D52: 610110 | E52: 339627.16 | H52: 21650
A53: 2014-12-31 | B53: TMLAFS | C53: MYR | D53: 610140 | E53: 23258.08 | H53: 21612
A54: 2014-12-31 | B54: TMLAFS | C54: MYR | D54: 619110 | E54: 100325.35
A55: 2014-12-31 | B55: TMLAFS | C55: MYR | D55: 620110 | E55: -31783.6 | H55: 21660
A56: 2014-12-31 | B56: TMLAFS | C56: MYR | D56: 630100 | E56: -144737.93
A57: 2014-12-31 | B57: TMLAFS | C57: MYR | D57: 630110 | E57: -9610734.18 | H57: 21260
A58: 2014-12-31 | B58: TMLAFS | C58: MYR | D58: 630140 | E58: -84199.05 | H58: 21210
A59: 2014-12-31 | B59: TMLAFS | C59: MYR | D59: 630190 | E59: -109349.3 | H59: 21140
A60: 2014-12-31 | B60: TMLAFS | C60: MYR | D60: 639110 | E60: -375426.02 | H60: 57130
A61: 2014-12-31 | B61: TMLAFS | C61: MYR | D61: 689010 | E61: -3855786.83
A62: 2014-12-31 | B62: TMLAFS | C62: MYR | D62: 689110 | E62: 7674.65
A63: 2014-12-31 | B63: TMLAFS | C63: MYR | D63: 800000 | E63: -89012131.7
A64: 2014-12-31 | B64: TMLHFT | C64: MYR | D64: 100010 | E64: 1290283.06 | H64: 53301
A65: 2014-12-31 | B65: TMLHFT | C65: MYR | D65: 189010 | E65: 1167531.99
A66: 2014-12-31 | B66: TMLHFT | C66: MYR | D66: 500000 | E66: 4956313.98 | H66: 51284
A67: 2014-12-31 | B67: TMLHFT | C67: MYR | D67: 600010 | E67: 5327698.17 | H67: 25410
A68: 2014-12-31 | B68: TMLHFT | C68: MYR | D68: 635010 | E68: -2448387.35 | H68: 21310
A69: 2014-12-31 | B69: TMLHFT | C69: MYR | D69: 689010 | E69: -1167531.99
A70: 2014-12-31 | B70: TMLHFT | C70: MYR | D70: 799010 | E70: 334552.69
A71: 2014-12-31 | B71: TMLHFT | C71: MYR | D71: 800000 | E71: -9460460.55
A72: 2014-12-31 | B72: TMLHFT | C72: MYR | D72: 810000 | E72: -1779742.23
A73: 2014-12-31 | B73: TMLHFT | C73: MYR | D73: 989010 | E73: 1779742.23
A74: 2014-12-31 | B74: TMUT | C74: MYR | D74: 100430 | E74: 635585749.2 | H74: 53403
A75: 2014-12-31 | B75: TMUT | C75: MYR | D75: 100440 | E75: 251489530.6 | H75: 53404
A76: 2014-12-31 | B76: TMUT | C76: MYR | D76: 189430 | E76: -2482787.25
A77: 2014-12-31 | B77: TMUT | C77: MYR | D77: 189440 | E77: 556502.76
A78: 2014-12-31 | B78: TMUT | C78: MYR | D78: 635430 | E78: -21776110.14 | H78: 21340
A79: 2014-12-31 | B79: TMUT | C79: MYR | D79: 635440 | E79: -10832696.56 | H79: 21340
A80: 2014-12-31 | B80: TMUT | C80: MYR | D80: 689430 | E80: 2482787.25
A81: 2014-12-31 | B81: TMUT | C81: MYR | D81: 689440 | E81: -556502.76
A82: 2014-12-31 | B82: TMUT | C82: MYR | D82: 800000 | E82: -854466473.2

Sheet Map (3) (hidden)
B1: Please fill in the Sun GL Account code for thetable below | D1: BDCO | E1: BDMG | F1: CSFD | G1: CSMM | H1: SHUL | I1: SHLI | J1: REIT | K1: BXCO | L1: BDMG | M1: CSFD | N1: SHFL | O1: BNID | P1: UTCX | Q1: UTCX | R1: UTBX | S1: UTCX
D2: 5 | E2: 8 | F2: 13 | G2: 15 | H2: 29 | I2: 28 | J2: 26 | K2: 10 | L2: 8 | M2: 13 | N2: 27 | O2: 9 | P2: 31 | Q2: 31 | R2: 30 | S2: 31
D3: Local | K3: Foreign
D4: Local Corporate Bonds | E4: MGS | F4: Local Deposit | G4: Money Market | H4: Unquoted Shares | I4: Local Listed Shares | J4: REITS | K4: Foreign Corporate Bonds | L4: MGS | M4: Foreign Deposit | N4: Foreign Listed Shares | O4: NID | P4: UNIT TRUST (Hwang Enhanced Cash Fund) | Q4: UNIT TRUST (Amcash Plus) | R4: UNIT TRUST (CIMB P.- Bond Fund) | S4: UNIT TRUST (Nomura i-cash fund) | W4: qAccType | X4: GLMapProdCode | Y4: Description | Z4: Cost | AA4: AmortBSVal | AB4: AccreBSVal | AC4: ProvUnGnL | AD4: UnGnLCon | AE4: FXGnL | AF4: UnFXGnL | AG4: UnFXGnLCon | AH4: Gains | AI4: Income | AJ4: IncomeVal | AK4: IncomeCon | AL4: Expenses | AM4: AmortPL | AN4: AccrePL | AO4: AmortPLVal | AP4: AmortPLCon | AQ4: AccrePLVal | AR4: AccrePLCon | AS4: ProvUnGnLRes | AT4: UnFXGnLRes | AU4: IntProDivDisDebtor | AV4: DivGrossProceed | AW4: DivTaxExempt | AX4: DivFee | AY4: DivTaxed | AZ4: Debtor | BA4: Creditor | BB4: FXControl | BC4: DbCust | BD4: CrCust | BE4: FXLoss | BF4: RelLoss | BG4: KeyInDate | BH4: KeyInBy
A5: 25 | B5: Cost | C5: Cost | D5: 53202 | E5: 53101 | F5: 52001 | G5: 52003 | H5: 53302 | I5: 53301 | J5: 53501 | K5: 53202 | L5: 53101 | M5: 52001 | N5: 53301 | O5: 52002 | P5: 53401 | Q5: 53403 | R5: 53404 | S5: 53405 | W5: BDCG | X5: 100 | Y5: Cagamas Bond | Z5: 100100 | AA5: 110100 | AB5: 120100 | AC5: 689100 | AD5: 989100 | AE5: 650000 | AH5: 600100 | AI5: 630100 | AJ5: 639100 | AK5: 939100 | AL5: 799100 | AM5: 610100 | AN5: 620100 | AO5: 619100 | AP5: 919100 | AQ5: 629100 | AR5: 929100 | AS5: 189100 | AU5: 139100 | AY5: 130100 | AZ5: 200100 | BA5: 300100 | BG5: 39447 | BH5: Linda
A6: 50 | B6: DivTaxed | C6: Pre Acq Coupon | D6: 21260 | K6: 21260 | W6: BDCO | X6: 110 | Y6: Commercial Bond | Z6: 100110 | AA6: 110110 | AB6: 120110 | AC6: 689110 | AD6: 989110 | AE6: 650000 | AF6: 699110 | AG6: 999110 | AH6: 600110 | AI6: 630110 | AJ6: 639110 | AK6: 939110 | AL6: 799110 | AM6: 610110 | AN6: 620110 | AO6: 619110 | AP6: 919110 | AQ6: 629110 | AR6: 929110 | AS6: 189110 | AT6: 199110 | AU6: 139110 | AY6: 130110 | AZ6: 200100 | BA6: 300100 | BB6: 999999 | BC6: 799900 | BD6: 320110 | BE6: 655000 | BF6: 605110 | BG6: 38718 | BH6: Riskk.Com
A7: 28 | B7: ProvUnGnL | C7: Unrealised Gain (p/l) | D7: 53253 | E7: 53253 | I7: 25210 | J7: 53551 | K7: 53253 | L7: 53253 | P7: 53453 | Q7: 53453 | R7: 53453 | S7: 53453 | W7: BDCP | X7: 120 | Y7: Commercial Paper | Z7: 100120 | AB7: 120120 | AC7: 689120 | AD7: 989120 | AE7: 650000 | AF7: 699120 | AG7: 999120 | AH7: 600120 | AL7: 799120 | AN7: 620120 | AQ7: 629120 | AR7: 929120 | AS7: 189120 | AT7: 199120 | AU7: 139120 | AZ7: 200100 | BA7: 300100 | BB7: 999999 | BC7: 799900 | BD7: 320110 | BE7: 655000 | BF7: 605120 | BG7: 38718 | BH7: Riskk.Com
A8: 35 | B8: IncomeVal | C8: Accrued Income | D8: 57130 | E8: 57130 | F8: 57110 | G8: 57120 | K8: 57130 | L8: 57130 | M8: 57110 | W8: BDGG | X8: 130 | Y8: Government Guaranteed Bond | Z8: 100130 | AA8: 110130 | AB8: 120130 | AC8: 689130 | AD8: 989130 | AE8: 650000 | AH8: 600130 | AI8: 630130 | AJ8: 639130 | AK8: 939130 | AL8: 799130 | AM8: 610130 | AN8: 620130 | AO8: 619130 | AP8: 919130 | AQ8: 629130 | AR8: 929130 | AS8: 189130 | AU8: 139130 | AY8: 130130 | AZ8: 200100 | BA8: 300100 | BG8: 39436 | BH8: Riskk.Com
A9: 38 | B9: AmortPL | C9: Amort | D9: 21650 | E9: 21612 | K9: 21650 | L9: 21612 | O9: 21630 | W9: BDMG | X9: 140 | Y9: Malaysia Government Securities | Z9: 100140 | AA9: 110140 | AB9: 120140 | AC9: 689140 | AD9: 989140 | AE9: 650000 | AH9: 600140 | AI9: 630140 | AJ9: 639140 | AK9: 939140 | AL9: 799140 | AM9: 610140 | AN9: 620140 | AO9: 619140 | AP9: 919140 | AQ9: 629140 | AR9: 929140 | AS9: 189140 | AU9: 139140 | AY9: 130140 | AZ9: 200100 | BA9: 300100 | BG9: 39436 | BH9: Riskk.Com
A10: 39 | B10: AccrePL | C10: Accreation | D10: 21660 | K10: 21660 | W10: BNID | X10: 190 | Y10: NID | Z10: 100190 | AA10: 110190 | AB10: 120190 | AC10: 689190 | AD10: 989190 | AE10: 650000 | AF10: 699190 | AG10: 999190 | AH10: 600190 | AI10: 630190 | AL10: 799190 | AM10: 610190 | AN10: 620190 | AQ10: 629190 | AR10: 929190 | AS10: 189190 | AT10: 199190 | AU10: 139190 | AZ10: 200100 | BA10: 300100 | BB10: 999999 | BC10: 799900 | BD10: 320110 | BE10: 655000 | BF10: 605190 | BG10: 42003 | BH10: Riskk.Com
A11: 26 | B11: AmortBSVal | C11: Prov for Amortisation (B/S) | D11: 53252 | E11: 53151 | K11: 53252 | L11: 53151 | O11: 52052 | W11: BXCO | X11: 115 | Y11: Foreign Commercial Bond | Z11: 100115 | AA11: 110115 | AB11: 120115 | AC11: 689115 | AD11: 989115 | AE11: 650000 | AF11: 699115 | AG11: 999115 | AH11: 600115 | AI11: 630115 | AJ11: 639115 | AK11: 939115 | AL11: 799115 | AM11: 610115 | AN11: 620115 | AO11: 619115 | AP11: 919115 | AQ11: 629115 | AR11: 929115 | AS11: 189115 | AT11: 199115 | AU11: 139115 | AY11: 130115 | AZ11: 200100 | BA11: 300100 | BB11: 999999 | BC11: 799900 | BD11: 320110 | BE11: 655000 | BF11: 605115 | BG11: 38718 | BH11: Riskk.Com
A12: 27 | B12: AccreBSVal | C12: Prov for Accreation (B/S) | D12: 53252 | E12: 53151 | K12: 53252 | L12: 53151 | O12: 52052 | W12: BXCP | X12: 125 | Y12: Foreign Commercial Paper | Z12: 100125 | AB12: 120125 | AC12: 689125 | AD12: 989125 | AE12: 650000 | AF12: 699125 | AG12: 999125 | AH12: 600125 | AL12: 799125 | AN12: 620125 | AQ12: 629125 | AR12: 929125 | AS12: 189125 | AT12: 199125 | AU12: 139125 | AZ12: 200100 | BA12: 300100 | BB12: 999999 | BC12: 799000 | BD12: 320110 | BE12: 655000 | BF12: 605125 | BG12: 38718 | BH12: Riskk.Com
B13: 160000 | C13: Prov for Dimunition in Value (B/S) | W13: CAPT | X13: 000 | Y13: Unitholder Capital | Z13: 800000 | AC13: 660000 | AE13: 650000 | AI13: 850000 | AJ13: 830000 | AK13: 810000 | AS13: 160000 | AZ13: 200800 | BA13: 300800 | BB13: 999999 | BC13: 799900 | BD13: 320110 | BG13: 38718 | BH13: Riskk.Com
A14: 33 | B14: Gains | C14: Realised Income | D14: 25430 | I14: 25410 | K14: 25430 | N14: 25410 | W14: CSFD | X14: 220 | Y14: Local Fixed Deposit Placement | Z14: 100220 | AC14: 689220 | AD14: 989220 | AE14: 650000 | AH14: 600220 | AI14: 630220 | AJ14: 639220 | AK14: 939220 | AL14: 799220 | AS14: 189220 | AU14: 139220 | AZ14: 200100 | BA14: 300100 | BE14: 655000 | BF14: 605220 | BG14: 401769 | BH14: Riskk.Com
A15: 34 | B15: Income | C15: Interest Income | D15: 21260 | E15: 21210 | F15: 21110 | G15: 21120 | K15: 21260 | L15: 21210 | M15: 21110 | O15: 21140 | W15: CSMF | X15: 215 | Y15: Foreign Money Market Placement | Z15: 100215 | AE15: 650000 | AF15: 699215 | AG15: 999215 | AI15: 630215 | AJ15: 639215 | AK15: 939215 | AL15: 799215 | AS15: 189215 | AT15: 199215 | AU15: 139215 | AZ15: 200100 | BA15: 300100 | BB15: 999999 | BC15: 799900 | BD15: 320110 | BE15: 655000 | BF15: 605215 | BG15: 38718 | BH15: Riskk.Com
A16: 47 | B16: DivGrossProceed | C16: Dividend Income | I16: 21310 | N16: 21310 | P16: 21340 | Q16: 21340 | R16: 21340 | S16: 21340 | W16: CSMM | X16: 210 | Y16: Local Money Market Placement | Z16: 100210 | AE16: 650000 | AF16: 699210 | AG16: 999210 | AI16: 630210 | AJ16: 639210 | AK16: 939210 | AL16: 799210 | AS16: 189210 | AT16: 199210 | AU16: 139210 | AZ16: 200100 | BA16: 300100 | BB16: 999999 | BC16: 799900 | BD16: 320110 | BE16: 655000 | BF16: 605210 | BG16: 38718 | BH16: Riskk.Com
A17: 50 | B17: DivTaxed | C17: Tax on Dividend Income | W17: DEVCF | X17: 330 | Y17: Derivative | Z17: 100330 | AA17: 110330 | AB17: 120330 | AC17: 689330 | AD17: 989330 | AE17: 650000 | AF17: 699330 | AG17: 999330 | AH17: 600330 | AI17: 630330 | AJ17: 639330 | AK17: 939330 | AL17: 799330 | AM17: 610330 | AN17: 620330 | AO17: 619330 | AP17: 919330 | AQ17: 629330 | AR17: 929330 | AS17: 189330 | AT17: 199330 | AU17: 299330 | AZ17: 200500 | BA17: 300500 | BB17: 999999 | BC17: 799900 | BD17: 320110 | BE17: 655000 | BF17: 605330 | BG17: 39240.75722 | BH17: linda
A18: 51 | B18: Debtor | C18: Debtor | D18: 58780 | E18: 58780 | F18: 58780 | G18: 58780 | H18: 58780 | I18: 58780 | J18: 58780 | K18: 58780 | L18: 58780 | M18: 58780 | N18: 58780 | O18: 58780 | P18: 58780 | Q18: 58780 | R18: 58780 | S18: 58780 | W18: FORD | X18: 310 | Y18: Forward Contract | Z18: 100310 | AC18: 689310 | AD18: 989310 | AE18: 650000 | AF18: 699310 | AG18: 999310 | AH18: 600310 | AI18: 630310 | AL18: 799310 | AS18: 189310 | AT18: 199310 | AU18: 299310 | AZ18: 200500 | BA18: 300500 | BB18: 999999 | BC18: 799900 | BD18: 320110 | BE18: 655000 | BF18: 605310 | BG18: 38718 | BH18: Riskk.Com
A19: 52 | B19: Creditor | C19: Creditor | D19: 58780 | E19: 58780 | F19: 58780 | G19: 58780 | H19: 58780 | I19: 58780 | J19: 58780 | K19: 58780 | L19: 58780 | M19: 58780 | N19: 58780 | O19: 58780 | W19: FRX | X19: 000 | Y19: Forex | Z19: 999999 | AE19: 650000 | AZ19: 200100 | BA19: 300100 | BB19: 999999 | BC19: 799900 | BD19: 320110 | BG19: 41817.79028 | BH19: Riskk
B20: 830000 | C20: Retain Profit | D20: 999 | K20: 999 | W20: FUDE | X20: 300 | Y20: Futures | Z20: 100300 | AC20: 689300 | AD20: 989300 | AE20: 650000 | AF20: 699300 | AG20: 999300 | AH20: 600300 | AI20: 630300 | AL20: 799300 | AS20: 189300 | AT20: 199300 | AU20: 299300 | AZ20: 200500 | BA20: 300500 | BB20: 999999 | BC20: 799900 | BD20: 320110 | BE20: 655000 | BF20: 605300 | BG20: 38718 | BH20: Riskk.Com
B21: 810000 | C21: Unrealised Reserve | D21: 94100 | K21: 94100 | P21: 94100 | Q21: 94100 | R21: 94100 | S21: 94100 | W21: LNST | X21: 150 | Y21: Loan Stock | Z21: 100150 | AC21: 689150 | AD21: 989150 | AE21: 650000 | AH21: 600150 | AI21: 630150 | AJ21: 639150 | AK21: 939150 | AL21: 799150 | AS21: 189150 | AU21: 299150 | AV21: 635010 | AW21: 636010 | AX21: 799124 | AY21: 299999 | AZ21: 200200 | BA21: 300200 | BB21: 999999 | BC21: 799900 | BD21: 320110 | BE21: 655000 | BF21: 605150 | BG21: 38718 | BH21: Riskk.Com
C22: Capital | W22: OPFO | X22: 325 | Y22: Options Foreign | Z22: 100325 | AC22: 689325 | AD22: 989325 | AE22: 650000 | AF22: 699325 | AG22: 999325 | AH22: 600325 | AI22: 630325 | AL22: 799325 | AS22: 189325 | AT22: 199325 | AU22: 299325 | AZ22: 200500 | BA22: 300500 | BB22: 999999 | BC22: 799900 | BD22: 320110 | BE22: 655000 | BF22: 605325 | BG22: 39393.50192 | BH22: astws
W23: OPLO | X23: 320 | Y23: Options Local | Z23: 100320 | AC23: 689320 | AD23: 989320 | AE23: 650000 | AH23: 600320 | AI23: 630320 | AL23: 799320 | AS23: 189320 | AU23: 299320 | AZ23: 200500 | BA23: 300500 | BB23: 999999 | BC23: 799900 | BD23: 320110 | BE23: 655000 | BF23: 605320 | BG23: 38718 | BH23: Riskk.Com
C24: Expenses | E24: Bank Account | W24: PROL | X24: 010 | Y24: Local Property | Z24: 100010 | AC24: 689010 | AD24: 989010 | AE24: 650000 | AH24: 600010 | AI24: 630010 | AL24: 799010 | AS24: 189010 | AU24: 299010 | AV24: 635010 | AW24: 636010 | AX24: 799124 | AY24: 299999 | AZ24: 200200 | BA24: 300200 | BB24: 999999 | BC24: 799900 | BD24: 320110 | BE24: 655000 | BF24: 605010 | BG24: 401769 | BH24: Riskk
C25: 25420 | D25: Investment Brokerage fee | E25: 51284 | F25: BK KL RHB A/C1 21401701031333 | W25: PROP | X25: 010 | Y25: Property | Z25: 100010 | AC25: 689010 | AD25: 989010 | AE25: 650000 | AH25: 600010 | AI25: 630010 | AL25: 799010 | AS25: 189010 | AU25: 299010 | AV25: 635010 | AW25: 636010 | AX25: 799124 | AY25: 299999 | AZ25: 200200 | BA25: 300200 | BB25: 999999 | BC25: 799900 | BD25: 320110 | BE25: 655000 | BF25: 605010 | BG25: 401769 | BH25: Riskk
C26: 12340 | D26: Bank charges | E26: 51503 | F26: P/Folio Mgt - HwangDBs Investment | I26: AmortPL | K26: AmortBSVal | N26: Income | W26: REIF | X26: 465 | Y26: Foreign Real Estate Investment Trust | Z26: 100465 | AC26: 689465 | AD26: 989465 | AE26: 650000 | AF26: 699465 | AG26: 999465 | AH26: 600465 | AI26: 630465 | AL26: 799465 | AS26: 189465 | AT26: 199465 | AU26: 299465 | AV26: 635465 | AW26: 636465 | AX26: 799124 | AY26: 799130 | AZ26: 200200 | BA26: 300200 | BB26: 999999 | BC26: 799900 | BD26: 320110 | BE26: 655000 | BF26: 636465 | BG26: 41548 | BH26: Admin
W27: REIT | X27: 460 | Y27: Real Estate Investment Trust | Z27: 100460 | AC27: 689460 | AD27: 989460 | AE27: 650000 | AF27: 699460 | AG27: 999460 | AH27: 600460 | AI27: 630460 | AL27: 799460 | AS27: 189460 | AT27: 199460 | AU27: 299460 | AV27: 635460 | AW27: 636460 | AX27: 799124 | AY27: 799130 | AZ27: 200200 | BA27: 300200 | BB27: 999999 | BC27: 799900 | BD27: 320110 | BE27: 655000 | BF27: 605460 | BG27: 38718 | BH27: Riskk.Com
F28: Pre Acq Coupon | G28: Unrealised Gain (p/l) | H28: Accrued Income | I28: Amort | J28: Accreation | K28: Prov for Amortisation (B/S) | L28: Prov for Accreation (B/S) | M28: Realised Income | N28: Interest Income | O28: Dividend Income | P28: Tax on Dividend Income | Q28: Debtor | R28: Creditor | W28: SHFL | X28: 015 | Y28: Foreign Listed Equities | Z28: 100015 | AC28: 689015 | AD28: 989015 | AE28: 650000 | AF28: 699015 | AG28: 999015 | AH28: 600015 | AI28: 630015 | AL28: 799015 | AS28: 189015 | AT28: 199015 | AU28: 299015 | AV28: 635015 | AW28: 636015 | AX28: 799124 | AY28: 799129 | AZ28: 200400 | BA28: 300400 | BB28: 999999 | BC28: 799900 | BD28: 320110 | BE28: 655000 | BF28: 605015 | BG28: 38718 | BH28: Riskk.Com
C29: qAccType | D29: Description | E29: Cost | F29: DivTaxed | G29: ProvUnGnL | H29: IncomeVal | I29: AmortPL | J29: AccrePL | K29: AmortBSVal | L29: AccreBSVal | M29: Gains | N29: Income | O29: DivGrossProceed | P29: DivTaxed | Q29: Debtor | R29: Creditor | S29: Expenses | W29: SHLI | X29: 010 | Y29: Local Listed Share | Z29: 100010 | AC29: 689010 | AD29: 989010 | AE29: 650000 | AH29: 600010 | AI29: 630010 | AL29: 799010 | AS29: 189010 | AU29: 299010 | AV29: 635010 | AW29: 636010 | AX29: 799124 | AY29: 299999 | AZ29: 200200 | BA29: 300200 | BB29: 999999 | BC29: 799900 | BD29: 320110 | BE29: 655000 | BF29: 605010 | BG29: 38718 | BH29: Riskk.Com
C30: BDCO | D30: Commercial Bond | E30: 100110 | F30: 130110 | G30: 689110 | H30: 639110 | I30: 610110 | J30: 620110 | K30: 110110 | L30: 120110 | M30: 600110 | N30: 630110 | P30: 130110 | Q30: 200100 | R30: 300100 | S30: 799110 | W30: SHUL | X30: 030 | Y30: Local UnListed Share | Z30: 100030 | AC30: 689030 | AD30: 989030 | AE30: 650000 | AH30: 600030 | AI30: 630030 | AL30: 799030 | AS30: 189030 | AU30: 299030 | AV30: 635030 | AW30: 636030 | AX30: 799124 | AY30: 299999 | AZ30: 200200 | BA30: 300200 | BB30: 999999 | BC30: 799900 | BD30: 320110 | BE30: 655000 | BF30: 605030 | BG30: 401769 | BH30: Riskk.Com
C31: BDMG | D31: Malaysia Government Securities | E31: 100140 | F31: 130140 | G31: 689140 | H31: 639140 | I31: 610140 | J31: 620140 | K31: 110140 | L31: 120140 | M31: 600140 | N31: 630140 | P31: 130140 | Q31: 200100 | R31: 300100 | S31: 799140 | W31: UTBX | X31: 440 | Y31: Local Bond Unit Trust | Z31: 100440 | AC31: 689440 | AD31: 989440 | AE31: 650000 | AH31: 600440 | AI31: 630440 | AL31: 799440 | AS31: 189440 | AU31: 299440 | AV31: 635440 | AW31: 636440 | AX31: 799440 | AY31: 299999 | AZ31: 200200 | BA31: 300200 | BB31: 999999 | BC31: 799900 | BD31: 320110 | BE31: 655000 | BF31: 605440 | BG31: 38718 | BH31: Riskk.Com
C32: BNID | D32: NID | E32: 100190 | G32: 689190 | J32: 620190 | L32: 120190 | M32: 600190 | Q32: 200100 | R32: 300100 | S32: 799190 | W32: UTCX | X32: 430 | Y32: Local Cash Unit Trust | Z32: 100430 | AC32: 689430 | AD32: 989430 | AE32: 650000 | AH32: 600430 | AI32: 630430 | AL32: 799430 | AS32: 189430 | AU32: 299430 | AV32: 635430 | AW32: 636430 | AX32: 799430 | AY32: 299999 | AZ32: 200200 | BA32: 300200 | BB32: 999999 | BC32: 799900 | BD32: 320110 | BE32: 655000 | BF32: 605430 | BG32: 401769 | BH32: Riskk.Com
C33: BXCO | D33: Foreign Commercial Bond | E33: 100115 | F33: 130115 | G33: 689115 | H33: 639115 | I33: 610115 | J33: 620115 | K33: 110115 | L33: 120115 | M33: 600115 | N33: 630115 | P33: 130115 | Q33: 200100 | R33: 300100 | S33: 799115 | W33: UTEX | X33: 410 | Y33: Local Equity Unit Trust | Z33: 100410 | AC33: 689410 | AD33: 989410 | AE33: 650000 | AH33: 600410 | AI33: 630410 | AL33: 799410 | AS33: 189410 | AU33: 299410 | AV33: 635410 | AW33: 636410 | AX33: 799124 | AY33: 299999 | AZ33: 200200 | BA33: 300200 | BB33: 999999 | BC33: 799900 | BD33: 320110 | BE33: 655000 | BF33: 605410 | BG33: 38718 | BH33: Riskk.Com
C34: CSFD | D34: Local Fixed Deposit Placement | E34: 100220 | G34: 689220 | H34: 639220 | M34: 600220 | N34: 630220 | Q34: 200100 | R34: 300100 | S34: 799220 | W34: UTFX | X34: 415 | Y34: Foreign Bond Unit Trust | Z34: 100415 | AC34: 689415 | AD34: 989415 | AE34: 650000 | AF34: 699415 | AG34: 999415 | AH34: 600415 | AI34: 630415 | AL34: 799415 | AS34: 189415 | AT34: 199415 | AU34: 299415 | AV34: 635415 | AW34: 636415 | AX34: 799124 | AY34: 799129 | AZ34: 200300 | BA34: 300300 | BB34: 999999 | BC34: 799900 | BD34: 320110 | BE34: 655000 | BF34: 605415 | BG34: 38718 | BH34: Riskk.Com
C35: CSMM | D35: Local Money Market Placement | E35: 100210 | H35: 639210 | N35: 630210 | Q35: 200100 | R35: 300100 | S35: 799210
C36: REIT | D36: Real Estate Investment Trust | E36: 100460 | F36: 799130 | G36: 689460 | M36: 600460 | N36: 630460 | O36: 635460 | P36: 799130 | Q36: 200200 | R36: 300200 | S36: 799460
C37: SHLI | D37: Local Listed Share | E37: 100010 | F37: 299999 | G37: 689010 | M37: 600010 | N37: 630010 | O37: 635010 | P37: 299999 | Q37: 200200 | R37: 300200 | S37: 799010
C38: SHUL | D38: Local UnListed Share | E38: 100030 | F38: 299999 | G38: 689030 | M38: 600030 | N38: 630030 | O38: 635030 | P38: 299999 | Q38: 200200 | R38: 300200 | S38: 799030 | W38: qAccType | X38: GLMapProdCode | Y38: Description | Z38: Cost | AA38: AmortBSVal | AB38: AccreBSVal | AC38: ProvUnGnL | AD38: UnGnLCon | AE38: FXGnL | AF38: UnFXGnL | AG38: UnFXGnLCon | AH38: Gains | AI38: Income | AJ38: IncomeVal | AK38: IncomeCon | AL38: Expenses | AM38: AmortPL | AN38: AccrePL | AO38: AmortPLVal | AP38: AmortPLCon | AQ38: AccrePLVal | AR38: AccrePLCon | AS38: ProvUnGnLRes | AT38: UnFXGnLRes | AU38: IntProDivDisDebtor | AV38: DivGrossProceed | AW38: DivTaxExempt | AX38: DivFee | AY38: DivTaxed | AZ38: Debtor | BA38: Creditor | BB38: FXControl | BC38: DbCust | BD38: CrCust | BE38: FXLoss | BF38: RelLoss | BG38: KeyInDate | BH38: KeyInBy
C39: UTCX | D39: Local Cash Unit Trust | E39: 100430 | F39: 299999 | G39: 689430 | M39: 600430 | N39: 630430 | O39: 635430 | P39: 299999 | Q39: 200200 | R39: 300200 | S39: 799430 | W39: BNID | X39: 190 | Y39: NID | Z39: 100190 | AB39: 120190 | AC39: 689190 | AD39: 989190 | AE39: 650000 | AF39: 699190 | AG39: 999190 | AH39: 600190 | AL39: 799190 | AN39: 620190 | AQ39: 629190 | AR39: 929190 | AS39: 189190 | AT39: 199190 | AU39: 139190 | AZ39: 200100 | BA39: 300100 | BB39: 999999 | BC39: 799900 | BD39: 320110 | BE39: 655000 | BF39: 605190 | BG39: 42003 | BH39: Riskk.Com
C40: UTEX | D40: Local Bond Unit Trust | E40: 100410 | F40: 299999 | G40: 689410 | M40: 600410 | N40: 630410 | O40: 635410 | P40: 299999 | Q40: 200200 | R40: 300200 | S40: 799410
C41: UTFX | D41: Foreign Bond Unit Trust | E41: 100415 | F41: 799129 | G41: 689415 | M41: 600415 | N41: 630415 | O41: 635415 | P41: 799129 | Q41: 200300 | R41: 300300 | S41: 799415
D43: Local Corporate Bonds | E43: MGS | F43: Local Deposit | G43: Money Market | H43: Unquoted Shares | I43: Local Listed Shares | J43: REITS | K43: Foreign Corporate Bonds | L43: MGS | M43: Foreign Deposit | N43: Foreign Listed Shares | O43: NID | P43: UNIT TRUST (Hwang Enhanced Cash Fund) | Q43: UNIT TRUST (Amcash Plus) | R43: UNIT TRUST (CIMB P.- Bond Fund) | S43: UNIT TRUST (Nomura i-cash fund)
B44: Cost | C44: Cost | D44: 100110 | E44: 100140 | F44: 100220 | G44: 100210 | H44: 100030 | I44: 100010 | J44: 100460 | K44: 100115 | L44: 100140 | M44: 100220 | N44: 100015 | O44: =OFFSET($A$1,$O$2,A5) -> 100190 | P44: 100430 | Q44: 100430 | R44: 100440 | S44: 100430
B45: DivTaxed | C45: Pre Acq Coupon | D45: 130110 | E45: 130140 | K45: 130115 | O45: =OFFSET($A$1,$O$2,A6) -> 0
B46: ProvUnGnL | C46: Unrealised Gain (p/l) | D46: 689110 | E46: 689140 | I46: 689010 | J46: ="689460" -> 689460 | N46: 689015 | O46: 689190 | P46: =OFFSET($A$1,P2,$A$7) -> 689430 | Q46: =OFFSET($A$1,Q2,$A$7) -> 689430 | R46: 689440 | S46: 689430
B47: IncomeVal | C47: Accrued Income | D47: 639110 | E47: 639140 | F47: 639220 | G47: 639210 | K47: 639115 | L47: 639140 | M47: 639220
B48: AmortPL | C48: Amort | D48: 610110 | E48: 610140 | K48: 610115 | L48: 610140 | O48: 610190
B49: AccrePL | C49: Accreation | D49: 620110 | E49: 620140 | K49: 620115 | O49: 620190
B50: AmortBSVal | C50: Prov for Amortisation (B/S) | D50: 110110 | E50: 110140 | K50: 110115 | L50: 110140 | O50: 110190
B51: AccreBSVal | C51: Prov for Accreation (B/S) | D51: 120110 | E51: 120140 | K51: 120115 | L51: 120140 | O51: 120190
B52: 160000 | C52: Prov for Dimunition in Value (B/S) | D52: 160000 | E52: 160000 | J52: 160000 | K52: 160000 | L52: 160000 | P52: 160000 | Q52: 160000 | R52: 160000 | S52: 160000
B53: Gains | C53: Realised Income | D53: 600110 | I53: 600010 | K53: 600115 | N53: 600015 | O53: 600190
B54: Income | C54: Interest Income | D54: 630110 | E54: 630140 | F54: 630220 | G54: 630210 | K54: 630115 | L54: 630140 | M54: 630220 | O54: 630190
B55: DivGrossProceed | C55: Dividend Income | I55: 635010 | N55: 635015 | O55: 0 | P55: 635430 | Q55: 635430 | R55: 635440 | S55: 635430
B56: DivTaxed | C56: Tax on Dividend Income | O56: 0
B57: Debtor | C57: Debtor | D57: 200100 | E57: 200100 | F57: 200100 | G57: 200100 | H57: 200200 | I57: 200200 | J57: 200200 | K57: 200100 | L57: 200100 | M57: 200100 | N57: 200400 | O57: 200100 | P57: 200200 | Q57: 200200 | R57: 200200 | S57: 200200
B58: Creditor | C58: Creditor | D58: 300100 | E58: 300100 | F58: 300100 | G58: 300100 | H58: 300200 | I58: 300200 | J58: 300200 | K58: 300100 | L58: 300100 | M58: 300100 | N58: 300400 | O58: 300100
B59: 830000 | C59: Retain Profit | D59: 830000 | K59: 830000
B60: 810000 | C60: Unrealised Reserve | D60: 810000 | K60: 810000 | P60: 810000 | Q60: 810000 | R60: 810000 | S60: 810000
C61: Capital

Sheet Mapping
A1: qGLCode | B1: qAssetAccType | C1: qGLCode&qAssetAccType | D1: Description | E1: SunGL
A2: 100000 | B2: 220 | C2: =A2 & B2 -> 100000220 | D2: Cost: FD Placement | E2: 52001
A3: 100000 | B3: 190 | C3: 100000190 | D3: Cost: NID | E3: 52002
A4: 100000 | B4: 210 | C4: 100000210 | D4: Cost: Local Money Market Placement | E4: 52003
A5: 100000 | B5: 140 | C5: 100000140 | D5: Cost: Malaysia Government Securities | E5: 53101
A6: 100000 | B6: 110 | C6: 100000110 | D6: Cost: Commercial Bond | E6: 53202
A7: 100000 | B7: 115 | C7: 100000115 | D7: Cost: Foreign Bonds | E7: 53202
A8: 100000 | B8: 010 | C8: 100000010 | D8: Cost: Local Listed Share | E8: 53301
A9: 100000 | B9: 015 | C9: 100000015 | D9: Cost: Foreign Listed Share | E9: 53301
A10: 100000 | B10: 030 | C10: 100000030 | D10: Cost: Local UnListed Share | E10: 53302
A11: 100000 | B11: 430 | C11: 100000430 | D11: Cost: Local Cash Unit Trust | E11: 53409
A12: 100000 | B12: 440 | C12: 100000440 | D12: Cost: Local Bond Unit Trust | E12: 53408
A13: 100000 | B13: 460 | C13: 100000460 | D13: Cost: Real Estate Investment Trust | E13: 53301
A14: 100000 | B14: 450 | C14: 100000450 | D14: Cost: Local MGS Unit Trust | E14: 53407
A15: 110000 | B15: 190 | C15: =A15 & B15 -> 110000190 | D15: AmortBSVal: NID | E15: 52052
A16: 110000 | B16: 140 | C16: 110000140 | D16: AmortBSVal: Malaysia Government Securities | E16: 53151
A17: 110000 | B17: 110 | C17: 110000110 | D17: AmortBSVal: Commercial Bond (Valuation) | E17: 53252
A18: 110000 | B18: 115 | C18: 110000115 | D18: AmortBSVal: Foreign Bonds | E18: 53252
A19: 120000 | B19: 190 | C19: 120000190 | D19: AccreBSVal: NID | E19: 52052
A20: 120000 | B20: 140 | C20: 120000140 | D20: AccreBSVal: Malaysia Government Securities | E20: 53151
A21: 120000 | B21: 110 | C21: 120000110 | D21: AccreBSVal: Commercial Bond (Valuation) | E21: 53252
A22: 120000 | B22: 115 | C22: 120000115 | D22: AccreBSVal: Foreign Bonds | E22: 53252
A23: 139000 | B23: 220 | C23: 139000220 | D23: IncomeVal: FD Placement | E23: 57110
A24: 139000 | B24: 210 | C24: 139000210 | D24: IncomeVal: Local Money Market Placement (Valuation) | E24: 57110
A25: 139000 | B25: 110 | C25: 139000110 | D25: IncomeVal: Commercial Bond (Valuation) | E25: 57130
A26: 139000 | B26: 140 | C26: 139000140 | D26: IncomeVal: Malaysia Government Securities | E26: 57130
A27: 139000 | B27: 115 | C27: 139000115 | D27: IncomeVal: Foreign Bonds | E27: 57130
A28: 189000 | B28: 110 | C28: 189000110 | D28: ProvUnGnL: Commercial Bond | E28: 53253
A29: 189000 | B29: 140 | C29: 189000140 | D29: ProvUnGnL: Malaysia Government Securities | E29: 53253
A30: 189000 | B30: 430 | C30: 189000430 | D30: ProvUnGnL: Local Cash Unit Trust | E30: 53456
A31: 189000 | B31: 440 | C31: 189000440 | D31: ProvUnGnL: Local Bond Unit Trust | E31: 53455
A32: 189000 | B32: 460 | C32: 189000460 | D32: ProvUnGnL: Real Estate Investment Trust | E32: 53353
A33: 189000 | B33: 010 | C33: 189000010 | D33: ProvUnGnLRes: Local Listed Share | E33: 53353
A34: 189000 | B34: 450 | C34: =A34 & B34 -> 189000450 | D34: ProvUnGnLRes: Local MGS Unit Trust | E34: 53454
A35: 200000 | B35: 220 | C35: 200000220 | D35: Debtor: Investment | E35: 58780
A36: 200000 | B36: 430 | C36: 200000430 | D36: Debtor: Investment | E36: 58780
A37: 200100 | B37: 000 | C37: 200100000 | D37: Debtor: Others Investment Debtors | E37: 58780
A38: 200200 | B38: 000 | C38: 200200000 | D38: Debtor: Amount Due From Local Broker | E38: 58780
A39: 200400 | B39: 000 | C39: 200400000 | D39: Debtor: Amount Due From Foreign Broker | E39: 58780
A40: 299000 | B40: 010 | C40: 299000010 | D40: DivDebtor: Local Share Net Dividend Receivable | E40: 58780
A41: 299000 | B41: 440 | C41: 299000440 | D41: DivDebtor: Bond Unit Trust Net Dividend Receivable | E41: 58780
A42: 299000 | B42: 430 | C42: 299000430 | D42: DivDebtor: Cash Unit Trust Net Dividend Receivable | E42: 58780
A43: 299000 | B43: 460 | C43: 299000460 | D43: DivDebtor: REIT Dividend Receivable | E43: 58780
A44: 299000 | B44: 450 | C44: 299000450 | D44: DivDebtor: MGS Unit Trust Net Dividend Receivable | E44: 58780
A45: 300100 | B45: 000 | C45: 300100000 | D45: Creditor: Others Invesment Creditor | E45: 58780
A46: 300200 | B46: 000 | C46: 300200000 | D46: Creditor: Amount Due To Local Stock Broker | E46: 58780
A47: 300400 | B47: 000 | C47: 300400000 | D47: Creditor: Amount Due to Foreign Broker | E47: 58780
A48: 300800 | B48: 000 | C48: 300800000 | D48: Creditor: Amount Due to Manager (Cancellation) | E48: 58780
A49: 320103 | B49: 000 | C49: 320103000 | D49: Creditor: Amount Due to Managers(Mngt Fee) | E49: 58780
A50: 600000 | B50: 010 | C50: 600000010 | D50: Realised GnL: Local Listed Share | E50: 25410
A51: 600000 | B51: 015 | C51: 600000015 | D51: Realised GnL: Foreign Investment | E51: 25410
A52: 600000 | B52: 110 | C52: 600000110 | D52: Realised GnL: Commercial Bond | E52: 25430
A53: 600000 | B53: 115 | C53: 600000115 | D53: Gains: Foreign Bonds | E53: 25430
A54: 600000 | B54: 460 | C54: 600000460 | D54: Realised GnL: Real Estate Investment Trust | E54: 25410
A55: 600000 | B55: 430 | C55: 600000430 | D55: Realised GnL: Local Cash Unit Trust | E55: 25440
A56: 600000 | B56: 440 | C56: 600000440 | D56: Realised GnL: Local Bond Unit Trust | E56: 25440
A57: 610000 | B57: 140 | C57: 610000140 | D57: AmortPL: Malaysia Government Securities | E57: 21612
A58: 610000 | B58: 190 | C58: 610000190 | D58: AmortPL: NID | E58: 21630
A59: 610000 | B59: 110 | C59: 610000110 | D59: AmortPL: Commercial Bond | E59: 21650
A60: 610000 | B60: 115 | C60: 610000115 | D60: AmortPL: Foreign Bonds | E60: 21650
A61: 619000 | B61: 110 | C61: 619000110 | D61: AmortPLVal: Commercial Bond (Valuation) | E61: 21650
A62: 620000 | B62: 110 | C62: 620000110 | D62: AccrePL: Commercial Bond | E62: 21660
A63: 620000 | B63: 115 | C63: 620000115 | D63: AccrePL: Foreign Bonds | E63: 21660
A64: 629000 | B64: 110 | C64: 629000110 | D64: AccrePLVal: Commercial Bond (Valuation) | E64: 21660
A65: 630000 | B65: 220 | C65: 630000220 | D65: Income: FD Placement | E65: 21110
A66: 630000 | B66: 210 | C66: 630000210 | D66: Income: Local Money Market Placement | E66: 21120
A67: 630000 | B67: 190 | C67: 630000190 | D67: Income: NID | E67: 21140
A68: 630000 | B68: 140 | C68: =A68 & B68 -> 630000140 | D68: Income: Malaysia Government Securities | E68: 21210
A69: 630000 | B69: 110 | C69: 630000110 | D69: Income: Commercial Bond | E69: 21260
A70: 630000 | B70: 115 | C70: 630000115 | D70: Cost: Foreign Bonds (Purchase Interest) | E70: 21260
A71: 630000 | B71: 100 | C71: 630000100 | D71: Income: Cagamas Bond | E71: 21240
A72: 635000 | B72: 010 | C72: 635000010 | D72: Dividend: Local Share Gross Dividend | E72: 21310
A73: 635000 | B73: 015 | C73: 635000015 | D73: Dividend: Foreign Dividend Gross | E73: 21310
A74: 635000 | B74: 430 | C74: 635000430 | D74: Dividend: Local Cash Unit Trust Gross Dividend | E74: 21110
A75: 635000 | B75: 440 | C75: 635000440 | D75: Dividend: Local Bond Unit Trust Gross Dividend | E75: 21260
A76: 635000 | B76: 150 | C76: 635000150 | D76: Dividend: Local Share Gross Tax Exempted Dividend (Obsolete) | E76: 21310
A77: 636000 | B77: 010 | C77: 636000010 | D77: Dividend: Local Share Gross Tax Exempted Dividend | E77: 21310
A78: 636000 | B78: 015 | C78: 636000015 | D78: Dividend: Foreign Dividend Tax Exempt | E78: 21310
A79: 636000 | B79: 430 | C79: 636000430 | D79: Dividend:Local Cash Unit Trust Gross Tax Exempted Dividend | E79: 21341
A80: 636000 | B80: 440 | C80: 636000440 | D80: Dividend:Local Bond Unit Trust Gross Tax Exempted Dividend | E80: 21343
A81: 636000 | B81: 460 | C81: 636000460 | D81: Dividend: Local REIT Gross Dividend Tax Exempt | E81: 21310
A82: 636000 | B82: 450 | C82: 636000450 | D82: Dividend:Local MGS Unit Trust Gross Tax Exempted Dividend | E82: 21342
A83: 639000 | B83: 210 | C83: 639000210 | D83: IncomeVal: Local Money Market Placement (Valuation) | E83: 21120
A84: 639000 | B84: 220 | C84: 639000220 | D84: IncomeVal: FD Placement | E84: 21110
A85: 639000 | B85: 110 | C85: 639000110 | D85: IncomeVal: Commercial Bond (Valuation) | E85: 21260
A86: 639000 | B86: 115 | C86: 639000115 | D86: IncomeVal: Foreign Bonds | E86: 21260
A87: 640001 | B87: 000 | C87: 640001000 | D87: Income: Rebates of Management Fee | E87: 16210
A88: 640003 | B88: 000 | C88: 640003000 | D88: Income: Other Income | E88: 16210
A89: 689000 | B89: 010 | C89: 689000010 | D89: ProvUnGnL: Local Listed Share | E89: 25210
A90: 689000 | B90: 015 | C90: 689000015 | D90: ProvUnGnL: Foreign Listed Equities | E90: 25210
A91: 689000 | B91: 430 | C91: 689000430 | D91: ProvUnGnL: Local Cash Unit Trust | E91: 94100
A92: 689000 | B92: 440 | C92: 689000440 | D92: ProvUnGnL: Local Bond Unit Trust | E92: 94100
A93: 689000 | B93: 110 | C93: 689000110 | D93: ProvUnGnL: Commercial Bond | E93: 94100
A94: 689000 | B94: 460 | C94: 689000460 | D94: ProvUnGnL: Real Estate Investment Trust | E94: 25210
A95: 689000 | B95: 450 | C95: 689000450 | D95: ProvUnGnL: Local MGS Unit Trust | E95: 94100
A96: 700301 | B96: 000 | C96: 700301000 | D96: Expenses: Custodian & Registration service | E96: 16220
A97: 710101 | B97: 000 | C97: 710101000 | D97: Expenses: Audit Fees | E97: 16220
A98: 710102 | B98: 000 | C98: 710102000 | D98: Expenses: Bank Charges | E98: 12340
A99: 710104 | B99: 000 | C99: 710104000 | D99: Expenses: Other Expenses | E99: 16220
A100: 710106 | B100: 000 | C100: =A100 & B100 -> 710106000 | D100: Expenses: Management Fees | E100: 16210
A101: 710125 | B101: 000 | C101: 710125000 | D101: Expenses: Management Expenses | E101: 16220
A102: 710126 | B102: 000 | C102: 710126000 | D102: Expenses: Perfomance Fees | E102: 16220
A103: 710151 | B103: 000 | C103: 710151000 | D103: Expense: Testing | E103: 16220
A104: 710876 | B104: 000 | C104: 710876000 | D104: Expenses: GST on Bank Charges | E104: 12340
A105: 710880 | B105: 000 | C105: 710880000 | D105: Expenses: GST for Management Fees | E105: 72010
A106: 799000 | B106: 010 | C106: 799000010 | D106: Expenses: Local Listed Securities Investment Cost | E106: 25420
A107: 799000 | B107: 460 | C107: 799000460 | D107: EXPENSES: REITS COST | E107: 25420
A108: 799100 | B108: 000 | C108: 799100000 | D108: Expenses: GST on Listed Securities Investment Cost | E108: 25420
A109: 800000 | B109: 000 | C109: 800000000 | D109: Capital: Unitholder Capital | E109: 76010
A110: 810000 | B110: 000 | C110: 810000000 | D110: Profit: Last Year Unrealised Reserved | E110: 94100
A111: 810000 | B111: 210 | C111: =A111 & B111 -> 810000210 | D111: Profit: Last Year Unrealised Reserved | E111: 94100
A112: 810000 | B112: 220 | C112: 810000220 | D112: Profit: Last Year Unrealised Reserved | E112: 94100
A113: 810000 | B113: 430 | C113: 810000430 | D113: Profit: Last Year Unrealised Reserved | E113: 94100
A114: 810000 | B114: 440 | C114: 810000440 | D114: Profit: Last Year Unrealised Reserved | E114: 94100
A115: 810000 | B115: 450 | C115: 810000450 | D115: Profit: Last Year Unrealised Reserved | E115: 94100
A116: 830000 | B116: 000 | C116: 830000000 | D116: Profit: Last Year Realised Retained Profit | E116: 94100
A117: 830000 | B117: 210 | C117: =A117 & B117 -> 830000210 | D117: Profit: Last Year Realised Retained Profit | E117: 94100
A118: 830000 | B118: 220 | C118: 830000220 | D118: Profit: Last Year Realised Retained Profit | E118: 94100
A119: 830000 | B119: 430 | C119: =A119 & B119 -> 830000430 | D119: Profit: Last Year Realised Retained Profit | E119: 94100
A120: 830000 | B120: 440 | C120: =A120 & B120 -> 830000440 | D120: Profit: Last Year Realised Retained Profit | E120: 94100
A121: 830000 | B121: 450 | C121: 830000450 | D121: Profit: Last Year Realised Retained Profit | E121: 94100
A122: 919000 | B122: 110 | C122: 919000110 | D122: Control: Last Year AmortPL of Commercial Bond | E122: 21650
A123: 929000 | B123: 110 | C123: 929000110 | D123: Control: Last Year AccrePL of Commercial Bond | E123: 21660
A124: 939000 | B124: 110 | C124: 939000110 | D124: Control: Last Year Unreceived Income of Commercial Bond | E124: 21260
A125: 939000 | B125: 115 | C125: 939000115 | D125: Control: Accrued Interest of Last Year-Foreign Bonds | E125: 21260
A126: 939000 | B126: 210 | C126: 939000210 | D126: Control: Last Year Unreceived Income of Money Market | E126: 21120
A127: 939000 | B127: 220 | C127: 939000220 | D127: Control: Accrued Interest of Last Year-Local FD Placement | E127: 21110
A128: 989000 | B128: 010 | C128: 989000010 | D128: Control: Last Year UnGnL of Local Listed Share | E128: 25210
A129: 989000 | B129: 110 | C129: 989000110 | D129: Control: Last Year UnGNL of Commercial Bond | E129: 94100
A130: 989000 | B130: 430 | C130: 989000430 | D130: Control: Last Year UnGnL Local Cash Unit Trust | E130: 94100
A131: 989000 | B131: 440 | C131: 989000440 | D131: Control: Last Year UnGnL Local Bond Unit Trust | E131: 94100
A132: 989000 | B132: 450 | C132: 989000450 | D132: Control: Last Year UnGnL of Local MGS Unit Trust | E132: 94100
A133: HWANG500000 | B133: 000 | C133: HWANG500000000 | D133: HWANG: Default Bank | E133: 51503
A134: RHB500000 | B134: 000 | C134: RHB500000000 | D134: RHB: Default Bank | E134: 51284

Sheet Investment (hidden)
C1: TB for Investment as at 31/12/2014 | E1: Date prepared: | G1: 23/1/2014 9.10 AM
E2: Given | L2: FUND | M2: GL | N2: DEBIT | O2: CREDIT | P2: DESCRIPTION | S2: SUM
C3: Profit & Loss | L3: HWANG | M3: 100010 | N3: 38740287.93 | O3: 0 | P3: Cost: Local Listed Share | Q3: 0 | R3: BS | S3: =N3+O3 -> 38740287.93 | T3: =OFFSET(Mapping!$E$1,MATCH(M3,Mapping!$A:$A,0)-1,0) ->  | U3: =TEXT(T3,"0") -> 
A4: =VALUE(B4) -> 21110 | B4: 21110 | C4: INT INCOME - FD | D4: -17426176.83 | E4: =MATCH(A4,Mapping!#REF!,0)-1 ->  | F4: =SUMIF(InTB!$K:$K,Investment!B4,InTB!$F:$F) -> -9978518.84 | G4: =F4-D4 -> 7447657.99 | L4: TMLAFS | M4: 100010 | N4: 67909450.14 | O4: 0 | P4: Cost: Local Listed Share | Q4: 0 | R4: BS | S4: 67909450.14 | T4: =OFFSET(Mapping!$E$1,MATCH(M4,Mapping!$A:$A,0)-1,0) ->  | U4: =TEXT(T4,"0") -> 
A5: =VALUE(B5) -> 21120 | B5: 21120 | C5: INT INCOME - STD | D5: -622030.89 | E5: =MATCH(A5,Mapping!#REF!,0)-1 ->  | F5: =SUMIF(InTB!$K:$K,Investment!B5,InTB!$F:$F) -> -420307.94 | G5: =F5-D5 -> 201722.95 | L5: TMLHFT | M5: 100010 | N5: 1290283.06 | O5: 0 | P5: Cost: Local Listed Share | Q5: 0 | R5: BS | S5: 1290283.06 | T5: =OFFSET(Mapping!$E$1,MATCH(M5,Mapping!$A:$A,0)-1,0) -> 
A6: 21120 | B6: 21120 | C6: INT INCOME STD - TMALM | D6: -884925.14 | E6: =MATCH(A6,Mapping!#REF!,0)-1 ->  | F6: =SUMIF(InTB!$K:$K,Investment!B6,InTB!$F:$F) -> -420307.94 | G6: =F6-D6 -> 464617.2 | L6: TMLAFS | M6: 100110 | N6: 30376500 | O6: 0 | P6: Cost: Commercial Bond | Q6: 0 | R6: BS | S6: 30376500 | T6: =OFFSET(Mapping!$E$1,MATCH(M6,Mapping!$A:$A,0)-1,0) -> 
A7: 21140 | B7: 21140 | C7: INT INCOME - NID | D7: -109349.3 | E7: =MATCH(A7,Mapping!#REF!,0)-1 ->  | F7: =SUMIF(InTB!$K:$K,Investment!B7,InTB!$F:$F) -> 0 | G7: 109349.3 | L7: HWANG | M7: 100210 | N7: 13722000 | O7: 0 | P7: Cost: Local Money Market Placement | Q7: 0 | R7: BS | S7: 13722000 | T7: =OFFSET(Mapping!$E$1,MATCH(M7,Mapping!$A:$A,0)-1,0) -> 
A8: 21210 | B8: 21210 | C8: MGS - INT INCOME | D8: -84199.05 | E8: =MATCH(A8,Mapping!#REF!,0)-1 ->  | F8: =SUMIF(InTB!$K:$K,Investment!B8,InTB!$F:$F) -> 0 | G8: 84199.05 | L8: HFT | M8: 100210 | N8: 726022852.2 | O8: 0 | P8: Cost: Local Money Market Placement | Q8: 0 | R8: BS | S8: 726022852.2 | T8: =OFFSET(Mapping!$E$1,MATCH(M8,Mapping!$A:$A,0)-1,0) -> 
A9: 21240 | B9: 21240 | C9: CAGAMAS - INT INCOME(AFS) | D9: -144737.93 | E9: =MATCH(A9,Mapping!#REF!,0)-1 ->  | F9: =SUMIF(InTB!$K:$K,Investment!B9,InTB!$F:$F) -> 0 | G9: 144737.93 | L9: SHF | M9: 100210 | N9: 8500000 | O9: 0 | P9: Cost: Local Money Market Placement | Q9: 0 | R9: BS | S9: 8500000 | T9: =OFFSET(Mapping!$E$1,MATCH(M9,Mapping!$A:$A,0)-1,0) -> 
A10: 21250 | B10: 21250 | C10: BONDS - INT INCOME | D10: -21451.58 | E10: =MATCH(A10,Mapping!#REF!,0)-1 ->  | F10: =SUMIF(InTB!$K:$K,Investment!B10,InTB!$F:$F) -> 0 | G10: 21451.58 | L10: TMUT | M10: 100410 | N10: 887075279.9 | O10: 0 | P10: Cost: Local Unit Trust | Q10: 0 | R10: BS | S10: 887075279.9 | T10: =OFFSET(Mapping!$E$1,MATCH(M10,Mapping!$A:$A,0)-1,0) -> 
A11: 21260 | B11: 21260 | C11: BONDS - INT INCOME(AFS) | D11: -9964708.62 | E11: =MATCH(A11,Mapping!#REF!,0)-1 ->  | F11: =SUMIF(InTB!$K:$K,Investment!B11,InTB!$F:$F) -> 0 | G11: 9964708.62 | L11: TMLAFS | M11: 110110 | N11: 0 | O11: -100325.35 | P11: AmortBSVal: Commercial Bond (Valuation) | Q11: 1 | R11: BS | S11: -100325.35 | T11: =OFFSET(Mapping!$E$1,MATCH(M11,Mapping!$A:$A,0)-1,0) -> 
A12: 21310 | B12: 21310 | C12: DIVIDEND - QUOTED SHARES | D12: -3827751.87 | E12: =MATCH(A12,Mapping!#REF!,0)-1 ->  | F12: =SUMIF(InTB!$K:$K,Investment!B12,InTB!$F:$F) -> 0 | G12: 3827751.87 | L12: TMLAFS | M12: 139110 | N12: 375426.02 | O12: 0 | P12: IntDebtor: Commercial Bond | Q12: 1 | R12: BS | S12: 375426.02 | T12: =OFFSET(Mapping!$E$1,MATCH(M12,Mapping!$A:$A,0)-1,0) -> 
A13: 21340 | B13: 21340 | C13: DIVIDEND - UNIT TRUST(AFS) | D13: -32608806.7 | E13: =MATCH(A13,Mapping!#REF!,0)-1 ->  | F13: =SUMIF(InTB!$K:$K,Investment!B13,InTB!$F:$F) -> 0 | G13: 32608806.7 | L13: SHF | M13: 139210 | N13: 50572.6 | O13: 0 | P13: IntDebtor: Local Money Market Placement | Q13: 1 | R13: BS | S13: 50572.6 | T13: =OFFSET(Mapping!$E$1,MATCH(M13,Mapping!$A:$A,0)-1,0) -> 
A14: 21612 | B14: 21612 | C14: AMORTISATION OF MGS | D14: 23258.08 | E14: =MATCH(A14,Mapping!#REF!,0)-1 ->  | F14: =SUMIF(InTB!$K:$K,Investment!B14,InTB!$F:$F) -> 0 | G14: -23258.08 | L14: HFT | M14: 139210 | N14: 3931732.21 | O14: 0 | P14: IntDebtor: Local Money Market Placement | Q14: 1 | R14: BS | S14: 3931732.21 | T14: =OFFSET(Mapping!$E$1,MATCH(M14,Mapping!$A:$A,0)-1,0) -> 
A15: 21650 | B15: 21650 | C15: AMORTISATION OF CORPORATE BOND | D15: 439952.51 | E15: =MATCH(A15,Mapping!#REF!,0)-1 ->  | F15: =SUMIF(InTB!$K:$K,Investment!B15,InTB!$F:$F) -> 0 | G15: -439952.51 | L15: HWANG | M15: 139210 | N15: 1165.43 | O15: 0 | P15: IntDebtor: Local Money Market Placement | Q15: 1 | R15: BS | S15: 1165.43 | T15: =OFFSET(Mapping!$E$1,MATCH(M15,Mapping!$A:$A,0)-1,0) -> 
A16: 21660 | B16: 21660 | C16: ACCRETION OF CORP BOND(AFS) | D16: -31783.6 | E16: =MATCH(A16,Mapping!#REF!,0)-1 ->  | F16: =SUMIF(InTB!$K:$K,Investment!B16,InTB!$F:$F) -> 0 | G16: 31783.6 | L16: HWANG | M16: 189010 | N16: 2613805.76 | O16: 0 | P16: ProvUnGnLRes: Local Listed Share | Q16: 1 | R16: BS | S16: 2613805.76 | T16: =OFFSET(Mapping!$E$1,MATCH(M16,Mapping!$A:$A,0)-1,0) -> 
A17: 25210 | B17: 25210 | C17: T/BILLS - DIMINUTION CHRG | D17: 2031994.95 | E17: =MATCH(A17,Mapping!#REF!,0)-1 ->  | F17: =SUMIF(InTB!$K:$K,Investment!B17,InTB!$F:$F) -> 0 | G17: -2031994.95 | L17: TMLAFS | M17: 189010 | N17: 3855786.83 | O17: 0 | P17: ProvUnGnLRes: Local Listed Share | Q17: 1 | R17: BS | S17: 3855786.83 | T17: =OFFSET(Mapping!$E$1,MATCH(M17,Mapping!$A:$A,0)-1,0) -> 
A18: 25410 | B18: 25410 | C18: (P)/L ON DISP OF SECURITIES | D18: 1632660.03 | E18: =MATCH(A18,Mapping!#REF!,0)-1 ->  | F18: =SUMIF(InTB!$K:$K,Investment!B18,InTB!$F:$F) -> 0 | G18: -1632660.03 | L18: TMLHFT | M18: 189010 | N18: 1167531.99 | O18: 0 | P18: ProvUnGnLRes: Local Listed Share | Q18: 1 | R18: BS | S18: 1167531.99 | T18: =OFFSET(Mapping!$E$1,MATCH(M18,Mapping!$A:$A,0)-1,0) -> 
A19: 25420 | B19: 25420 | C19: INVESTMENT BROKERAGE FEE | D19: 597706.25 | E19: =MATCH(A19,Mapping!#REF!,0)-1 ->  | F19: =SUMIF(InTB!$K:$K,Investment!B19,InTB!$F:$F) -> 0 | G19: -597706.25 | L19: TMLAFS | M19: 189110 | N19: 0 | O19: -7674.65 | P19: ProvUnGnLRes: Commercial Bond | Q19: 1 | R19: BS | S19: -7674.65 | T19: =OFFSET(Mapping!$E$1,MATCH(M19,Mapping!$A:$A,0)-1,0) -> 
A20: 25430 | B20: 25430 | C20: P/(L) ON DISP OF BONDS(AFS) | D20: 829703.91 | E20: =MATCH(A20,Mapping!#REF!,0)-1 ->  | F20: =SUMIF(InTB!$K:$K,Investment!B20,InTB!$F:$F) -> 0 | G20: -829703.91 | L20: TMUT | M20: 189410 | N20: 0 | O20: -402241.3 | P20: ProvUnGnLRes: Local Unit Trust | Q20: 1 | R20: BS | S20: -402241.3 | T20: =OFFSET(Mapping!$E$1,MATCH(M20,Mapping!$A:$A,0)-1,0) -> 
L21: TMLAFS | M21: 200200 | N21: 1239825.85 | O21: 0 | P21: Debtor: Amount Due From Local Broker | Q21: 0 | R21: BS | S21: 1239825.85 | T21: =OFFSET(Mapping!$E$1,MATCH(M21,Mapping!$A:$A,0)-1,0) -> 58780 | U21: 58780
L22: TMLAFS | M22: 299010 | N22: 86450 | O22: 0 | P22: DivDebtor: Local Share Net Dividend Receivable | Q22: 0 | R22: BS | S22: 86450 | T22: =OFFSET(Mapping!$E$1,MATCH(M22,Mapping!$A:$A,0)-1,0) -> 
C23: Balance Sheet | D23: TMG | E23: System Amount | F23: Difference | G23: Remarks | L23: TMLAFS | M23: 300200 | N23: 0 | O23: -1811879.38 | P23: Creditor: Amount Due To Local Stock Broker | Q23: 0 | R23: BS | S23: -1811879.38 | T23: =OFFSET(Mapping!$E$1,MATCH(M23,Mapping!$A:$A,0)-1,0) -> 58780 | U23: 58780
A24: =VALUE(B24) -> 51284 | B24: 51284 | C24: BK KL RHB A/C1 21401701031333 | D24: 656013.75 | E24: 2407690.7 | F24: =E24-D24 -> 1751676.95 | H24: =MATCH(A24,Mapping!#REF!,0)-1 ->  | I24: =SUMIF(InTB!$K:$K,Investment!A24,InTB!$F:$F) -> 3084545.14 | J24: =I24-D24 -> 2428531.39 | K24: =OFFSET(InTB!$D$1,MATCH(B24,InTB!K:K,0)-1,0) ->  | L24: HWANG | M24: 320103 | N24: 0 | O24: -33906.52 | P24: Creditor: Amount Due to Managers(Mngt Fee) | Q24: 0 | R24: BS | S24: -33906.52 | T24: =OFFSET(Mapping!$E$1,MATCH(M24,Mapping!$A:$A,0)-1,0) -> 58780 | U24: 58780
A25: 51284 | B25: 51284 | C25: P/FOLIO MGT-HWANGDBS INVESTMT | D25: 18126.81 | F25: -18126.81 | G25: Hwang Bank Balance? | H25: =MATCH(A25,Mapping!#REF!,0)-1 ->  | I25: =SUMIF(InTB!$K:$K,Investment!A25,InTB!$F:$F) -> 3084545.14 | J25: =I25-D25 -> 3066418.33 | K25: =OFFSET(InTB!$D$1,MATCH(B25,InTB!K:K,0)-1,0) -> 500000 | L25: HWANG | M25: 500000 | N25: 161332.85 | O25: 0 | P25: Bank: Default Bank | Q25: 0 | R25: BS | S25: 161332.85 | T25: =OFFSET(Mapping!$E$1,MATCH(M25,Mapping!$A:$A,0)-1,0) -> 
A26: 52001 | B26: 52001 | C26: FIXED DEPOSITS | D26: 687872852.2 | E26: 683880325.5 | F26: =E26-D26 -> -3992526.73 | G26: CSH*1412000068M | H26: =MATCH(A26,Mapping!#REF!,0)-1 ->  | I26: =SUMIF(InTB!$K:$K,Investment!A26,InTB!$F:$F) -> 335589036.6 | J26: -352283815.6 | K26: =OFFSET(InTB!$D$1,MATCH(B26,InTB!K:K,0)-1,0) ->  | L26: HFT | M26: 500000 | N26: 2407690.7 | O26: 0 | P26: Bank: Default Bank | Q26: 0 | R26: BS | S26: 2407690.7 | T26: =OFFSET(Mapping!$E$1,MATCH(M26,Mapping!$A:$A,0)-1,0) -> 
A27: 52002 | B27: 52002 | C27: NEGOTIABLE INSTRUMENTS DEPOST | D27: 0 | E27: 0 | F27: =E27-D27 -> 0 | H27: =MATCH(A27,Mapping!#REF!,0)-1 ->  | I27: =SUMIF(InTB!$K:$K,Investment!A27,InTB!$F:$F) -> 0 | J27: 0 | K27: =OFFSET(InTB!$D$1,MATCH(B27,InTB!K:K,0)-1,0) ->  | L27: TMLHFT | M27: 500000 | N27: 4956313.98 | O27: 0 | P27: Bank: Default Bank | Q27: 0 | R27: BS | S27: 4956313.98 | T27: =OFFSET(Mapping!$E$1,MATCH(M27,Mapping!$A:$A,0)-1,0) -> 
A28: 52003 | B28: 52003 | C28: SHORT TERM DEPOSITS | D28: 60372000 | E28: 64364526.73 | F28: 3992526.73 | G28: CSH*1412000068M | H28: =MATCH(A28,Mapping!#REF!,0)-1 ->  | I28: =SUMIF(InTB!$K:$K,Investment!A28,InTB!$F:$F) -> 50000000 | J28: -10372000 | K28: =OFFSET(InTB!$D$1,MATCH(B28,InTB!K:K,0)-1,0) ->  | L28: HWANG | M28: 800000 | N28: 0 | O28: -23490923.03 | P28: Capital: Unitholder Capital | Q28: 0 | R28: BS | S28: -23490923.03 | T28: =OFFSET(Mapping!$E$1,MATCH(M28,Mapping!$A:$A,0)-1,0) -> 76010 | U28: 76010
A29: 52052 | B29: 52052 | C29: PROVISION FOR AMORTISATION-NID | D29: 0 | E29: 0 | F29: 0 | H29: =MATCH(A29,Mapping!#REF!,0)-1 ->  | I29: =SUMIF(InTB!$K:$K,Investment!A29,InTB!$F:$F) -> 0 | J29: 0 | K29: =OFFSET(InTB!$D$1,MATCH(B29,InTB!K:K,0)-1,0) ->  | L29: HWANG | M29: 810000 | N29: 0 | O29: -4090607.71 | P29: Profit: Last Year Unrealised Reserved | Q29: 0 | R29: BS | S29: -4090607.71 | T29: =OFFSET(Mapping!$E$1,MATCH(M29,Mapping!$A:$A,0)-1,0) -> 94100 | U29: 94100
A30: 53101 | B30: 53101 | C30: GOVERNMENT SECURITIES | D30: 0 | E30: 0 | F30: 0 | H30: =MATCH(A30,Mapping!#REF!,0)-1 ->  | I30: =SUMIF(InTB!$K:$K,Investment!A30,InTB!$F:$F) -> 0 | J30: 0 | K30: =OFFSET(InTB!$D$1,MATCH(B30,InTB!K:K,0)-1,0) ->  | L30: HWANG | M30: 830000 | N30: 0 | O30: -29098791.23 | P30: Profit: Last Year Realised Retained Profit | Q30: 0 | R30: BS | S30: -29098791.23 | T30: =OFFSET(Mapping!$E$1,MATCH(M30,Mapping!$A:$A,0)-1,0) -> 94100 | U30: 94100
A31: 53151 | B31: 53151 | C31: PROV FOR AMORTISATION - MGS | D31: 0 | E31: 0 | F31: 0 | H31: =MATCH(A31,Mapping!#REF!,0)-1 ->  | I31: =SUMIF(InTB!$K:$K,Investment!A31,InTB!$F:$F) -> 0 | J31: 0 | K31: =OFFSET(InTB!$D$1,MATCH(B31,InTB!K:K,0)-1,0) ->  | L31: SHF | M31: 830000 | N31: 0 | O31: -8500000 | P31: Profit: Last Year Realised Retained Profit | Q31: 0 | R31: BS | S31: -8500000 | T31: =OFFSET(Mapping!$E$1,MATCH(M31,Mapping!$A:$A,0)-1,0) -> 94100 | U31: 94100
A32: 53202 | B32: 53202 | C32: CORPORATE BONDS-AFS | D32: 30376500 | E32: 30376500 | F32: 0 | H32: =MATCH(A32,Mapping!#REF!,0)-1 ->  | I32: =SUMIF(InTB!$K:$K,Investment!A32,InTB!$F:$F) -> 0 | J32: -30376500 | K32: =OFFSET(InTB!$D$1,MATCH(B32,InTB!K:K,0)-1,0) ->  | L32: HFT | M32: 830000 | N32: 0 | O32: -728430542.9 | P32: Profit: Last Year Realised Retained Profit | Q32: 0 | R32: BS | S32: -728430542.9 | T32: =OFFSET(Mapping!$E$1,MATCH(M32,Mapping!$A:$A,0)-1,0) -> 94100 | U32: 94100
A33: 53252 | B33: 53252 | C33: PROV AMOR'TION-CORP BONDS AFS | D33: -99687.1 | F33: 99687.1 | H33: =MATCH(A33,Mapping!#REF!,0)-1 ->  | I33: =SUMIF(InTB!$K:$K,Investment!A33,InTB!$F:$F) -> 0 | J33: 99687.1 | K33: =OFFSET(InTB!$D$1,MATCH(B33,InTB!K:K,0)-1,0) ->  | L33: TMUT | M33: 830000 | N33: 0 | O33: -887075279.9 | P33: Profit: Last Year Realised Retained Profit | Q33: 0 | R33: BS | S33: -887075279.9 | T33: =OFFSET(Mapping!$E$1,MATCH(M33,Mapping!$A:$A,0)-1,0) -> 94100 | U33: 94100
A34: 53253 | B34: 53253 | C34: PROV DIMINUTION VALUE-BOND AFS | D34: -8312.9 | F34: 8312.9 | H34: =MATCH(A34,Mapping!#REF!,0)-1 ->  | I34: =SUMIF(InTB!$K:$K,Investment!A34,InTB!$F:$F) -> 0 | J34: 8312.9 | K34: =OFFSET(InTB!$D$1,MATCH(B34,InTB!K:K,0)-1,0) ->  | L34: TMLHFT | M34: 830000 | N34: 0 | O34: -6246597.04 | P34: Profit: Last Year Realised Retained Profit | Q34: 0 | R34: BS | S34: -6246597.04 | T34: =OFFSET(Mapping!$E$1,MATCH(M34,Mapping!$A:$A,0)-1,0) -> 94100 | U34: 94100
A35: 53301 | B35: 53301 | C35: CORP SECURITIES - QTD SHARES | D35: 108035275.3 | F35: -108035275.3 | H35: =MATCH(A35,Mapping!#REF!,0)-1 ->  | I35: =SUMIF(InTB!$K:$K,Investment!A35,InTB!$F:$F) -> 0 | J35: -108035275.3 | K35: =OFFSET(InTB!$D$1,MATCH(B35,InTB!K:K,0)-1,0) ->  | L35: TMLAFS | M35: 830000 | N35: 0 | O35: -97800346.61 | P35: Profit: Last Year Realised Retained Profit | Q35: 0 | R35: BS | S35: -97800346.61 | T35: =OFFSET(Mapping!$E$1,MATCH(M35,Mapping!$A:$A,0)-1,0) -> 94100 | U35: 94100
A36: 53302 | B36: 53302 | C36: CORP SECURITIES - UNQTD SHARES | D36: 334423.34 | F36: -334423.34 | H36: =MATCH(A36,Mapping!#REF!,0)-1 ->  | I36: =SUMIF(InTB!$K:$K,Investment!A36,InTB!$F:$F) -> 0 | J36: -334423.34 | K36: =OFFSET(InTB!$D$1,MATCH(B36,InTB!K:K,0)-1,0) ->  | L36: TMLAFS | M36: 619110 | N36: 100325.35 | O36: 0 | P36: AmortPLVal: Commercial Bond (Valuation) | Q36: 1 | R36: PLR | S36: 100325.35 | T36: =OFFSET(Mapping!$E$1,MATCH(M36,Mapping!$A:$A,0)-1,0) -> 
A37: 53353 | B37: 53353 | C37: PROV DIMINUTION IN VALUE-SHARE | D37: 7710248.08 | F37: -7710248.08 | H37: =MATCH(A37,Mapping!#REF!,0)-1 ->  | I37: =SUMIF(InTB!$K:$K,Investment!A37,InTB!$F:$F) -> 0 | J37: -7710248.08 | K37: =OFFSET(InTB!$D$1,MATCH(B37,InTB!K:K,0)-1,0) ->  | L37: TMLAFS | M37: 639110 | N37: 0 | O37: -375426.02 | P37: IncomeVal: Commercial Bond (Valuation) | Q37: 1 | R37: PLR | S37: -375426.02 | T37: =OFFSET(Mapping!$E$1,MATCH(M37,Mapping!$A:$A,0)-1,0) -> 
A38: 53401 | B38: 53401 | C38: HWANG DBS ENHANCED CASH FUND | D38: 282318741.6 | E38: 282318741.6 | F38: OK | H38: =MATCH(A38,Mapping!#REF!,0)-1 ->  | I38: =SUMIF(InTB!$K:$K,Investment!A38,InTB!$F:$F) -> 0 | J38: -282318741.6 | K38: =OFFSET(InTB!$D$1,MATCH(B38,InTB!K:K,0)-1,0) ->  | L38: HFT | M38: 639210 | N38: 0 | O38: -3931732.21 | P38: IncomeVal: Local Money Market Placement (Valuation) | Q38: 1 | R38: PLR | S38: -3931732.21 | T38: =OFFSET(Mapping!$E$1,MATCH(M38,Mapping!$A:$A,0)-1,0) -> 
A39: 53403 | B39: 53403 | C39: AMCASH PLUS | D39: 282467007.6 | E39: 282467007.6 | F39: OK | H39: =MATCH(A39,Mapping!#REF!,0)-1 ->  | I39: =SUMIF(InTB!$K:$K,Investment!A39,InTB!$F:$F) -> 0 | J39: -282467007.6 | K39: =OFFSET(InTB!$D$1,MATCH(B39,InTB!K:K,0)-1,0) ->  | L39: SHF | M39: 639210 | N39: 0 | O39: -50572.6 | P39: IncomeVal: Local Money Market Placement (Valuation) | Q39: 1 | R39: PLR | S39: -50572.6 | T39: =OFFSET(Mapping!$E$1,MATCH(M39,Mapping!$A:$A,0)-1,0) -> 
A40: 53404 | B40: 53404 | C40: CIMB-PRINCIPAL INST. BOND FUND | D40: 251489530.6 | E40: 251489530.6 | F40: OK | H40: =MATCH(A40,Mapping!#REF!,0)-1 ->  | I40: =SUMIF(InTB!$K:$K,Investment!A40,InTB!$F:$F) -> 0 | J40: -251489530.6 | K40: =OFFSET(InTB!$D$1,MATCH(B40,InTB!K:K,0)-1,0) ->  | L40: HWANG | M40: 639210 | N40: 0 | O40: -1165.43 | P40: IncomeVal: Local Money Market Placement (Valuation) | Q40: 1 | R40: PLR | S40: -1165.43 | T40: =OFFSET(Mapping!$E$1,MATCH(M40,Mapping!$A:$A,0)-1,0) -> 
A41: 53405 | B41: 53405 | C41: NOMURA I-CASH FUND | D41: 70800000 | E41: 70800000 | F41: OK | H41: =MATCH(A41,Mapping!#REF!,0)-1 ->  | I41: =SUMIF(InTB!$K:$K,Investment!A41,InTB!$F:$F) -> 0 | J41: -70800000 | K41: =OFFSET(InTB!$D$1,MATCH(B41,InTB!K:K,0)-1,0) ->  | L41: HWANG | M41: 689010 | N41: 0 | O41: -2613805.76 | P41: ProvUnGnL: Local Listed Share | Q41: 1 | R41: PLU | S41: -2613805.76 | T41: =OFFSET(Mapping!$E$1,MATCH(M41,Mapping!$A:$A,0)-1,0) -> 
A42: 53453 | B42: 53453 | C42: PROV DIM VALUE OF UNIT TRUST | D42: -1926284.49 | H42: =MATCH(A42,Mapping!#REF!,0)-1 ->  | I42: =SUMIF(InTB!$K:$K,Investment!A42,InTB!$F:$F) -> 0 | J42: 1926284.49 | K42: =OFFSET(InTB!$D$1,MATCH(B42,InTB!K:K,0)-1,0) ->  | L42: TMLAFS | M42: 689010 | N42: 0 | O42: -3855786.83 | P42: ProvUnGnL: Local Listed Share | Q42: 1 | R42: PLU | S42: -3855786.83 | T42: =OFFSET(Mapping!$E$1,MATCH(M42,Mapping!$A:$A,0)-1,0) -> 
A43: 53501 | B43: 53501 | C43: QUOTED SHARES - REITS | D43: 0 | H43: =MATCH(A43,Mapping!#REF!,0)-1 ->  | I43: =SUMIF(InTB!$K:$K,Investment!A43,InTB!$F:$F) -> 0 | J43: 0 | K43: =OFFSET(InTB!$D$1,MATCH(B43,InTB!K:K,0)-1,0) ->  | L43: TMLHFT | M43: 689010 | N43: 0 | O43: -1167531.99 | P43: ProvUnGnL: Local Listed Share | Q43: 1 | R43: PLU | S43: -1167531.99 | T43: =OFFSET(Mapping!$E$1,MATCH(M43,Mapping!$A:$A,0)-1,0) -> 
A44: 53551 | B44: 53551 | C44: PROV FOR DIM IN VALUE-HFT REIT | D44: 0 | H44: =MATCH(A44,Mapping!#REF!,0)-1 ->  | I44: =SUMIF(InTB!$K:$K,Investment!A44,InTB!$F:$F) -> 0 | J44: 0 | K44: =OFFSET(InTB!$D$1,MATCH(B44,InTB!K:K,0)-1,0) ->  | L44: TMLAFS | M44: 689110 | N44: 7674.65 | O44: 0 | P44: ProvUnGnL: Commercial Bond | Q44: 1 | R44: PLU | S44: 7674.65 | T44: =OFFSET(Mapping!$E$1,MATCH(M44,Mapping!$A:$A,0)-1,0) -> 
A45: 0 | B45: 0 | C45: PROV FOR DIM IN VALUE-HFT UT | D45: 0 | H45: =MATCH(A45,Mapping!#REF!,0)-1 ->  | I45: =SUMIF(InTB!$K:$K,Investment!A45,InTB!$F:$F) -> -1 | J45: -1 | K45: =OFFSET(InTB!$D$1,MATCH(B45,InTB!K:K,0)-1,0) -> 0 | L45: TMUT | M45: 689410 | N45: 402241.3 | O45: 0 | P45: ProvUnGnL: Local Unit Trust | Q45: 1 | R45: PLU | S45: 402241.3 | T45: =OFFSET(Mapping!$E$1,MATCH(M45,Mapping!$A:$A,0)-1,0) -> 
A46: 57110 | B46: 57110 | C46: INT RECEIVABLE - FIXED DEP. | D46: 4035601.3 | H46: =MATCH(A46,Mapping!#REF!,0)-1 ->  | I46: =SUMIF(InTB!$K:$K,Investment!A46,InTB!$F:$F) -> 4939489.8 | J46: 903888.5 | K46: =OFFSET(InTB!$D$1,MATCH(B46,InTB!K:K,0)-1,0) ->  | L46: HWANG | M46: 989010 | N46: 4090607.71 | O46: 0 | P46: Control: Last Year UnGnL of Local Listed Share | Q46: 0 | R46: PLU | S46: 4090607.71 | T46: =OFFSET(Mapping!$E$1,MATCH(M46,Mapping!$A:$A,0)-1,0) -> 
A47: 58780 | B47: 58780 | C47: INVESTMENT DEBTORS A/C | D47: 3494255.54 | H47: =MATCH(A47,Mapping!#REF!,0)-1 ->  | I47: =SUMIF(InTB!$K:$K,Investment!A47,InTB!$F:$F) -> 30021659.84 | J47: 26527404.3 | K47: =OFFSET(InTB!$D$1,MATCH(B47,InTB!K:K,0)-1,0) -> 
C48: Clearing account | D48: =SUM(D4:D47) -> 1727775646
